PublisherLabel,PublisherURI,"Body name","Body","Service area","Service division","Responsible unit","Expenses type","Date","Transaction","Amount","Supplier name"
"Bracknell Forest Council","http://opendatacommunities.org/id/unitary-authority/bracknell-forest","Bracknell Forest Council","00MA","Adults (18-64)","Long term Support - Residential","MH Adults 18-64 Long Term Support - Residential","Contracted Services",16/04/2020 00:00:00,"30375595",5044.88,"2 CARE"
"Bracknell Forest Council","http://opendatacommunities.org/id/unitary-authority/bracknell-forest","Bracknell Forest Council","00MA","Adults (18-64)","Long term Support - Residential","MH Adults 18-64 Long Term Support - Residential","Contracted Services",14/05/2020 00:00:00,"30377203",5093.52,"2 CARE"
"Bracknell Forest Council","http://opendatacommunities.org/id/unitary-authority/bracknell-forest","Bracknell Forest Council","00MA","Adults (18-64)","Long term Support - Residential","MH Adults 18-64 Long Term Support - Residential","Contracted Services",11/06/2020 00:00:00,"30378358",5093.52,"2 CARE"
"Bracknell Forest Council","http://opendatacommunities.org/id/unitary-authority/bracknell-forest","Bracknell Forest Council","00MA","Traffic Management & Road Safety","Traffic Management","Intelligent Transport Systems","Contracted Services",14/05/2020 00:00:00,"6703547",3815,"21ST CENTURY PASSENGER SSYSTEMS LIMITED"
"Bracknell Forest Council","http://opendatacommunities.org/id/unitary-authority/bracknell-forest","Bracknell Forest Council","00MA","Cemeteries, Crematoria & Mortuary Services","Cemeteries & Crematorium","Easthampstead Park Cemetery & Crematorium","Contracted Services",01/05/2020 00:00:00,"6702850",553.03,"2468 GROUP"
"Bracknell Forest Council","http://opendatacommunities.org/id/unitary-authority/bracknell-forest","Bracknell Forest Council","00MA","Parking Services","Off Street Parking","The Avenue Car Park","Banking Charges",31/03/2020 00:00:00,"6701959",2588.56,"3C PAYMENT UK LTD"
"Bracknell Forest Council","http://opendatacommunities.org/id/unitary-authority/bracknell-forest","Bracknell Forest Council","00MA","SPA Mitigation Strategy (S106)","","COPPICE MONOLITH","Construction - Other Direct Expenses",26/05/2020 00:00:00,"6703881",1500,"3D WOOD"
"Bracknell Forest Council","http://opendatacommunities.org/id/unitary-authority/bracknell-forest","Bracknell Forest Council","00MA","SANG - Enhancement","","BIG WOOD ENTRANCE PIECE","Construction - Other Direct Expenses",14/04/2020 00:00:00,"6702062",4000,"3D WOOD"
"Bracknell Forest Council","http://opendatacommunities.org/id/unitary-authority/bracknell-forest","Bracknell Forest Council","00MA","Older People (65+)","Long term Support - Community:Homecare","PS Older People 65+ Long Term Support - Community:Homecare","Contracted Services",16/04/2020 00:00:00,"30375597",768.4,"A&T CARING SERVICES"
"Bracknell Forest Council","http://opendatacommunities.org/id/unitary-authority/bracknell-forest","Bracknell Forest Council","00MA","Older People (65+)","Long term Support - Community:Homecare","PS Older People 65+ Long Term Support - Community:Homecare","Contracted Services",21/05/2020 00:00:00,"30377460",785.73,"A&T CARING SERVICES"
"Bracknell Forest Council","http://opendatacommunities.org/id/unitary-authority/bracknell-forest","Bracknell Forest Council","00MA","Older People (65+)","Long term Support - Community:Homecare","PS Older People 65+ Long Term Support - Community:Homecare","Contracted Services",18/06/2020 00:00:00,"30378678",785.73,"A&T CARING SERVICES"
"Bracknell Forest Council","http://opendatacommunities.org/id/unitary-authority/bracknell-forest","Bracknell Forest Council","00MA","Older People (65+)","Long term Support - Community:Homecare","PS Older People 65+ Long Term Support - Community:Homecare","Contracted Services",07/05/2020 00:00:00,"30376992",795.45,"A&T CARING SERVICES"
"Bracknell Forest Council","http://opendatacommunities.org/id/unitary-authority/bracknell-forest","Bracknell Forest Council","00MA","Older People (65+)","Long term Support - Community:Homecare","MC Older People 65+ Long Term Support - Community:Homecare","Contracted Services",21/05/2020 00:00:00,"30377460",1325.58,"A&T CARING SERVICES"
"Bracknell Forest Council","http://opendatacommunities.org/id/unitary-authority/bracknell-forest","Bracknell Forest Council","00MA","Older People (65+)","Long term Support - Community:Homecare","MC Older People 65+ Long Term Support - Community:Homecare","Contracted Services",18/06/2020 00:00:00,"30378678",1325.58,"A&T CARING SERVICES"
"Bracknell Forest Council","http://opendatacommunities.org/id/unitary-authority/bracknell-forest","Bracknell Forest Council","00MA","Older People (65+)","Long term Support - Community:Homecare","MC Older People 65+ Long Term Support - Community:Homecare","Contracted Services",07/05/2020 00:00:00,"30376992",1339.59,"A&T CARING SERVICES"
"Bracknell Forest Council","http://opendatacommunities.org/id/unitary-authority/bracknell-forest","Bracknell Forest Council","00MA","Older People (65+)","Long Term Support - Community:Supported Living","MC Older People 65+ Long Term Support - Community:Supported Living","Contracted Services",07/05/2020 00:00:00,"30376992",1920,"A&T CARING SERVICES"
"Bracknell Forest Council","http://opendatacommunities.org/id/unitary-authority/bracknell-forest","Bracknell Forest Council","00MA","Older People (65+)","Long term Support - Community:Homecare","PS Older People 65+ Long Term Support - Community:Homecare","Contracted Services",21/05/2020 00:00:00,"30377460",2021.34,"A&T CARING SERVICES"
"Bracknell Forest Council","http://opendatacommunities.org/id/unitary-authority/bracknell-forest","Bracknell Forest Council","00MA","Older People (65+)","Long term Support - Community:Homecare","PS Older People 65+ Long Term Support - Community:Homecare","Contracted Services",18/06/2020 00:00:00,"30378678",2030.53,"A&T CARING SERVICES"
"Bracknell Forest Council","http://opendatacommunities.org/id/unitary-authority/bracknell-forest","Bracknell Forest Council","00MA","Older People (65+)","Long term Support - Community:Homecare","PS Older People 65+ Long Term Support - Community:Homecare","Contracted Services",07/05/2020 00:00:00,"30376992",2305.2,"A&T CARING SERVICES"
"Bracknell Forest Council","http://opendatacommunities.org/id/unitary-authority/bracknell-forest","Bracknell Forest Council","00MA","Older People (65+)","Long term Support - Community:Homecare","PS Older People 65+ Long Term Support - Community:Homecare","Contracted Services",07/05/2020 00:00:00,"30376992",2651.16,"A&T CARING SERVICES"
"Bracknell Forest Council","http://opendatacommunities.org/id/unitary-authority/bracknell-forest","Bracknell Forest Council","00MA","Adults (18-64)","Long term Support - Residential","LD Adults 18-64 Long Term Support - Residential","Contracted Services",11/06/2020 00:00:00,"30378358",3090.72,"ABBEYFIELD LODGE NURSING HOME"
"Bracknell Forest Council","http://opendatacommunities.org/id/unitary-authority/bracknell-forest","Bracknell Forest Council","00MA","Adults (18-64)","Long term Support - Residential","LD Adults 18-64 Long Term Support - Residential","Contracted Services",16/04/2020 00:00:00,"30375595",6225.47,"ABBEYFIELD LODGE NURSING HOME"
"Bracknell Forest Council","http://opendatacommunities.org/id/unitary-authority/bracknell-forest","Bracknell Forest Council","00MA","Substance Misuse","Drug misuse in adults","Drug Testing Costs","Other Fees for Bought-in Services",17/06/2020 00:00:00,"6705253",680,"ABBOTT  TOXICOLOGY LTD"
"Bracknell Forest Council","http://opendatacommunities.org/id/unitary-authority/bracknell-forest","Bracknell Forest Council","00MA","Older People (65+)","Long term Support - Residential","MC Older People 65+ Long Term Support - Residential","Contracted Services",16/04/2020 00:00:00,"30375595",2543.68,"ABERMILL CARE CENTRE"
"Bracknell Forest Council","http://opendatacommunities.org/id/unitary-authority/bracknell-forest","Bracknell Forest Council","00MA","Older People (65+)","Long term Support - Residential","MC Older People 65+ Long Term Support - Residential","Contracted Services",14/05/2020 00:00:00,"30377203",2568.2,"ABERMILL CARE CENTRE"
"Bracknell Forest Council","http://opendatacommunities.org/id/unitary-authority/bracknell-forest","Bracknell Forest Council","00MA","Older People (65+)","Long term Support - Residential","MC Older People 65+ Long Term Support - Residential","Contracted Services",11/06/2020 00:00:00,"30378358",2568.2,"ABERMILL CARE CENTRE"
"Bracknell Forest Council","http://opendatacommunities.org/id/unitary-authority/bracknell-forest","Bracknell Forest Council","00MA","Safeguarding Children and Young People's Services","Social Work","Family Placement","Client Training & Support",04/05/2020 00:00:00,"6703192",1567.5,"AC EDUCATION LTD"
"Bracknell Forest Council","http://opendatacommunities.org/id/unitary-authority/bracknell-forest","Bracknell Forest Council","00MA","Central Support Services - COF","Finance","Finance - Schools SLA","Computer Software",20/04/2020 00:00:00,"6702288",4312,"access / HCSS EDUCATION LIMITED"
"Bracknell Forest Council","http://opendatacommunities.org/id/unitary-authority/bracknell-forest","Bracknell Forest Council","00MA","Adults (18-64)","Long Term Support - Nursing","MH Adults 18-64 Long Term Support - Nursing","Contracted Services",16/04/2020 00:00:00,"30375595",3053.68,"ACCOMPLISH / GROVE CARE HOME - TRACSCARE"
"Bracknell Forest Council","http://opendatacommunities.org/id/unitary-authority/bracknell-forest","Bracknell Forest Council","00MA","Adults (18-64)","Long Term Support - Nursing","MH Adults 18-64 Long Term Support - Nursing","Contracted Services",14/05/2020 00:00:00,"30377203",3083.12,"ACCOMPLISH / GROVE CARE HOME - TRACSCARE"
"Bracknell Forest Council","http://opendatacommunities.org/id/unitary-authority/bracknell-forest","Bracknell Forest Council","00MA","Adults (18-64)","Long Term Support - Nursing","MH Adults 18-64 Long Term Support - Nursing","Contracted Services",11/06/2020 00:00:00,"30378358",3083.12,"ACCOMPLISH / GROVE CARE HOME - TRACSCARE"
"Bracknell Forest Council","http://opendatacommunities.org/id/unitary-authority/bracknell-forest","Bracknell Forest Council","00MA","Adults (18-64)","Long term Support - Residential","MH Adults 18-64 Long Term Support - Residential","Contracted Services",16/04/2020 00:00:00,"30375595",5326,"ACCOMPLISH GROUP T/A PATHWAY HOUSE"
"Bracknell Forest Council","http://opendatacommunities.org/id/unitary-authority/bracknell-forest","Bracknell Forest Council","00MA","Adults (18-64)","Long term Support - Residential","MH Adults 18-64 Long Term Support - Residential","Contracted Services",14/05/2020 00:00:00,"30377203",5377.36,"ACCOMPLISH GROUP T/A PATHWAY HOUSE"
"Bracknell Forest Council","http://opendatacommunities.org/id/unitary-authority/bracknell-forest","Bracknell Forest Council","00MA","Adults (18-64)","Long term Support - Residential","MH Adults 18-64 Long Term Support - Residential","Contracted Services",11/06/2020 00:00:00,"30378358",5377.36,"ACCOMPLISH GROUP T/A PATHWAY HOUSE"
"Bracknell Forest Council","http://opendatacommunities.org/id/unitary-authority/bracknell-forest","Bracknell Forest Council","00MA","Children Looked After","Residential care","Children's Home Placements","Contracted Services",08/04/2020 00:00:00,"6702164",15714.3,"ACORN HOMES"
"Bracknell Forest Council","http://opendatacommunities.org/id/unitary-authority/bracknell-forest","Bracknell Forest Council","00MA","Children Looked After","Residential care","Children's Home Placements","Contracted Services",01/06/2020 00:00:00,"6704196",18000,"ACORN HOMES"
"Bracknell Forest Council","http://opendatacommunities.org/id/unitary-authority/bracknell-forest","Bracknell Forest Council","00MA","Children Looked After","Residential care","Children's Home Placements","Contracted Services",01/05/2020 00:00:00,"6702924",18600,"ACORN HOMES"
"Bracknell Forest Council","http://opendatacommunities.org/id/unitary-authority/bracknell-forest","Bracknell Forest Council","00MA","Safeguarding Children and Young People's Services","Social Work","Children's Participation","Voluntary Sector Service Providers",25/06/2020 00:00:00,"6705532",1300,"ACTION FOR CHILDREN SERVICES LTD"
"Bracknell Forest Council","http://opendatacommunities.org/id/unitary-authority/bracknell-forest","Bracknell Forest Council","00MA","Safeguarding Children and Young People's Services","Social Work","Children's Participation","Voluntary Sector Service Providers",25/06/2020 00:00:00,"6705533",1300,"ACTION FOR CHILDREN SERVICES LTD"
"Bracknell Forest Council","http://opendatacommunities.org/id/unitary-authority/bracknell-forest","Bracknell Forest Council","00MA","Safeguarding Children and Young People's Services","Social Work","Children's Participation","Voluntary Sector Service Providers",25/06/2020 00:00:00,"6705530",1300,"ACTION FOR CHILDREN SERVICES LTD"
"Bracknell Forest Council","http://opendatacommunities.org/id/unitary-authority/bracknell-forest","Bracknell Forest Council","00MA","Safeguarding Children and Young People's Services","Social Work","Children's Participation","Voluntary Sector Service Providers",30/04/2020 00:00:00,"6702808",2600,"ACTION FOR CHILDREN SERVICES LTD"
"Bracknell Forest Council","http://opendatacommunities.org/id/unitary-authority/bracknell-forest","Bracknell Forest Council","00MA","Safeguarding Children and Young People's Services","Social Work","Children's Participation","Voluntary Sector Service Providers",25/06/2020 00:00:00,"6705531",2600,"ACTION FOR CHILDREN SERVICES LTD"
"Bracknell Forest Council","http://opendatacommunities.org/id/unitary-authority/bracknell-forest","Bracknell Forest Council","00MA","Safeguarding Children and Young People's Services","Social Work","Children's Participation","Voluntary Sector Service Providers",30/04/2020 00:00:00,"6702806",3929.39,"ACTION FOR CHILDREN SERVICES LTD"
"Bracknell Forest Council","http://opendatacommunities.org/id/unitary-authority/bracknell-forest","Bracknell Forest Council","00MA","Children Looked After","Fostering services","Independent Fostering (Non BFBC)","Contracted Services",27/04/2020 00:00:00,"6702598",6457.2,"ACTION FOR CHILDREN SERVICES LTD"
"Bracknell Forest Council","http://opendatacommunities.org/id/unitary-authority/bracknell-forest","Bracknell Forest Council","00MA","Children Looked After","Fostering services","Independent Fostering (Non BFBC)","Contracted Services",23/06/2020 00:00:00,"6705377",6457.2,"ACTION FOR CHILDREN SERVICES LTD"
"Bracknell Forest Council","http://opendatacommunities.org/id/unitary-authority/bracknell-forest","Bracknell Forest Council","00MA","Children Looked After","Fostering services","Independent Fostering (Non BFBC)","Contracted Services",21/05/2020 00:00:00,"6703908",6672.44,"ACTION FOR CHILDREN SERVICES LTD"
"Bracknell Forest Council","http://opendatacommunities.org/id/unitary-authority/bracknell-forest","Bracknell Forest Council","00MA","Commissioning & Service Delivery","Commissioning & Service Delivery","Grants & Donations","Contracted Services",18/05/2020 00:00:00,"6703534",3450,"ACTION FOR PEOPLE"
"Bracknell Forest Council","http://opendatacommunities.org/id/unitary-authority/bracknell-forest","Bracknell Forest Council","00MA","Commissioning & Service Delivery","Commissioning & Service Delivery","Grants & Donations","Contracted Services",17/06/2020 00:00:00,"6705103",3450,"ACTION FOR PEOPLE"
"Bracknell Forest Council","http://opendatacommunities.org/id/unitary-authority/bracknell-forest","Bracknell Forest Council","00MA","Commissioning & Service Delivery","Commissioning & Service Delivery","Grants & Donations","Contracted Services",16/04/2020 00:00:00,"6702055",3450,"ACTION FOR PEOPLE"
"Bracknell Forest Council","http://opendatacommunities.org/id/unitary-authority/bracknell-forest","Bracknell Forest Council","00MA","Social Care Activities","Social Care Activities","MC Management & Administration","Other Fees for Bought-in Services",27/02/2020 00:00:00,"6699639",895,"ACTION ON HEARING LOSS - royal national institute for deaf people"
"Bracknell Forest Council","http://opendatacommunities.org/id/unitary-authority/bracknell-forest","Bracknell Forest Council","00MA","Adults (18-64)","Long Term Support - Community:Supported Living","LD Adults 18-64 Long Term Support - Community:Supported Living","Contracted Services",23/04/2020 00:00:00,"30376288",1177.48,"CHOICE SUPPORTED LIVING- BRACKNELL"
"Bracknell Forest Council","http://opendatacommunities.org/id/unitary-authority/bracknell-forest","Bracknell Forest Council","00MA","Adults (18-64)","Long term Support - Community:Homecare","LD Adults 18-64 Long Term Support - Community:Homecare","Contracted Services",23/04/2020 00:00:00,"30376288",1453.59,"CHOICE SUPPORTED LIVING- BRACKNELL"
"Bracknell Forest Council","http://opendatacommunities.org/id/unitary-authority/bracknell-forest","Bracknell Forest Council","00MA","Adults (18-64)","Long term Support - Community:Homecare","LD Adults 18-64 Long Term Support - Community:Homecare","Contracted Services",23/04/2020 00:00:00,"30376288",1540.27,"CHOICE SUPPORTED LIVING- BRACKNELL"
"Bracknell Forest Council","http://opendatacommunities.org/id/unitary-authority/bracknell-forest","Bracknell Forest Council","00MA","Adults (18-64)","Long Term Support - Community:Supported Living","LD Adults 18-64 Long Term Support - Community:Supported Living","Contracted Services",23/04/2020 00:00:00,"30376288",2205,"CHOICE SUPPORTED LIVING- BRACKNELL"
"Bracknell Forest Council","http://opendatacommunities.org/id/unitary-authority/bracknell-forest","Bracknell Forest Council","00MA","Adults (18-64)","Long Term Support - Community:Supported Living","LD Adults 18-64 Long Term Support - Community:Supported Living","Contracted Services",04/06/2020 00:00:00,"30378064",2216.8,"CHOICE SUPPORTED LIVING- BRACKNELL"
"Bracknell Forest Council","http://opendatacommunities.org/id/unitary-authority/bracknell-forest","Bracknell Forest Council","00MA","Adults (18-64)","Long term Support - Community:Homecare","LD Adults 18-64 Long Term Support - Community:Homecare","Contracted Services",23/04/2020 00:00:00,"30376288",3121.7,"CHOICE SUPPORTED LIVING- BRACKNELL"
"Bracknell Forest Council","http://opendatacommunities.org/id/unitary-authority/bracknell-forest","Bracknell Forest Council","00MA","Adults (18-64)","Long Term Support - Community:Supported Living","LD Adults 18-64 Long Term Support - Community:Supported Living","Contracted Services",14/05/2020 00:00:00,"30377194",3287.59,"CHOICE SUPPORTED LIVING- BRACKNELL"
"Bracknell Forest Council","http://opendatacommunities.org/id/unitary-authority/bracknell-forest","Bracknell Forest Council","00MA","Adults (18-64)","Long term Support - Community:Homecare","LD Adults 18-64 Long Term Support - Community:Homecare","Contracted Services",23/04/2020 00:00:00,"30376288",3876.05,"CHOICE SUPPORTED LIVING- BRACKNELL"
"Bracknell Forest Council","http://opendatacommunities.org/id/unitary-authority/bracknell-forest","Bracknell Forest Council","00MA","Adults (18-64)","Long Term Support - Community:Supported Living","LD Adults 18-64 Long Term Support - Community:Supported Living","Contracted Services",23/04/2020 00:00:00,"30376288",4322.86,"CHOICE SUPPORTED LIVING- BRACKNELL"
"Bracknell Forest Council","http://opendatacommunities.org/id/unitary-authority/bracknell-forest","Bracknell Forest Council","00MA","Adults (18-64)","Long Term Support - Community:Supported Living","LD Adults 18-64 Long Term Support - Community:Supported Living","Contracted Services",04/06/2020 00:00:00,"30378064",4346.01,"CHOICE SUPPORTED LIVING- BRACKNELL"
"Bracknell Forest Council","http://opendatacommunities.org/id/unitary-authority/bracknell-forest","Bracknell Forest Council","00MA","Adults (18-64)","Long Term Support - Community:Supported Living","LD Adults 18-64 Long Term Support - Community:Supported Living","Contracted Services",14/05/2020 00:00:00,"30377194",4539.7,"CHOICE SUPPORTED LIVING- BRACKNELL"
"Bracknell Forest Council","http://opendatacommunities.org/id/unitary-authority/bracknell-forest","Bracknell Forest Council","00MA","Post 16 Provision","High needs budget fpr post-16 provision","SEN Non LEA Provision Post16","Voluntary Sector Service Providers",09/04/2020 00:00:00,"6702360",-136913,"ACTIVATE LEARNING"
"Bracknell Forest Council","http://opendatacommunities.org/id/unitary-authority/bracknell-forest","Bracknell Forest Council","00MA","Post 16 Provision","High needs budget fpr post-16 provision","SEN Non LEA Provision Post16","Voluntary Sector Service Providers",12/05/2020 00:00:00,"6703394",-3788,"ACTIVATE LEARNING"
"Bracknell Forest Council","http://opendatacommunities.org/id/unitary-authority/bracknell-forest","Bracknell Forest Council","00MA","Post 16 Provision","High needs budget fpr post-16 provision","SEN Non LEA Provision Post16","Voluntary Sector Service Providers",17/12/2019 00:00:00,"6703393",3788,"ACTIVATE LEARNING"
"Bracknell Forest Council","http://opendatacommunities.org/id/unitary-authority/bracknell-forest","Bracknell Forest Council","00MA","Post 16 Provision","High needs budget fpr post-16 provision","SEN Non LEA Provision Post16","Voluntary Sector Service Providers",09/04/2020 00:00:00,"6702298",90744,"ACTIVATE LEARNING"
"Bracknell Forest Council","http://opendatacommunities.org/id/unitary-authority/bracknell-forest","Bracknell Forest Council","00MA","Post 16 Provision","High needs budget fpr post-16 provision","SEN Non LEA Provision Post16","Voluntary Sector Service Providers",25/02/2020 00:00:00,"6702359",136913,"ACTIVATE LEARNING"
"Bracknell Forest Council","http://opendatacommunities.org/id/unitary-authority/bracknell-forest","Bracknell Forest Council","00MA","Management and Support Services - CYPL","Unallocated High Needs Related Expenditure","Mainstream - Element 3 top up non BFC pre 16","Wokingham DC",16/04/2020 00:00:00,"6703080",-46067.46,"ADDINGTON SCHOOL"
"Bracknell Forest Council","http://opendatacommunities.org/id/unitary-authority/bracknell-forest","Bracknell Forest Council","00MA","Post 16 Provision","High needs budget fpr post-16 provision","Mainstream - Element 3 top up non BFC post 16","Wokingham DC",16/04/2020 00:00:00,"6703080",-8590.26,"ADDINGTON SCHOOL"
"Bracknell Forest Council","http://opendatacommunities.org/id/unitary-authority/bracknell-forest","Bracknell Forest Council","00MA","Post 16 Provision","High needs budget fpr post-16 provision","Mainstream - Element 3 top up non BFC post 16","Wokingham DC",28/04/2020 00:00:00,"6702639",9241.18,"ADDINGTON SCHOOL"
"Bracknell Forest Council","http://opendatacommunities.org/id/unitary-authority/bracknell-forest","Bracknell Forest Council","00MA","Management and Support Services - CYPL","Unallocated High Needs Related Expenditure","Mainstream - Element 3 top up non BFC pre 16","Wokingham DC",28/04/2020 00:00:00,"6702639",58275.23,"ADDINGTON SCHOOL"
"Bracknell Forest Council","http://opendatacommunities.org/id/unitary-authority/bracknell-forest","Bracknell Forest Council","00MA","Social Care Activities","Social Care Activities","Mental Capacity Act & IMCA Service","Other Support to Clients",15/04/2020 00:00:00,"6701974",750,"AEB SOCIAL CARE LTD"
"Bracknell Forest Council","http://opendatacommunities.org/id/unitary-authority/bracknell-forest","Bracknell Forest Council","00MA","Older People (65+)","Long Term Support - Community:Supported Living","MC Older People 65+ Long Term Support - Community:Supported Living","Contracted Services",02/04/2020 00:00:00,"30374449",720,"AGE CONCERN BRACKNELL FOREST"
"Bracknell Forest Council","http://opendatacommunities.org/id/unitary-authority/bracknell-forest","Bracknell Forest Council","00MA","Assistive Equipment & Technology","Assistive Equipment & Technology","Assistive Equipment and Technology","Contracted Services",31/03/2020 00:00:00,"6705104",5652,"AGE UK BERKSHIRE"
"Bracknell Forest Council","http://opendatacommunities.org/id/unitary-authority/bracknell-forest","Bracknell Forest Council","00MA","Traffic Management & Road Safety","Road Safety Education","Road Safety Education","Contracted Services",01/04/2020 00:00:00,"6702782",14820,"AGILYSIS"
"Bracknell Forest Council","http://opendatacommunities.org/id/unitary-authority/bracknell-forest","Bracknell Forest Council","00MA","Older People (65+)","Long Term Support - Nursing","MC Older People 65+ Long Term Support - Nursing","Contracted Services",16/04/2020 00:00:00,"30375595",2456.44,"AILSA LODGE CARE HOME"
"Bracknell Forest Council","http://opendatacommunities.org/id/unitary-authority/bracknell-forest","Bracknell Forest Council","00MA","Older People (65+)","Long Term Support - Nursing","MC Older People 65+ Long Term Support - Nursing","Contracted Services",14/05/2020 00:00:00,"30377203",2480.12,"AILSA LODGE CARE HOME"
"Bracknell Forest Council","http://opendatacommunities.org/id/unitary-authority/bracknell-forest","Bracknell Forest Council","00MA","Older People (65+)","Long Term Support - Nursing","MC Older People 65+ Long Term Support - Nursing","Contracted Services",11/06/2020 00:00:00,"30378358",2480.12,"AILSA LODGE CARE HOME"
"Bracknell Forest Council","http://opendatacommunities.org/id/unitary-authority/bracknell-forest","Bracknell Forest Council","00MA","Older People (65+)","Long Term Support - Community:Other Long Term Care","MC Older People 65+ Long Term Support - Community:Other Long Term Care","Contracted Services",02/04/2020 00:00:00,"30374449",2567.5,"ALEXANDRA GRANGE CARE HOME"
"Bracknell Forest Council","http://opendatacommunities.org/id/unitary-authority/bracknell-forest","Bracknell Forest Council","00MA","Commissioning & Service Delivery","Commissioning & Service Delivery","Adult Social Care Pre-paid Cards","Contracted Services",03/04/2020 00:00:00,"6701489",16000,"ALLPAY LTD  **5780"
"Bracknell Forest Council","http://opendatacommunities.org/id/unitary-authority/bracknell-forest","Bracknell Forest Council","00MA","Commissioning & Service Delivery","Commissioning & Service Delivery","Receivership and Appointee Clients","Other Support to Clients",30/04/2020 00:00:00,"6703065",625.86,"ALLPAY LTD **3150"
"Bracknell Forest Council","http://opendatacommunities.org/id/unitary-authority/bracknell-forest","Bracknell Forest Council","00MA","Central Support Services - COF","Fleet","Transport Services","Diesel",31/05/2020 00:00:00,"6704364",1038.03,"ALLSTAR BUSINESS SOLUTIONS LTD"
"Bracknell Forest Council","http://opendatacommunities.org/id/unitary-authority/bracknell-forest","Bracknell Forest Council","00MA","Central Support Services - COF","Policy Unit","Programme Support","Consultants Fees",29/02/2020 00:00:00,"6701854",2102.7,"ALPINE RESOURCING LTD"
"Bracknell Forest Council","http://opendatacommunities.org/id/unitary-authority/bracknell-forest","Bracknell Forest Council","00MA","Central Support Services - COF","Policy Unit","Programme Support","Consultants Fees",31/05/2020 00:00:00,"6704968",2949.5,"ALPINE RESOURCING LTD"
"Bracknell Forest Council","http://opendatacommunities.org/id/unitary-authority/bracknell-forest","Bracknell Forest Council","00MA","Central Support Services - COF","Policy Unit","Programme Support","Consultants Fees",30/04/2020 00:00:00,"6703047",3573,"ALPINE RESOURCING LTD"
"Bracknell Forest Council","http://opendatacommunities.org/id/unitary-authority/bracknell-forest","Bracknell Forest Council","00MA","Children Looked After","Residential care","Children's Home Placements","Contracted Services",01/04/2020 00:00:00,"6701690",15000,"AMEGREEN CHILDRENS SERVICES"
"Bracknell Forest Council","http://opendatacommunities.org/id/unitary-authority/bracknell-forest","Bracknell Forest Council","00MA","Children Looked After","Residential care","Children's Home Placements","Contracted Services",01/04/2020 00:00:00,"6701691",15000,"AMEGREEN CHILDRENS SERVICES"
"Bracknell Forest Council","http://opendatacommunities.org/id/unitary-authority/bracknell-forest","Bracknell Forest Council","00MA","Children Looked After","Residential care","Children's Home Placements","Contracted Services",01/06/2020 00:00:00,"6704003",15000,"AMEGREEN CHILDRENS SERVICES"
"Bracknell Forest Council","http://opendatacommunities.org/id/unitary-authority/bracknell-forest","Bracknell Forest Council","00MA","Children Looked After","Residential care","Children's Home Placements","Contracted Services",01/06/2020 00:00:00,"6704004",15000,"AMEGREEN CHILDRENS SERVICES"
"Bracknell Forest Council","http://opendatacommunities.org/id/unitary-authority/bracknell-forest","Bracknell Forest Council","00MA","Children Looked After","Residential care","Children's Home Placements","Contracted Services",01/05/2020 00:00:00,"6702600",15500,"AMEGREEN CHILDRENS SERVICES"
"Bracknell Forest Council","http://opendatacommunities.org/id/unitary-authority/bracknell-forest","Bracknell Forest Council","00MA","Children Looked After","Residential care","Children's Home Placements","Contracted Services",01/05/2020 00:00:00,"6702601",15500,"AMEGREEN CHILDRENS SERVICES"
"Bracknell Forest Council","http://opendatacommunities.org/id/unitary-authority/bracknell-forest","Bracknell Forest Council","00MA","Children Looked After","Residential care","Children's Home Placements","Contracted Services",01/07/2020 00:00:00,"6705555",15500,"AMEGREEN CHILDRENS SERVICES"
"Bracknell Forest Council","http://opendatacommunities.org/id/unitary-authority/bracknell-forest","Bracknell Forest Council","00MA","Children Looked After","Residential care","Children's Home Placements","Contracted Services",01/07/2020 00:00:00,"6705556",15500,"AMEGREEN CHILDRENS SERVICES"
"Bracknell Forest Council","http://opendatacommunities.org/id/unitary-authority/bracknell-forest","Bracknell Forest Council","00MA","Central Support Services - COF","Construction and Property","Time Square Office","R&M - Service Contracts",10/01/2020 00:00:00,"60016368",-9033,"ANCHOR PIPEWORK LIMITED"
"Bracknell Forest Council","http://opendatacommunities.org/id/unitary-authority/bracknell-forest","Bracknell Forest Council","00MA","Secondary Schools","Delegated Primary School Budgets","Binfield CE - Primary","R&M - Reactive",06/04/2020 00:00:00,"6705141",532.5,"ANCHOR PIPEWORK LIMITED"
"Bracknell Forest Council","http://opendatacommunities.org/id/unitary-authority/bracknell-forest","Bracknell Forest Council","00MA","Secondary Schools","Delegated Primary School Budgets","Ascot Heath Primary","R&M - Reactive",17/03/2020 00:00:00,"6702971",566.28,"ANCHOR PIPEWORK LIMITED"
"Bracknell Forest Council","http://opendatacommunities.org/id/unitary-authority/bracknell-forest","Bracknell Forest Council","00MA","Special Schools","Delegated Secondary Schools Budgets","Garth Hill - Secondary","R&M - Reactive",07/04/2020 00:00:00,"6702037",573.83,"ANCHOR PIPEWORK LIMITED"
"Bracknell Forest Council","http://opendatacommunities.org/id/unitary-authority/bracknell-forest","Bracknell Forest Council","00MA","Commissioning & Service Delivery","Commissioning & Service Delivery","Property Maintenance","R&M - Reactive",11/03/2020 00:00:00,"6702857",614.51,"ANCHOR PIPEWORK LIMITED"
"Bracknell Forest Council","http://opendatacommunities.org/id/unitary-authority/bracknell-forest","Bracknell Forest Council","00MA","Recreation, Sports and Leisure","Community Centres","Community Centres Support","R&M - Reactive",16/04/2020 00:00:00,"6702563",671.5,"ANCHOR PIPEWORK LIMITED"
"Bracknell Forest Council","http://opendatacommunities.org/id/unitary-authority/bracknell-forest","Bracknell Forest Council","00MA","Central Support Services - COF","Construction and Property","Depot Facilities","R&M - Reactive",11/03/2020 00:00:00,"6702862",671.5,"ANCHOR PIPEWORK LIMITED"
"Bracknell Forest Council","http://opendatacommunities.org/id/unitary-authority/bracknell-forest","Bracknell Forest Council","00MA","Management and Support Services - CYPL","Holding Codes - net nil","Wildmoor Heath Acadamy","R&M - Reactive",20/04/2020 00:00:00,"6702595",770.25,"ANCHOR PIPEWORK LIMITED"
"Bracknell Forest Council","http://opendatacommunities.org/id/unitary-authority/bracknell-forest","Bracknell Forest Council","00MA","Management and Support Services - CYPL","Holding Codes - net nil","King's Academy Binfield","R&M - Reactive",17/03/2020 00:00:00,"6702998",814.36,"ANCHOR PIPEWORK LIMITED"
"Bracknell Forest Council","http://opendatacommunities.org/id/unitary-authority/bracknell-forest","Bracknell Forest Council","00MA","Commissioning & Service Delivery","Commissioning & Service Delivery","Property Maintenance","R&M - Reactive",17/03/2020 00:00:00,"6702991",844.8,"ANCHOR PIPEWORK LIMITED"
"Bracknell Forest Council","http://opendatacommunities.org/id/unitary-authority/bracknell-forest","Bracknell Forest Council","00MA","Homelessness","Accommodation within own Stock","Tenterden Lodge","R&M - Reactive",17/03/2020 00:00:00,"6703608",1089,"ANCHOR PIPEWORK LIMITED"
"Bracknell Forest Council","http://opendatacommunities.org/id/unitary-authority/bracknell-forest","Bracknell Forest Council","00MA","Secondary Schools","Delegated Primary School Budgets","Binfield CE - Primary","R&M - Reactive",07/04/2020 00:00:00,"6704214",1266.4,"ANCHOR PIPEWORK LIMITED"
"Bracknell Forest Council","http://opendatacommunities.org/id/unitary-authority/bracknell-forest","Bracknell Forest Council","00MA","Commissioning & Service Delivery","Commissioning & Service Delivery","Property Maintenance","R&M - Reactive",07/04/2020 00:00:00,"6702555",2003.5,"ANCHOR PIPEWORK LIMITED"
"Bracknell Forest Council","http://opendatacommunities.org/id/unitary-authority/bracknell-forest","Bracknell Forest Council","00MA","Holding Accounts not in Budget Book - COF","General Holding Accounts","Certificated Contract Payments","R&M - Service Contracts",17/06/2020 00:00:00,"6705342",2126,"ANCHOR PIPEWORK LIMITED"
"Bracknell Forest Council","http://opendatacommunities.org/id/unitary-authority/bracknell-forest","Bracknell Forest Council","00MA","Holding Accounts not in Budget Book - COF","General Holding Accounts","Repairs and Maintenance","R&M - Reactive",18/03/2020 00:00:00,"6702900",2970,"ANCHOR PIPEWORK LIMITED"
"Bracknell Forest Council","http://opendatacommunities.org/id/unitary-authority/bracknell-forest","Bracknell Forest Council","00MA","Holding Accounts not in Budget Book - COF","General Holding Accounts","Certificated Contract Payments","R&M - Service Contracts",30/04/2020 00:00:00,"6703039",13178,"ANCHOR PIPEWORK LIMITED"
"Bracknell Forest Council","http://opendatacommunities.org/id/unitary-authority/bracknell-forest","Bracknell Forest Council","00MA","Holding Accounts not in Budget Book - COF","General Holding Accounts","Repairs and Maintenance","R&M - Reactive",27/03/2020 00:00:00,"6703002",18137.17,"ANCHOR PIPEWORK LIMITED"
"Bracknell Forest Council","http://opendatacommunities.org/id/unitary-authority/bracknell-forest","Bracknell Forest Council","00MA","Planning Policy","Structure & Local Planning","Local Development framework","Consultants Fees",17/04/2020 00:00:00,"6704722",4306.9,"ANDREW ASHCROFT PLANNING LTD"
"Bracknell Forest Council","http://opendatacommunities.org/id/unitary-authority/bracknell-forest","Bracknell Forest Council","00MA","Homelessness","Prevention","Rough Sleeping Project","Other Support to Clients",15/04/2020 00:00:00,"60016301",583.33,"ANDY R MARTIN & ASSOCIATES LTD"
"Bracknell Forest Council","http://opendatacommunities.org/id/unitary-authority/bracknell-forest","Bracknell Forest Council","00MA","Property Review Feasibility","","APSE CONSULTANCY SUPPORT Q4 2019/20","Consultant Fees",20/04/2020 00:00:00,"6702357",950,"APSE"
"Bracknell Forest Council","http://opendatacommunities.org/id/unitary-authority/bracknell-forest","Bracknell Forest Council","00MA","Regulatory Services","Climate Change","Climate Change","Subscriptions",28/04/2020 00:00:00,"6703795",2255,"APSE"
"Bracknell Forest Council","http://opendatacommunities.org/id/unitary-authority/bracknell-forest","Bracknell Forest Council","00MA","Management and Support Services - CYPL","Unallocated High Needs Related Expenditure","Mainstream - Element 3 top up non BFC pre 16","Slough BC",01/04/2020 00:00:00,"6702213",8333.33,"ARBOUR VALE SCHOOL"
"Bracknell Forest Council","http://opendatacommunities.org/id/unitary-authority/bracknell-forest","Bracknell Forest Council","00MA","Management and Support Services - CYPL","Unallocated High Needs Related Expenditure","Mainstream - Element 3 top up non BFC pre 16","Slough BC",01/04/2020 00:00:00,"6702215",8333.33,"ARBOUR VALE SCHOOL"
"Bracknell Forest Council","http://opendatacommunities.org/id/unitary-authority/bracknell-forest","Bracknell Forest Council","00MA","Central Support Services - COF","Construction and Property","Depot Facilities","R&M - Service Contracts",20/05/2020 00:00:00,"6704006",510.02,"ARCHWAY (TCS) LTD"
"Bracknell Forest Council","http://opendatacommunities.org/id/unitary-authority/bracknell-forest","Bracknell Forest Council","00MA","Homelessness","Accommodation within own Stock","BFC Properties","Equipment - Purchase",19/04/2020 00:00:00,"6702227",-5233.15,"ARGOS BUSINESS"
"Bracknell Forest Council","http://opendatacommunities.org/id/unitary-authority/bracknell-forest","Bracknell Forest Council","00MA","Homelessness","Accommodation within own Stock","BFC Properties","Equipment - Purchase",19/04/2020 00:00:00,"6702225",549.96,"ARGOS BUSINESS"
"Bracknell Forest Council","http://opendatacommunities.org/id/unitary-authority/bracknell-forest","Bracknell Forest Council","00MA","Homelessness","Accommodation within own Stock","BFC Properties","Equipment - Purchase",19/04/2020 00:00:00,"6702226",5395,"ARGOS BUSINESS"
"Bracknell Forest Council","http://opendatacommunities.org/id/unitary-authority/bracknell-forest","Bracknell Forest Council","00MA","Open Spaces","Community Parks & Open Spaces","Tree Service","Contracted Services",09/06/2020 00:00:00,"6704632",9005,"ARTEMIS TREE SERVICES"
"Bracknell Forest Council","http://opendatacommunities.org/id/unitary-authority/bracknell-forest","Bracknell Forest Council","00MA","Homelessness","Prevention","Rough Sleeping Project","Other Support to Clients",06/04/2020 00:00:00,"6704611",839.4,"ARUSHA LTD"
"Bracknell Forest Council","http://opendatacommunities.org/id/unitary-authority/bracknell-forest","Bracknell Forest Council","00MA","Homelessness","Prevention","Rough Sleeping Project","Other Support to Clients",30/03/2020 00:00:00,"6701948",1174,"ARUSHA LTD"
"Bracknell Forest Council","http://opendatacommunities.org/id/unitary-authority/bracknell-forest","Bracknell Forest Council","00MA","Homelessness","Prevention","Rough Sleeping Project","Other Support to Clients",20/04/2020 00:00:00,"6704610",1493.5,"ARUSHA LTD"
"Bracknell Forest Council","http://opendatacommunities.org/id/unitary-authority/bracknell-forest","Bracknell Forest Council","00MA","Homelessness","Prevention","Rough Sleeping Project","Other Support to Clients",16/06/2020 00:00:00,"6705026",1672.72,"ARUSHA LTD"
"Bracknell Forest Council","http://opendatacommunities.org/id/unitary-authority/bracknell-forest","Bracknell Forest Council","00MA","Older People (65+)","Long Term Support - Community:Other Long Term Care","MC Older People 65+ Long Term Support - Community:Other Long Term Care","Contracted Services",09/04/2020 00:00:00,"30375025",1764.29,"ASCOT RESIDENTIAL HOMES LTD-8797"
"Bracknell Forest Council","http://opendatacommunities.org/id/unitary-authority/bracknell-forest","Bracknell Forest Council","00MA","Older People (65+)","Long Term Support - Nursing","MC Older People 65+ Long Term Support - Nursing","Contracted Services",11/06/2020 00:00:00,"30378358",2555.26,"ASCOT RESIDENTIAL HOMES LTD-8797"
"Bracknell Forest Council","http://opendatacommunities.org/id/unitary-authority/bracknell-forest","Bracknell Forest Council","00MA","Older People (65+)","Long Term Support - Nursing","MC Older People 65+ Long Term Support - Nursing","Contracted Services",16/04/2020 00:00:00,"30375595",3827.69,"ASCOT RESIDENTIAL HOMES LTD-8797"
"Bracknell Forest Council","http://opendatacommunities.org/id/unitary-authority/bracknell-forest","Bracknell Forest Council","00MA","Older People (65+)","Long Term Support - Nursing","MC Older People 65+ Long Term Support - Nursing","Contracted Services",14/05/2020 00:00:00,"30377203",3864.6,"ASCOT RESIDENTIAL HOMES LTD-8797"
"Bracknell Forest Council","http://opendatacommunities.org/id/unitary-authority/bracknell-forest","Bracknell Forest Council","00MA","Older People (65+)","Long Term Support - Nursing","MC Older People 65+ Long Term Support - Nursing","Contracted Services",11/06/2020 00:00:00,"30378358",3864.6,"ASCOT RESIDENTIAL HOMES LTD-8797"
"Bracknell Forest Council","http://opendatacommunities.org/id/unitary-authority/bracknell-forest","Bracknell Forest Council","00MA","Older People (65+)","Long Term Support - Nursing","MC Older People 65+ Long Term Support - Nursing","Contracted Services",16/04/2020 00:00:00,"30375595",4415.93,"ASCOT RESIDENTIAL HOMES LTD-8797"
"Bracknell Forest Council","http://opendatacommunities.org/id/unitary-authority/bracknell-forest","Bracknell Forest Council","00MA","Older People (65+)","Long Term Support - Nursing","MC Older People 65+ Long Term Support - Nursing","Contracted Services",14/05/2020 00:00:00,"30377203",4458.52,"ASCOT RESIDENTIAL HOMES LTD-8797"
"Bracknell Forest Council","http://opendatacommunities.org/id/unitary-authority/bracknell-forest","Bracknell Forest Council","00MA","Older People (65+)","Long Term Support - Nursing","MC Older People 65+ Long Term Support - Nursing","Contracted Services",16/04/2020 00:00:00,"30375595",4576.98,"ASCOT RESIDENTIAL HOMES LTD-8797"
"Bracknell Forest Council","http://opendatacommunities.org/id/unitary-authority/bracknell-forest","Bracknell Forest Council","00MA","Older People (65+)","Long Term Support - Nursing","MC Older People 65+ Long Term Support - Nursing","Contracted Services",14/05/2020 00:00:00,"30377203",4621.12,"ASCOT RESIDENTIAL HOMES LTD-8797"
"Bracknell Forest Council","http://opendatacommunities.org/id/unitary-authority/bracknell-forest","Bracknell Forest Council","00MA","Older People (65+)","Long Term Support - Nursing","MC Older People 65+ Long Term Support - Nursing","Contracted Services",11/06/2020 00:00:00,"30378358",4621.12,"ASCOT RESIDENTIAL HOMES LTD-8797"
"Bracknell Forest Council","http://opendatacommunities.org/id/unitary-authority/bracknell-forest","Bracknell Forest Council","00MA","Older People (65+)","Long Term Support - Nursing","MC Older People 65+ Long Term Support - Nursing","Contracted Services",16/04/2020 00:00:00,"30375595",4834.97,"ASCOT RESIDENTIAL HOMES LTD-8797"
"Bracknell Forest Council","http://opendatacommunities.org/id/unitary-authority/bracknell-forest","Bracknell Forest Council","00MA","Older People (65+)","Long Term Support - Nursing","MC Older People 65+ Long Term Support - Nursing","Contracted Services",14/05/2020 00:00:00,"30377203",4881.6,"ASCOT RESIDENTIAL HOMES LTD-8797"
"Bracknell Forest Council","http://opendatacommunities.org/id/unitary-authority/bracknell-forest","Bracknell Forest Council","00MA","Older People (65+)","Long Term Support - Nursing","MC Older People 65+ Long Term Support - Nursing","Contracted Services",11/06/2020 00:00:00,"30378358",4881.6,"ASCOT RESIDENTIAL HOMES LTD-8797"
"Bracknell Forest Council","http://opendatacommunities.org/id/unitary-authority/bracknell-forest","Bracknell Forest Council","00MA","Commissioning & Service Delivery","Commissioning & Service Delivery","Infection Control Grant","Contracted Services",11/06/2020 00:00:00,"60016474",13194.65,"ASCOT RESIDENTIAL HOMES LTD-8797"
"Bracknell Forest Council","http://opendatacommunities.org/id/unitary-authority/bracknell-forest","Bracknell Forest Council","00MA","Older People (65+)","Long term Support - Residential","MC Older People 65+ Long Term Support - Residential","Contracted Services",14/05/2020 00:00:00,"30377203",15600,"ASCOT RESIDENTIAL HOMES LTD-8797"
"Bracknell Forest Council","http://opendatacommunities.org/id/unitary-authority/bracknell-forest","Bracknell Forest Council","00MA","Commissioning & Service Delivery","Commissioning & Service Delivery","Infection Control Grant","Contracted Services",11/06/2020 00:00:00,"60016473",20583.65,"ASCOT RESIDENTIAL HOMES LTD-8797"
"Bracknell Forest Council","http://opendatacommunities.org/id/unitary-authority/bracknell-forest","Bracknell Forest Council","00MA","Older People (65+)","Long term Support - Residential","PS Older People 65+ Long Term Support - Residential","Contracted Services",16/04/2020 00:00:00,"30375595",2598.43,"ASHGROVE CARE HOME"
"Bracknell Forest Council","http://opendatacommunities.org/id/unitary-authority/bracknell-forest","Bracknell Forest Council","00MA","Older People (65+)","Long term Support - Residential","PS Older People 65+ Long Term Support - Residential","Contracted Services",14/05/2020 00:00:00,"30377203",2623.48,"ASHGROVE CARE HOME"
"Bracknell Forest Council","http://opendatacommunities.org/id/unitary-authority/bracknell-forest","Bracknell Forest Council","00MA","Older People (65+)","Long term Support - Residential","PS Older People 65+ Long Term Support - Residential","Contracted Services",11/06/2020 00:00:00,"30378358",2623.48,"ASHGROVE CARE HOME"
"Bracknell Forest Council","http://opendatacommunities.org/id/unitary-authority/bracknell-forest","Bracknell Forest Council","00MA","Libraries","Stock Ordering, Cataloguing & Distribution","Library Book Fund","Audio/Visual materials",23/03/2020 00:00:00,"6701599",602.28,"ASKEWS & HOLTS LIBRARY SERVICE"
"Bracknell Forest Council","http://opendatacommunities.org/id/unitary-authority/bracknell-forest","Bracknell Forest Council","00MA","Libraries","Stock Ordering, Cataloguing & Distribution","Library Book Fund","Audio/Visual materials",23/03/2020 00:00:00,"6701599",891.3,"ASKEWS & HOLTS LIBRARY SERVICE"
"Bracknell Forest Council","http://opendatacommunities.org/id/unitary-authority/bracknell-forest","Bracknell Forest Council","00MA","Libraries","Stock Ordering, Cataloguing & Distribution","Library Book Fund","Audio/Visual materials",08/06/2020 00:00:00,"6705758",1000.5,"ASKEWS & HOLTS LIBRARY SERVICE"
"Bracknell Forest Council","http://opendatacommunities.org/id/unitary-authority/bracknell-forest","Bracknell Forest Council","00MA","Libraries","Stock Ordering, Cataloguing & Distribution","Library Book Fund","Audio/Visual materials",25/05/2020 00:00:00,"6704141",1003.03,"ASKEWS & HOLTS LIBRARY SERVICE"
"Bracknell Forest Council","http://opendatacommunities.org/id/unitary-authority/bracknell-forest","Bracknell Forest Council","00MA","Libraries","Stock Ordering, Cataloguing & Distribution","Library Book Fund","Audio/Visual materials",08/06/2020 00:00:00,"6705758",1634.29,"ASKEWS & HOLTS LIBRARY SERVICE"
"Bracknell Forest Council","http://opendatacommunities.org/id/unitary-authority/bracknell-forest","Bracknell Forest Council","00MA","Libraries","Stock Ordering, Cataloguing & Distribution","Library Book Fund","Audio/Visual materials",08/06/2020 00:00:00,"6705758",2820.39,"ASKEWS & HOLTS LIBRARY SERVICE"
"Bracknell Forest Council","http://opendatacommunities.org/id/unitary-authority/bracknell-forest","Bracknell Forest Council","00MA","Libraries","Stock Ordering, Cataloguing & Distribution","Library Book Fund","Audio/Visual materials",08/06/2020 00:00:00,"6705758",2865.38,"ASKEWS & HOLTS LIBRARY SERVICE"
"Bracknell Forest Council","http://opendatacommunities.org/id/unitary-authority/bracknell-forest","Bracknell Forest Council","00MA","Libraries","Stock Ordering, Cataloguing & Distribution","Library Book Fund","Audio/Visual materials",08/06/2020 00:00:00,"6704571",3600,"ASKEWS & HOLTS LIBRARY SERVICE"
"Bracknell Forest Council","http://opendatacommunities.org/id/unitary-authority/bracknell-forest","Bracknell Forest Council","00MA","Other Education and Community Budget","Service strategy and other education functions","Education Psychology Service","Recruitment Expenses",06/03/2020 00:00:00,"6704268",830,"ASSOCIATION OF EDUCATIONAL PSYCHOLOGISTS"
"Bracknell Forest Council","http://opendatacommunities.org/id/unitary-authority/bracknell-forest","Bracknell Forest Council","00MA","Sexual Health Services","Contraception","GP LARC Payments","Contracted Services",13/05/2020 00:00:00,"6703623",4245.5,"ASSURA READING LLP"
"Bracknell Forest Council","http://opendatacommunities.org/id/unitary-authority/bracknell-forest","Bracknell Forest Council","00MA","Older People (65+)","Short Term Support Other","MC Older People 65+ Other Short Term support","Contracted Services",02/04/2020 00:00:00,"30374451",-3171.43,"ASTBURY MANOR CARE HOME"
"Bracknell Forest Council","http://opendatacommunities.org/id/unitary-authority/bracknell-forest","Bracknell Forest Council","00MA","Older People (65+)","Long term Support - Residential","MC Older People 65+ Long Term Support - Residential","Contracted Services",14/05/2020 00:00:00,"30377203",-2241.57,"ASTBURY MANOR CARE HOME"
"Bracknell Forest Council","http://opendatacommunities.org/id/unitary-authority/bracknell-forest","Bracknell Forest Council","00MA","Older People (65+)","Long term Support - Residential","MC Older People 65+ Long Term Support - Residential","Contracted Services",23/04/2020 00:00:00,"30376289",1057.15,"ASTBURY MANOR CARE HOME"
"Bracknell Forest Council","http://opendatacommunities.org/id/unitary-authority/bracknell-forest","Bracknell Forest Council","00MA","Older People (65+)","Long term Support - Residential","MC Older People 65+ Long Term Support - Residential","Contracted Services",11/06/2020 00:00:00,"30378358",1145,"ASTBURY MANOR CARE HOME"
"Bracknell Forest Council","http://opendatacommunities.org/id/unitary-authority/bracknell-forest","Bracknell Forest Council","00MA","Older People (65+)","Long term Support - Residential","MC Older People 65+ Long Term Support - Residential","Contracted Services",14/05/2020 00:00:00,"30377203",1182.63,"ASTBURY MANOR CARE HOME"
"Bracknell Forest Council","http://opendatacommunities.org/id/unitary-authority/bracknell-forest","Bracknell Forest Council","00MA","Older People (65+)","Short Term Support Other","MC Older People 65+ Other Short Term support","Contracted Services",11/06/2020 00:00:00,"30378358",1935.21,"ASTBURY MANOR CARE HOME"
"Bracknell Forest Council","http://opendatacommunities.org/id/unitary-authority/bracknell-forest","Bracknell Forest Council","00MA","Adults (18-64)","Long term Support - Residential","MC Adults 18-64 Long Term Support - Residential","Contracted Services",16/04/2020 00:00:00,"30375595",2960,"ASTBURY MANOR CARE HOME"
"Bracknell Forest Council","http://opendatacommunities.org/id/unitary-authority/bracknell-forest","Bracknell Forest Council","00MA","Adults (18-64)","Long term Support - Residential","MC Adults 18-64 Long Term Support - Residential","Contracted Services",14/05/2020 00:00:00,"30377203",2960,"ASTBURY MANOR CARE HOME"
"Bracknell Forest Council","http://opendatacommunities.org/id/unitary-authority/bracknell-forest","Bracknell Forest Council","00MA","Adults (18-64)","Long term Support - Residential","MC Adults 18-64 Long Term Support - Residential","Contracted Services",11/06/2020 00:00:00,"30378358",2960,"ASTBURY MANOR CARE HOME"
"Bracknell Forest Council","http://opendatacommunities.org/id/unitary-authority/bracknell-forest","Bracknell Forest Council","00MA","Older People (65+)","Long term Support - Residential","MC Older People 65+ Long Term Support - Residential","Contracted Services",16/04/2020 00:00:00,"30375595",2981.57,"ASTBURY MANOR CARE HOME"
"Bracknell Forest Council","http://opendatacommunities.org/id/unitary-authority/bracknell-forest","Bracknell Forest Council","00MA","Older People (65+)","Long term Support - Residential","MC Older People 65+ Long Term Support - Residential","Contracted Services",16/04/2020 00:00:00,"30375595",2981.57,"ASTBURY MANOR CARE HOME"
"Bracknell Forest Council","http://opendatacommunities.org/id/unitary-authority/bracknell-forest","Bracknell Forest Council","00MA","Older People (65+)","Long term Support - Residential","PS Older People 65+ Long Term Support - Residential","Contracted Services",23/04/2020 00:00:00,"30376289",3000,"ASTBURY MANOR CARE HOME"
"Bracknell Forest Council","http://opendatacommunities.org/id/unitary-authority/bracknell-forest","Bracknell Forest Council","00MA","Older People (65+)","Long term Support - Residential","PS Older People 65+ Long Term Support - Residential","Contracted Services",16/04/2020 00:00:00,"30375595",3725,"ASTBURY MANOR CARE HOME"
"Bracknell Forest Council","http://opendatacommunities.org/id/unitary-authority/bracknell-forest","Bracknell Forest Council","00MA","Older People (65+)","Long term Support - Residential","PS Older People 65+ Long Term Support - Residential","Contracted Services",14/05/2020 00:00:00,"30377203",3980,"ASTBURY MANOR CARE HOME"
"Bracknell Forest Council","http://opendatacommunities.org/id/unitary-authority/bracknell-forest","Bracknell Forest Council","00MA","Older People (65+)","Long term Support - Residential","PS Older People 65+ Long Term Support - Residential","Contracted Services",11/06/2020 00:00:00,"30378358",3980,"ASTBURY MANOR CARE HOME"
"Bracknell Forest Council","http://opendatacommunities.org/id/unitary-authority/bracknell-forest","Bracknell Forest Council","00MA","Older People (65+)","Long term Support - Residential","MC Older People 65+ Long Term Support - Residential","Contracted Services",16/04/2020 00:00:00,"30375595",4633.51,"ASTBURY MANOR CARE HOME"
"Bracknell Forest Council","http://opendatacommunities.org/id/unitary-authority/bracknell-forest","Bracknell Forest Council","00MA","Older People (65+)","Long term Support - Residential","MC Older People 65+ Long Term Support - Residential","Contracted Services",14/05/2020 00:00:00,"30377203",4678.2,"ASTBURY MANOR CARE HOME"
"Bracknell Forest Council","http://opendatacommunities.org/id/unitary-authority/bracknell-forest","Bracknell Forest Council","00MA","Older People (65+)","Long term Support - Residential","MC Older People 65+ Long Term Support - Residential","Contracted Services",11/06/2020 00:00:00,"30378358",4678.2,"ASTBURY MANOR CARE HOME"
"Bracknell Forest Council","http://opendatacommunities.org/id/unitary-authority/bracknell-forest","Bracknell Forest Council","00MA","Older People (65+)","Long term Support - Residential","MC Older People 65+ Long Term Support - Residential","Contracted Services",16/04/2020 00:00:00,"30375595",5237.89,"ASTBURY MANOR CARE HOME"
"Bracknell Forest Council","http://opendatacommunities.org/id/unitary-authority/bracknell-forest","Bracknell Forest Council","00MA","Older People (65+)","Long term Support - Residential","MC Older People 65+ Long Term Support - Residential","Contracted Services",14/05/2020 00:00:00,"30377203",5288.4,"ASTBURY MANOR CARE HOME"
"Bracknell Forest Council","http://opendatacommunities.org/id/unitary-authority/bracknell-forest","Bracknell Forest Council","00MA","Older People (65+)","Long term Support - Residential","MC Older People 65+ Long Term Support - Residential","Contracted Services",11/06/2020 00:00:00,"30378358",5288.4,"ASTBURY MANOR CARE HOME"
"Bracknell Forest Council","http://opendatacommunities.org/id/unitary-authority/bracknell-forest","Bracknell Forest Council","00MA","Older People (65+)","Long term Support - Residential","MC Older People 65+ Long Term Support - Residential","Contracted Services",02/04/2020 00:00:00,"30374451",5920,"ASTBURY MANOR CARE HOME"
"Bracknell Forest Council","http://opendatacommunities.org/id/unitary-authority/bracknell-forest","Bracknell Forest Council","00MA","Older People (65+)","Long Term Support - Community:Other Long Term Care","MC Older People 65+ Long Term Support - Community:Other Long Term Care","Contracted Services",09/04/2020 00:00:00,"30375025",6342.86,"ASTBURY MANOR CARE HOME"
"Bracknell Forest Council","http://opendatacommunities.org/id/unitary-authority/bracknell-forest","Bracknell Forest Council","00MA","Older People (65+)","Long term Support - Residential","PS Older People 65+ Long Term Support - Residential","Contracted Services",02/04/2020 00:00:00,"30374451",7188.57,"ASTBURY MANOR CARE HOME"
"Bracknell Forest Council","http://opendatacommunities.org/id/unitary-authority/bracknell-forest","Bracknell Forest Council","00MA","Older People (65+)","Long term Support - Residential","MC Older People 65+ Long Term Support - Residential","Contracted Services",16/04/2020 00:00:00,"30375595",14060,"ASTBURY MANOR CARE HOME"
"Bracknell Forest Council","http://opendatacommunities.org/id/unitary-authority/bracknell-forest","Bracknell Forest Council","00MA","Older People (65+)","Long term Support - Residential","PS Older People 65+ Long Term Support - Residential","Contracted Services",14/05/2020 00:00:00,"30377203",14800,"ASTBURY MANOR CARE HOME"
"Bracknell Forest Council","http://opendatacommunities.org/id/unitary-authority/bracknell-forest","Bracknell Forest Council","00MA","Older People (65+)","Long term Support - Residential","PS Older People 65+ Long Term Support - Residential","Contracted Services",11/06/2020 00:00:00,"30378358",14800,"ASTBURY MANOR CARE HOME"
"Bracknell Forest Council","http://opendatacommunities.org/id/unitary-authority/bracknell-forest","Bracknell Forest Council","00MA","Commissioning & Service Delivery","Commissioning & Service Delivery","Infection Control Grant","Contracted Services",23/06/2020 00:00:00,"60016502",33778.29,"ASTBURY MANOR CARE HOME"
"Bracknell Forest Council","http://opendatacommunities.org/id/unitary-authority/bracknell-forest","Bracknell Forest Council","00MA","Older People (65+)","Long term Support - Residential","MC Older People 65+ Long Term Support - Residential","Contracted Services",14/05/2020 00:00:00,"30377203",41440,"ASTBURY MANOR CARE HOME"
"Bracknell Forest Council","http://opendatacommunities.org/id/unitary-authority/bracknell-forest","Bracknell Forest Council","00MA","Older People (65+)","Long term Support - Residential","MC Older People 65+ Long Term Support - Residential","Contracted Services",11/06/2020 00:00:00,"30378358",41440,"ASTBURY MANOR CARE HOME"
"Bracknell Forest Council","http://opendatacommunities.org/id/unitary-authority/bracknell-forest","Bracknell Forest Council","00MA","Older People (65+)","Long term Support - Residential","PS Older People 65+ Long Term Support - Residential","Contracted Services",16/04/2020 00:00:00,"30375595",42180,"ASTBURY MANOR CARE HOME"
"Bracknell Forest Council","http://opendatacommunities.org/id/unitary-authority/bracknell-forest","Bracknell Forest Council","00MA","Structural Maintenance","Bridges","Bridges - Other Roads","Consultants Fees",13/05/2020 00:00:00,"6704453",731.83,"ATKINS LTD"
"Bracknell Forest Council","http://opendatacommunities.org/id/unitary-authority/bracknell-forest","Bracknell Forest Council","00MA","Improvements & Capitalised Repairs (Council Wide)","","EASTHAMPSTEAD MOBILE HOME PARK","Consultant Fees",22/05/2020 00:00:00,"6705079",1172.81,"ATKINS LTD"
"Bracknell Forest Council","http://opendatacommunities.org/id/unitary-authority/bracknell-forest","Bracknell Forest Council","00MA","Improvements & Capitalised Repairs (Council Wide)","","EASTHAMPSTEAD MOBILE HOME PARK","Consultant Fees",19/06/2020 00:00:00,"6705081",1172.81,"ATKINS LTD"
"Bracknell Forest Council","http://opendatacommunities.org/id/unitary-authority/bracknell-forest","Bracknell Forest Council","00MA","Holding Accounts not in Budget Book - COF","General Holding Accounts","Repairs and Maintenance","Consultants Fees",04/03/2020 00:00:00,"6702100",1315.13,"ATKINS LTD"
"Bracknell Forest Council","http://opendatacommunities.org/id/unitary-authority/bracknell-forest","Bracknell Forest Council","00MA","Improvements & Capitalised Repairs (Council Wide)","","FOREST CARE & EDS OFFICE RELOCATION","Consultant Fees",29/04/2020 00:00:00,"6705076",1432.6,"ATKINS LTD"
"Bracknell Forest Council","http://opendatacommunities.org/id/unitary-authority/bracknell-forest","Bracknell Forest Council","00MA","Ascot Heath Junior-MTC","","OWLSMOOR SCHOOL HEATING","Consultant Fees",30/04/2020 00:00:00,"6705072",1604,"ATKINS LTD"
"Bracknell Forest Council","http://opendatacommunities.org/id/unitary-authority/bracknell-forest","Bracknell Forest Council","00MA","Uplands Primary School and Nursery-MTC","","UPLANDS PLAYGROUND RE SURFACING","Consultant Fees",29/04/2020 00:00:00,"6705077",1883.39,"ATKINS LTD"
"Bracknell Forest Council","http://opendatacommunities.org/id/unitary-authority/bracknell-forest","Bracknell Forest Council","00MA","Holding Accounts not in Budget Book - COF","General Holding Accounts","Repairs and Maintenance","Consultants Fees",05/03/2020 00:00:00,"6702098",2227.32,"ATKINS LTD"
"Bracknell Forest Council","http://opendatacommunities.org/id/unitary-authority/bracknell-forest","Bracknell Forest Council","00MA","Wooden Hill Primary","","WOODEN HILL","Consultant Fees",29/04/2020 00:00:00,"6705075",3201.31,"ATKINS LTD"
"Bracknell Forest Council","http://opendatacommunities.org/id/unitary-authority/bracknell-forest","Bracknell Forest Council","00MA","Structural Maintenance","Bridges","Bridges","Consultants Fees",13/05/2020 00:00:00,"6704453",4953.01,"ATKINS LTD"
"Bracknell Forest Council","http://opendatacommunities.org/id/unitary-authority/bracknell-forest","Bracknell Forest Council","00MA","Homelessness","Prevention","Housing Management Operational Costs","Agency",22/05/2020 00:00:00,"6703895",6210,"ATKINS LTD"
"Bracknell Forest Council","http://opendatacommunities.org/id/unitary-authority/bracknell-forest","Bracknell Forest Council","00MA","Homelessness","Prevention","Housing Management Operational Costs","Agency",30/04/2020 00:00:00,"6703058",6480,"ATKINS LTD"
"Bracknell Forest Council","http://opendatacommunities.org/id/unitary-authority/bracknell-forest","Bracknell Forest Council","00MA","Central Support Services - COF","Construction and Property","Construction & Maintenance","Agency",29/04/2020 00:00:00,"6702698",8087.5,"ATKINS LTD"
"Bracknell Forest Council","http://opendatacommunities.org/id/unitary-authority/bracknell-forest","Bracknell Forest Council","00MA","Central Support Services - COF","Construction and Property","Construction & Maintenance","Agency",22/05/2020 00:00:00,"6703858",8087.5,"ATKINS LTD"
"Bracknell Forest Council","http://opendatacommunities.org/id/unitary-authority/bracknell-forest","Bracknell Forest Council","00MA","Central Support Services - COF","Construction and Property","Construction & Maintenance","Agency",01/06/2020 00:00:00,"6705080",9662.73,"ATKINS LTD"
"Bracknell Forest Council","http://opendatacommunities.org/id/unitary-authority/bracknell-forest","Bracknell Forest Council","00MA","Improvements & Capitalised Repairs (Council Wide)","","KLARGESTER TANK","Consultant Fees",29/04/2020 00:00:00,"6705074",11130.56,"ATKINS LTD"
"Bracknell Forest Council","http://opendatacommunities.org/id/unitary-authority/bracknell-forest","Bracknell Forest Council","00MA","Cemeteries, Crematoria & Mortuary Services","Cemeteries & Crematorium","Easthampstead Park Cemetery & Crematorium","Cost of Goods Sold",12/06/2020 00:00:00,"6704837",678,"ATTGROW HORTICULTURAL SUPPLIE"
"Bracknell Forest Council","http://opendatacommunities.org/id/unitary-authority/bracknell-forest","Bracknell Forest Council","00MA","Adults (18-64)","Long term Support - Residential","LD Adults 18-64 Long Term Support - Residential","Contracted Services",16/04/2020 00:00:00,"30375595",6382.09,"AUTISM AT KINGWOOD"
"Bracknell Forest Council","http://opendatacommunities.org/id/unitary-authority/bracknell-forest","Bracknell Forest Council","00MA","Adults (18-64)","Long term Support - Residential","LD Adults 18-64 Long Term Support - Residential","Contracted Services",14/05/2020 00:00:00,"30377203",6443.64,"AUTISM AT KINGWOOD"
"Bracknell Forest Council","http://opendatacommunities.org/id/unitary-authority/bracknell-forest","Bracknell Forest Council","00MA","Adults (18-64)","Long term Support - Residential","LD Adults 18-64 Long Term Support - Residential","Contracted Services",11/06/2020 00:00:00,"30378358",6443.64,"AUTISM AT KINGWOOD"
"Bracknell Forest Council","http://opendatacommunities.org/id/unitary-authority/bracknell-forest","Bracknell Forest Council","00MA","Adults (18-64)","Long term Support - Residential","LD Adults 18-64 Long Term Support - Residential","Contracted Services",16/04/2020 00:00:00,"30375595",5394.21,"AUTISM SPECIALISED CARE HOMES LTD"
"Bracknell Forest Council","http://opendatacommunities.org/id/unitary-authority/bracknell-forest","Bracknell Forest Council","00MA","Adults (18-64)","Long term Support - Residential","LD Adults 18-64 Long Term Support - Residential","Contracted Services",14/05/2020 00:00:00,"30377203",5446.24,"AUTISM SPECIALISED CARE HOMES LTD"
"Bracknell Forest Council","http://opendatacommunities.org/id/unitary-authority/bracknell-forest","Bracknell Forest Council","00MA","Adults (18-64)","Long term Support - Residential","LD Adults 18-64 Long Term Support - Residential","Contracted Services",11/06/2020 00:00:00,"30378358",5446.24,"AUTISM SPECIALISED CARE HOMES LTD"
"Bracknell Forest Council","http://opendatacommunities.org/id/unitary-authority/bracknell-forest","Bracknell Forest Council","00MA","ICT Transformation Bids","","6 DAYS PROFESSIONAL SERVICES APRIL 20","Other Direct Expenses",30/04/2020 00:00:00,"6702983",4800,"AUTOMATED INTELLIGENCE LTD"
"Bracknell Forest Council","http://opendatacommunities.org/id/unitary-authority/bracknell-forest","Bracknell Forest Council","00MA","ICT Transformation Bids","","PROFESSIONAL SERVICE MAY 20","Other Direct Expenses",31/05/2020 00:00:00,"6704293",8600,"AUTOMATED INTELLIGENCE LTD"
"Bracknell Forest Council","http://opendatacommunities.org/id/unitary-authority/bracknell-forest","Bracknell Forest Council","00MA","Adults (18-64)","Long Term Support - Nursing","LD Adults 18-64 Long Term Support - Nursing","Contracted Services",16/04/2020 00:00:00,"30375595",3437.18,"AVALON NURSING HOME"
"Bracknell Forest Council","http://opendatacommunities.org/id/unitary-authority/bracknell-forest","Bracknell Forest Council","00MA","Adults (18-64)","Long Term Support - Nursing","LD Adults 18-64 Long Term Support - Nursing","Contracted Services",14/05/2020 00:00:00,"30377203",3470.32,"AVALON NURSING HOME"
"Bracknell Forest Council","http://opendatacommunities.org/id/unitary-authority/bracknell-forest","Bracknell Forest Council","00MA","Adults (18-64)","Long Term Support - Nursing","LD Adults 18-64 Long Term Support - Nursing","Contracted Services",11/06/2020 00:00:00,"30378358",3470.32,"AVALON NURSING HOME"
"Bracknell Forest Council","http://opendatacommunities.org/id/unitary-authority/bracknell-forest","Bracknell Forest Council","00MA","Adults (18-64)","Long term Support - Residential","LD Adults 18-64 Long Term Support - Residential","Contracted Services",16/04/2020 00:00:00,"30375595",6179.02,"AVON AUTISTIC FOUNDATION"
"Bracknell Forest Council","http://opendatacommunities.org/id/unitary-authority/bracknell-forest","Bracknell Forest Council","00MA","Adults (18-64)","Long term Support - Residential","LD Adults 18-64 Long Term Support - Residential","Contracted Services",14/05/2020 00:00:00,"30377203",6238.6,"AVON AUTISTIC FOUNDATION"
"Bracknell Forest Council","http://opendatacommunities.org/id/unitary-authority/bracknell-forest","Bracknell Forest Council","00MA","Adults (18-64)","Long term Support - Residential","LD Adults 18-64 Long Term Support - Residential","Contracted Services",11/06/2020 00:00:00,"30378358",6238.6,"AVON AUTISTIC FOUNDATION"
"Bracknell Forest Council","http://opendatacommunities.org/id/unitary-authority/bracknell-forest","Bracknell Forest Council","00MA","Central Support Services - COF","Fleet","Transport Services","Materials",23/05/2020 00:00:00,"6704583",660,"B HAMBLIN LTD"
"Bracknell Forest Council","http://opendatacommunities.org/id/unitary-authority/bracknell-forest","Bracknell Forest Council","00MA","Sure Start Children's Centres","Children's centres - direct","EH North Locality","Furniture - Purchase",03/06/2020 00:00:00,"6704297",562.75,"BACK CARE SOLUTIONS LTD"
"Bracknell Forest Council","http://opendatacommunities.org/id/unitary-authority/bracknell-forest","Bracknell Forest Council","00MA","Children Looked After","Residential care","Children's Home Placements","Contracted Services",29/05/2020 00:00:00,"6704230",9662.83,"BACK ON TRACK ACCOMMODATION"
"Bracknell Forest Council","http://opendatacommunities.org/id/unitary-authority/bracknell-forest","Bracknell Forest Council","00MA","Children Looked After","Residential care","Children's Home Placements","Contracted Services",02/06/2020 00:00:00,"6704381",15257.1,"BACK ON TRACK ACCOMMODATION"
"Bracknell Forest Council","http://opendatacommunities.org/id/unitary-authority/bracknell-forest","Bracknell Forest Council","00MA","Children Looked After","Other services for LAC","LAC- Over 11s Expenditure","Other Support to Clients",01/05/2020 00:00:00,"6704799",569.5,"BACK TO BACK CARE"
"Bracknell Forest Council","http://opendatacommunities.org/id/unitary-authority/bracknell-forest","Bracknell Forest Council","00MA","Children Looked After","Other services for LAC","LAC - Semi Independent Living","Contracted Services",01/02/2020 00:00:00,"6705739",1674.2,"BACK TO BACK CARE"
"Bracknell Forest Council","http://opendatacommunities.org/id/unitary-authority/bracknell-forest","Bracknell Forest Council","00MA","Children Looked After","Other services for LAC","LAC - Semi Independent Living","Contracted Services",01/03/2020 00:00:00,"6703094",4799.02,"BACK TO BACK CARE"
"Bracknell Forest Council","http://opendatacommunities.org/id/unitary-authority/bracknell-forest","Bracknell Forest Council","00MA","Children Looked After","Other services for LAC","LAC - Semi Independent Living","Contracted Services",01/02/2020 00:00:00,"6701989",4901.18,"BACK TO BACK CARE"
"Bracknell Forest Council","http://opendatacommunities.org/id/unitary-authority/bracknell-forest","Bracknell Forest Council","00MA","Children Looked After","Other services for LAC","LAC - Semi Independent Living","Contracted Services",01/04/2020 00:00:00,"6703974",5022.6,"BACK TO BACK CARE"
"Bracknell Forest Council","http://opendatacommunities.org/id/unitary-authority/bracknell-forest","Bracknell Forest Council","00MA","Children Looked After","Other services for LAC","LAC - Semi Independent Living","Contracted Services",01/03/2020 00:00:00,"6701788",5144.02,"BACK TO BACK CARE"
"Bracknell Forest Council","http://opendatacommunities.org/id/unitary-authority/bracknell-forest","Bracknell Forest Council","00MA","Children Looked After","Other services for LAC","LAC - Semi Independent Living","Contracted Services",01/05/2020 00:00:00,"6704803",5328,"BACK TO BACK CARE"
"Bracknell Forest Council","http://opendatacommunities.org/id/unitary-authority/bracknell-forest","Bracknell Forest Council","00MA","Children Looked After","Other services for LAC","LAC - Semi Independent Living","Contracted Services",01/04/2020 00:00:00,"6704251",10204.02,"BACK TO BACK CARE"
"Bracknell Forest Council","http://opendatacommunities.org/id/unitary-authority/bracknell-forest","Bracknell Forest Council","00MA","Children Looked After","Residential care","Children's Home Placements","Contracted Services",01/04/2020 00:00:00,"6704262",15462.84,"BACK TO BACK CARE"
"Bracknell Forest Council","http://opendatacommunities.org/id/unitary-authority/bracknell-forest","Bracknell Forest Council","00MA","NHS Health Check Programme","NHS Health Check Programme","GP Health Checks","Contracted Services",17/04/2020 00:00:00,"6704779",800,"BALMORE PARK SURGERY"
"Bracknell Forest Council","http://opendatacommunities.org/id/unitary-authority/bracknell-forest","Bracknell Forest Council","00MA","Sexual Health Services","Contraception","GP LARC Payments","Contracted Services",17/04/2020 00:00:00,"6704779",2211,"BALMORE PARK SURGERY"
"Bracknell Forest Council","http://opendatacommunities.org/id/unitary-authority/bracknell-forest","Bracknell Forest Council","00MA","Older People (65+)","Long Term Support - Nursing","MC Older People 65+ Long Term Support - Nursing","Contracted Services",11/06/2020 00:00:00,"30378358",1380.21,"BARCHESTER HEALTHCARE LTD"
"Bracknell Forest Council","http://opendatacommunities.org/id/unitary-authority/bracknell-forest","Bracknell Forest Council","00MA","Older People (65+)","Long Term Support - Nursing","MC Older People 65+ Long Term Support - Nursing","Contracted Services",14/05/2020 00:00:00,"30377203",2330.77,"BARCHESTER HEALTHCARE LTD"
"Bracknell Forest Council","http://opendatacommunities.org/id/unitary-authority/bracknell-forest","Bracknell Forest Council","00MA","Older People (65+)","Long Term Support - Nursing","MC Older People 65+ Long Term Support - Nursing","Contracted Services",16/04/2020 00:00:00,"30375595",2442.86,"BARCHESTER HEALTHCARE LTD"
"Bracknell Forest Council","http://opendatacommunities.org/id/unitary-authority/bracknell-forest","Bracknell Forest Council","00MA","Older People (65+)","Long Term Support - Nursing","PS Older People 65+ Long Term Support - Nursing","Contracted Services",16/04/2020 00:00:00,"30375595",2788.73,"BARCHESTER HEALTHCARE LTD"
"Bracknell Forest Council","http://opendatacommunities.org/id/unitary-authority/bracknell-forest","Bracknell Forest Council","00MA","Older People (65+)","Long Term Support - Nursing","PS Older People 65+ Long Term Support - Nursing","Contracted Services",14/05/2020 00:00:00,"30377203",2815.64,"BARCHESTER HEALTHCARE LTD"
"Bracknell Forest Council","http://opendatacommunities.org/id/unitary-authority/bracknell-forest","Bracknell Forest Council","00MA","Older People (65+)","Long Term Support - Nursing","PS Older People 65+ Long Term Support - Nursing","Contracted Services",11/06/2020 00:00:00,"30378358",2815.64,"BARCHESTER HEALTHCARE LTD"
"Bracknell Forest Council","http://opendatacommunities.org/id/unitary-authority/bracknell-forest","Bracknell Forest Council","00MA","Older People (65+)","Long Term Support - Nursing","MC Older People 65+ Long Term Support - Nursing","Contracted Services",16/04/2020 00:00:00,"30375595",3473.61,"BARCHESTER HEALTHCARE LTD"
"Bracknell Forest Council","http://opendatacommunities.org/id/unitary-authority/bracknell-forest","Bracknell Forest Council","00MA","Older People (65+)","Long Term Support - Nursing","MC Older People 65+ Long Term Support - Nursing","Contracted Services",14/05/2020 00:00:00,"30377203",3507.12,"BARCHESTER HEALTHCARE LTD"
"Bracknell Forest Council","http://opendatacommunities.org/id/unitary-authority/bracknell-forest","Bracknell Forest Council","00MA","Older People (65+)","Long Term Support - Nursing","MC Older People 65+ Long Term Support - Nursing","Contracted Services",11/06/2020 00:00:00,"30378358",3507.12,"BARCHESTER HEALTHCARE LTD"
"Bracknell Forest Council","http://opendatacommunities.org/id/unitary-authority/bracknell-forest","Bracknell Forest Council","00MA","Older People (65+)","Long Term Support - Nursing","MC Older People 65+ Long Term Support - Nursing","Contracted Services",16/04/2020 00:00:00,"30375595",3556.15,"BARCHESTER HEALTHCARE LTD"
"Bracknell Forest Council","http://opendatacommunities.org/id/unitary-authority/bracknell-forest","Bracknell Forest Council","00MA","Older People (65+)","Long Term Support - Nursing","MC Older People 65+ Long Term Support - Nursing","Contracted Services",14/05/2020 00:00:00,"30377203",3590.44,"BARCHESTER HEALTHCARE LTD"
"Bracknell Forest Council","http://opendatacommunities.org/id/unitary-authority/bracknell-forest","Bracknell Forest Council","00MA","Older People (65+)","Long Term Support - Nursing","MC Older People 65+ Long Term Support - Nursing","Contracted Services",11/06/2020 00:00:00,"30378358",3590.44,"BARCHESTER HEALTHCARE LTD"
"Bracknell Forest Council","http://opendatacommunities.org/id/unitary-authority/bracknell-forest","Bracknell Forest Council","00MA","Older People (65+)","Long Term Support - Nursing","MC Older People 65+ Long Term Support - Nursing","Contracted Services",16/04/2020 00:00:00,"30375595",3691.51,"BARCHESTER HEALTHCARE LTD"
"Bracknell Forest Council","http://opendatacommunities.org/id/unitary-authority/bracknell-forest","Bracknell Forest Council","00MA","Older People (65+)","Long Term Support - Nursing","MC Older People 65+ Long Term Support - Nursing","Contracted Services",14/05/2020 00:00:00,"30377203",3727.12,"BARCHESTER HEALTHCARE LTD"
"Bracknell Forest Council","http://opendatacommunities.org/id/unitary-authority/bracknell-forest","Bracknell Forest Council","00MA","Older People (65+)","Long Term Support - Nursing","MC Older People 65+ Long Term Support - Nursing","Contracted Services",11/06/2020 00:00:00,"30378358",3727.12,"BARCHESTER HEALTHCARE LTD"
"Bracknell Forest Council","http://opendatacommunities.org/id/unitary-authority/bracknell-forest","Bracknell Forest Council","00MA","Older People (65+)","Long Term Support - Nursing","MC Older People 65+ Long Term Support - Nursing","Contracted Services",14/05/2020 00:00:00,"30377203",3800,"BARCHESTER HEALTHCARE LTD"
"Bracknell Forest Council","http://opendatacommunities.org/id/unitary-authority/bracknell-forest","Bracknell Forest Council","00MA","Older People (65+)","Long Term Support - Nursing","MC Older People 65+ Long Term Support - Nursing","Contracted Services",11/06/2020 00:00:00,"30378358",3800,"BARCHESTER HEALTHCARE LTD"
"Bracknell Forest Council","http://opendatacommunities.org/id/unitary-authority/bracknell-forest","Bracknell Forest Council","00MA","Older People (65+)","Long Term Support - Nursing","MC Older People 65+ Long Term Support - Nursing","Contracted Services",16/04/2020 00:00:00,"30375595",3802.26,"BARCHESTER HEALTHCARE LTD"
"Bracknell Forest Council","http://opendatacommunities.org/id/unitary-authority/bracknell-forest","Bracknell Forest Council","00MA","Older People (65+)","Long Term Support - Nursing","MC Older People 65+ Long Term Support - Nursing","Contracted Services",16/04/2020 00:00:00,"30375595",3827.69,"BARCHESTER HEALTHCARE LTD"
"Bracknell Forest Council","http://opendatacommunities.org/id/unitary-authority/bracknell-forest","Bracknell Forest Council","00MA","Older People (65+)","Long Term Support - Nursing","MC Older People 65+ Long Term Support - Nursing","Contracted Services",16/04/2020 00:00:00,"30375595",3827.69,"BARCHESTER HEALTHCARE LTD"
"Bracknell Forest Council","http://opendatacommunities.org/id/unitary-authority/bracknell-forest","Bracknell Forest Council","00MA","Older People (65+)","Long Term Support - Nursing","PS Older People 65+ Long Term Support - Nursing","Contracted Services",16/04/2020 00:00:00,"30375595",3827.69,"BARCHESTER HEALTHCARE LTD"
"Bracknell Forest Council","http://opendatacommunities.org/id/unitary-authority/bracknell-forest","Bracknell Forest Council","00MA","Older People (65+)","Long Term Support - Nursing","PS Older People 65+ Long Term Support - Nursing","Contracted Services",14/05/2020 00:00:00,"30377203",3864.6,"BARCHESTER HEALTHCARE LTD"
"Bracknell Forest Council","http://opendatacommunities.org/id/unitary-authority/bracknell-forest","Bracknell Forest Council","00MA","Older People (65+)","Long Term Support - Nursing","MC Older People 65+ Long Term Support - Nursing","Contracted Services",14/05/2020 00:00:00,"30377203",3864.6,"BARCHESTER HEALTHCARE LTD"
"Bracknell Forest Council","http://opendatacommunities.org/id/unitary-authority/bracknell-forest","Bracknell Forest Council","00MA","Older People (65+)","Long Term Support - Nursing","MC Older People 65+ Long Term Support - Nursing","Contracted Services",14/05/2020 00:00:00,"30377203",3864.6,"BARCHESTER HEALTHCARE LTD"
"Bracknell Forest Council","http://opendatacommunities.org/id/unitary-authority/bracknell-forest","Bracknell Forest Council","00MA","Older People (65+)","Long Term Support - Nursing","MC Older People 65+ Long Term Support - Nursing","Contracted Services",11/06/2020 00:00:00,"30378358",3864.6,"BARCHESTER HEALTHCARE LTD"
"Bracknell Forest Council","http://opendatacommunities.org/id/unitary-authority/bracknell-forest","Bracknell Forest Council","00MA","Older People (65+)","Long Term Support - Nursing","PS Older People 65+ Long Term Support - Nursing","Contracted Services",11/06/2020 00:00:00,"30378358",3864.6,"BARCHESTER HEALTHCARE LTD"
"Bracknell Forest Council","http://opendatacommunities.org/id/unitary-authority/bracknell-forest","Bracknell Forest Council","00MA","Adults (18-64)","Long Term Support - Nursing","MC Adults 18-64 Long Term Support - Nursing","Contracted Services",16/04/2020 00:00:00,"30375595",3878.29,"BARCHESTER HEALTHCARE LTD"
"Bracknell Forest Council","http://opendatacommunities.org/id/unitary-authority/bracknell-forest","Bracknell Forest Council","00MA","Adults (18-64)","Long Term Support - Nursing","MC Adults 18-64 Long Term Support - Nursing","Contracted Services",14/05/2020 00:00:00,"30377203",3915.68,"BARCHESTER HEALTHCARE LTD"
"Bracknell Forest Council","http://opendatacommunities.org/id/unitary-authority/bracknell-forest","Bracknell Forest Council","00MA","Adults (18-64)","Long Term Support - Nursing","MC Adults 18-64 Long Term Support - Nursing","Contracted Services",11/06/2020 00:00:00,"30378358",3915.68,"BARCHESTER HEALTHCARE LTD"
"Bracknell Forest Council","http://opendatacommunities.org/id/unitary-authority/bracknell-forest","Bracknell Forest Council","00MA","Older People (65+)","Long Term Support - Nursing","MC Older People 65+ Long Term Support - Nursing","Contracted Services",16/04/2020 00:00:00,"30375595",4029.14,"BARCHESTER HEALTHCARE LTD"
"Bracknell Forest Council","http://opendatacommunities.org/id/unitary-authority/bracknell-forest","Bracknell Forest Council","00MA","Older People (65+)","Long Term Support - Nursing","MC Older People 65+ Long Term Support - Nursing","Contracted Services",16/04/2020 00:00:00,"30375595",4101.68,"BARCHESTER HEALTHCARE LTD"
"Bracknell Forest Council","http://opendatacommunities.org/id/unitary-authority/bracknell-forest","Bracknell Forest Council","00MA","Adults (18-64)","Long Term Support - Nursing","PS Adults 18-64 Long Term Support - Nursing","Contracted Services",16/04/2020 00:00:00,"30375595",4133.49,"BARCHESTER HEALTHCARE LTD"
"Bracknell Forest Council","http://opendatacommunities.org/id/unitary-authority/bracknell-forest","Bracknell Forest Council","00MA","Older People (65+)","Long Term Support - Nursing","MC Older People 65+ Long Term Support - Nursing","Contracted Services",14/05/2020 00:00:00,"30377203",4141.24,"BARCHESTER HEALTHCARE LTD"
"Bracknell Forest Council","http://opendatacommunities.org/id/unitary-authority/bracknell-forest","Bracknell Forest Council","00MA","Older People (65+)","Long Term Support - Nursing","MC Older People 65+ Long Term Support - Nursing","Contracted Services",11/06/2020 00:00:00,"30378358",4141.24,"BARCHESTER HEALTHCARE LTD"
"Bracknell Forest Council","http://opendatacommunities.org/id/unitary-authority/bracknell-forest","Bracknell Forest Council","00MA","Adults (18-64)","Long Term Support - Nursing","PS Adults 18-64 Long Term Support - Nursing","Contracted Services",14/05/2020 00:00:00,"30377203",4173.36,"BARCHESTER HEALTHCARE LTD"
"Bracknell Forest Council","http://opendatacommunities.org/id/unitary-authority/bracknell-forest","Bracknell Forest Council","00MA","Adults (18-64)","Long Term Support - Nursing","PS Adults 18-64 Long Term Support - Nursing","Contracted Services",11/06/2020 00:00:00,"30378358",4173.36,"BARCHESTER HEALTHCARE LTD"
"Bracknell Forest Council","http://opendatacommunities.org/id/unitary-authority/bracknell-forest","Bracknell Forest Council","00MA","Older People (65+)","Short Term Support Other","MC Older People 65+ Other Short Term support","Contracted Services",16/04/2020 00:00:00,"30375595",6378.57,"BARCHESTER HEALTHCARE LTD"
"Bracknell Forest Council","http://opendatacommunities.org/id/unitary-authority/bracknell-forest","Bracknell Forest Council","00MA","Older People (65+)","Long term Support - Residential","PS Older People 65+ Long Term Support - Residential","Contracted Services",16/04/2020 00:00:00,"30375595",2585.55,"BARCHESTER HEALTHCARE T/A WIMBORNE CARE HOME"
"Bracknell Forest Council","http://opendatacommunities.org/id/unitary-authority/bracknell-forest","Bracknell Forest Council","00MA","Older People (65+)","Long term Support - Residential","PS Older People 65+ Long Term Support - Residential","Contracted Services",14/05/2020 00:00:00,"30377203",2610.48,"BARCHESTER HEALTHCARE T/A WIMBORNE CARE HOME"
"Bracknell Forest Council","http://opendatacommunities.org/id/unitary-authority/bracknell-forest","Bracknell Forest Council","00MA","Older People (65+)","Long term Support - Residential","PS Older People 65+ Long Term Support - Residential","Contracted Services",11/06/2020 00:00:00,"30378358",2610.48,"BARCHESTER HEALTHCARE T/A WIMBORNE CARE HOME"
"Bracknell Forest Council","http://opendatacommunities.org/id/unitary-authority/bracknell-forest","Bracknell Forest Council","00MA","Open Spaces","Community Parks & Open Spaces","Tree Service","Contracted Services",03/04/2020 00:00:00,"6701580",1190,"BARKLAND TREES"
"Bracknell Forest Council","http://opendatacommunities.org/id/unitary-authority/bracknell-forest","Bracknell Forest Council","00MA","Open Spaces","Community Parks & Open Spaces","Tree Service","Contracted Services",16/06/2020 00:00:00,"6705364",4245,"BARKLAND TREES"
"Bracknell Forest Council","http://opendatacommunities.org/id/unitary-authority/bracknell-forest","Bracknell Forest Council","00MA","Safeguarding Children and Young People's Services","Social Work","Children's Participation","Voluntary Sector Service Providers",04/06/2020 00:00:00,"6704629",621.62,"BARNARDO SERVICES LTD"
"Bracknell Forest Council","http://opendatacommunities.org/id/unitary-authority/bracknell-forest","Bracknell Forest Council","00MA","Post 16 Provision","High needs budget fpr post-16 provision","SEN Non LEA Provision Post16","Voluntary Sector Service Providers",16/04/2020 00:00:00,"6703914",8240,"BARNARDO SERVICES LTD"
"Bracknell Forest Council","http://opendatacommunities.org/id/unitary-authority/bracknell-forest","Bracknell Forest Council","00MA","Management and Support Services - CYPL","Unallocated High Needs Related Expenditure","SEN Non LEA Provision Pre 16","Voluntary Sector Service Providers",16/04/2020 00:00:00,"6703905",11018,"BARNARDO SERVICES LTD"
"Bracknell Forest Council","http://opendatacommunities.org/id/unitary-authority/bracknell-forest","Bracknell Forest Council","00MA","Management and Support Services - CYPL","Unallocated High Needs Related Expenditure","SEN Non LEA Provision Pre 16","Voluntary Sector Service Providers",16/04/2020 00:00:00,"6703852",13268,"BARNARDO SERVICES LTD"
"Bracknell Forest Council","http://opendatacommunities.org/id/unitary-authority/bracknell-forest","Bracknell Forest Council","00MA","Management and Support Services - CYPL","Unallocated High Needs Related Expenditure","SEN Non LEA Provision Pre 16","Voluntary Sector Service Providers",16/04/2020 00:00:00,"6703853",13268,"BARNARDO SERVICES LTD"
"Bracknell Forest Council","http://opendatacommunities.org/id/unitary-authority/bracknell-forest","Bracknell Forest Council","00MA","Management and Support Services - CYPL","Unallocated High Needs Related Expenditure","SEN Non LEA Provision Pre 16","Voluntary Sector Service Providers",16/04/2020 00:00:00,"6703855",13268,"BARNARDO SERVICES LTD"
"Bracknell Forest Council","http://opendatacommunities.org/id/unitary-authority/bracknell-forest","Bracknell Forest Council","00MA","Management and Support Services - CYPL","Unallocated High Needs Related Expenditure","SEN Non LEA Provision Pre 16","Voluntary Sector Service Providers",16/04/2020 00:00:00,"6703859",13268,"BARNARDO SERVICES LTD"
"Bracknell Forest Council","http://opendatacommunities.org/id/unitary-authority/bracknell-forest","Bracknell Forest Council","00MA","Management and Support Services - CYPL","Unallocated High Needs Related Expenditure","SEN Non LEA Provision Pre 16","Voluntary Sector Service Providers",16/04/2020 00:00:00,"6703912",13268,"BARNARDO SERVICES LTD"
"Bracknell Forest Council","http://opendatacommunities.org/id/unitary-authority/bracknell-forest","Bracknell Forest Council","00MA","Management and Support Services - CYPL","Unallocated High Needs Related Expenditure","SEN Non LEA Provision Pre 16","Voluntary Sector Service Providers",16/04/2020 00:00:00,"6703851",14268,"BARNARDO SERVICES LTD"
"Bracknell Forest Council","http://opendatacommunities.org/id/unitary-authority/bracknell-forest","Bracknell Forest Council","00MA","Management and Support Services - CYPL","Unallocated High Needs Related Expenditure","SEN Non LEA Provision Pre 16","Voluntary Sector Service Providers",16/04/2020 00:00:00,"6703860",14268,"BARNARDO SERVICES LTD"
"Bracknell Forest Council","http://opendatacommunities.org/id/unitary-authority/bracknell-forest","Bracknell Forest Council","00MA","Management and Support Services - CYPL","Unallocated High Needs Related Expenditure","SEN Non LEA Provision Pre 16","Voluntary Sector Service Providers",16/04/2020 00:00:00,"6703862",14268,"BARNARDO SERVICES LTD"
"Bracknell Forest Council","http://opendatacommunities.org/id/unitary-authority/bracknell-forest","Bracknell Forest Council","00MA","Management and Support Services - CYPL","Unallocated High Needs Related Expenditure","SEN Non LEA Provision Pre 16","Voluntary Sector Service Providers",16/04/2020 00:00:00,"6703899",14268,"BARNARDO SERVICES LTD"
"Bracknell Forest Council","http://opendatacommunities.org/id/unitary-authority/bracknell-forest","Bracknell Forest Council","00MA","Management and Support Services - CYPL","Unallocated High Needs Related Expenditure","SEN Non LEA Provision Pre 16","Voluntary Sector Service Providers",16/04/2020 00:00:00,"6703898",14268,"BARNARDO SERVICES LTD"
"Bracknell Forest Council","http://opendatacommunities.org/id/unitary-authority/bracknell-forest","Bracknell Forest Council","00MA","Management and Support Services - CYPL","Unallocated High Needs Related Expenditure","SEN Non LEA Provision Pre 16","Voluntary Sector Service Providers",16/04/2020 00:00:00,"6703907",14268,"BARNARDO SERVICES LTD"
"Bracknell Forest Council","http://opendatacommunities.org/id/unitary-authority/bracknell-forest","Bracknell Forest Council","00MA","Management and Support Services - CYPL","Unallocated High Needs Related Expenditure","SEN Non LEA Provision Pre 16","Voluntary Sector Service Providers",16/04/2020 00:00:00,"6703910",14268,"BARNARDO SERVICES LTD"
"Bracknell Forest Council","http://opendatacommunities.org/id/unitary-authority/bracknell-forest","Bracknell Forest Council","00MA","Adults (18-64)","Long Term Support - Nursing","PS Adults 18-64 Long Term Support - Nursing","Contracted Services",16/04/2020 00:00:00,"30375595",5126.72,"BEACHER HALL NURSING CENTRE"
"Bracknell Forest Council","http://opendatacommunities.org/id/unitary-authority/bracknell-forest","Bracknell Forest Council","00MA","Adults (18-64)","Long Term Support - Nursing","PS Adults 18-64 Long Term Support - Nursing","Contracted Services",14/05/2020 00:00:00,"30377203",5176.16,"BEACHER HALL NURSING CENTRE"
"Bracknell Forest Council","http://opendatacommunities.org/id/unitary-authority/bracknell-forest","Bracknell Forest Council","00MA","Adults (18-64)","Long Term Support - Nursing","PS Adults 18-64 Long Term Support - Nursing","Contracted Services",11/06/2020 00:00:00,"30378358",5176.16,"BEACHER HALL NURSING CENTRE"
"Bracknell Forest Council","http://opendatacommunities.org/id/unitary-authority/bracknell-forest","Bracknell Forest Council","00MA","Central Support Services - COF","Information Technology","Web Team","Consultants Fees",30/04/2020 00:00:00,"6704138",750,"BEEBE CONSULTANCY LTD"
"Bracknell Forest Council","http://opendatacommunities.org/id/unitary-authority/bracknell-forest","Bracknell Forest Council","00MA","Management and Support Services - CYPL","Unallocated High Needs Related Expenditure","SEN Non LEA Provision Pre 16","Voluntary Sector Service Providers",20/03/2020 00:00:00,"6704555",8900,"BEECH LODGE SCHOOL"
"Bracknell Forest Council","http://opendatacommunities.org/id/unitary-authority/bracknell-forest","Bracknell Forest Council","00MA","Management and Support Services - CYPL","Unallocated High Needs Related Expenditure","SEN Non LEA Provision Pre 16","Voluntary Sector Service Providers",20/03/2020 00:00:00,"6704550",9395,"BEECH LODGE SCHOOL"
"Bracknell Forest Council","http://opendatacommunities.org/id/unitary-authority/bracknell-forest","Bracknell Forest Council","00MA","Management and Support Services - CYPL","Unallocated High Needs Related Expenditure","SEN Non LEA Provision Pre 16","Voluntary Sector Service Providers",20/03/2020 00:00:00,"6704551",9577.5,"BEECH LODGE SCHOOL"
"Bracknell Forest Council","http://opendatacommunities.org/id/unitary-authority/bracknell-forest","Bracknell Forest Council","00MA","Management and Support Services - CYPL","Unallocated High Needs Related Expenditure","SEN Non LEA Provision Pre 16","Voluntary Sector Service Providers",20/03/2020 00:00:00,"6704549",10322,"BEECH LODGE SCHOOL"
"Bracknell Forest Council","http://opendatacommunities.org/id/unitary-authority/bracknell-forest","Bracknell Forest Council","00MA","Management and Support Services - CYPL","Unallocated High Needs Related Expenditure","SEN Non LEA Provision Pre 16","Voluntary Sector Service Providers",20/03/2020 00:00:00,"6704553",11737.5,"BEECH LODGE SCHOOL"
"Bracknell Forest Council","http://opendatacommunities.org/id/unitary-authority/bracknell-forest","Bracknell Forest Council","00MA","Management and Support Services - CYPL","Unallocated High Needs Related Expenditure","SEN Non LEA Provision Pre 16","Voluntary Sector Service Providers",20/03/2020 00:00:00,"6704554",17301,"BEECH LODGE SCHOOL"
"Bracknell Forest Council","http://opendatacommunities.org/id/unitary-authority/bracknell-forest","Bracknell Forest Council","00MA","Older People (65+)","Long term Support - Residential","MC Older People 65+ Long Term Support - Residential","Contracted Services",14/05/2020 00:00:00,"30377203",802.57,"BELAMIE GABLES"
"Bracknell Forest Council","http://opendatacommunities.org/id/unitary-authority/bracknell-forest","Bracknell Forest Council","00MA","Older People (65+)","Long term Support - Residential","MC Older People 65+ Long Term Support - Residential","Contracted Services",16/04/2020 00:00:00,"30375595",2973.71,"BELAMIE GABLES"
"Bracknell Forest Council","http://opendatacommunities.org/id/unitary-authority/bracknell-forest","Bracknell Forest Council","00MA","Older People (65+)","Long term Support - Residential","MH Older People 65+ Long Term Support - Residential","Contracted Services",16/04/2020 00:00:00,"30375595",2973.71,"BELAMIE GABLES"
"Bracknell Forest Council","http://opendatacommunities.org/id/unitary-authority/bracknell-forest","Bracknell Forest Council","00MA","Older People (65+)","Long term Support - Residential","MC Older People 65+ Long Term Support - Residential","Contracted Services",14/05/2020 00:00:00,"30377203",3002.4,"BELAMIE GABLES"
"Bracknell Forest Council","http://opendatacommunities.org/id/unitary-authority/bracknell-forest","Bracknell Forest Council","00MA","Older People (65+)","Long term Support - Residential","MH Older People 65+ Long Term Support - Residential","Contracted Services",14/05/2020 00:00:00,"30377203",3002.4,"BELAMIE GABLES"
"Bracknell Forest Council","http://opendatacommunities.org/id/unitary-authority/bracknell-forest","Bracknell Forest Council","00MA","Older People (65+)","Long term Support - Residential","MC Older People 65+ Long Term Support - Residential","Contracted Services",11/06/2020 00:00:00,"30378358",3002.4,"BELAMIE GABLES"
"Bracknell Forest Council","http://opendatacommunities.org/id/unitary-authority/bracknell-forest","Bracknell Forest Council","00MA","Older People (65+)","Long term Support - Residential","MH Older People 65+ Long Term Support - Residential","Contracted Services",11/06/2020 00:00:00,"30378358",3002.4,"BELAMIE GABLES"
"Bracknell Forest Council","http://opendatacommunities.org/id/unitary-authority/bracknell-forest","Bracknell Forest Council","00MA","Older People (65+)","Long term Support - Residential","MC Older People 65+ Long Term Support - Residential","Contracted Services",16/04/2020 00:00:00,"30375595",3179.6,"BELAMIE GABLES"
"Bracknell Forest Council","http://opendatacommunities.org/id/unitary-authority/bracknell-forest","Bracknell Forest Council","00MA","Older People (65+)","Short Term Support Other","PS Older People 65+ Other Short Term support","Contracted Services",09/04/2020 00:00:00,"30375024",3200,"BELAMIE GABLES"
"Bracknell Forest Council","http://opendatacommunities.org/id/unitary-authority/bracknell-forest","Bracknell Forest Council","00MA","Older People (65+)","Long term Support - Residential","MC Older People 65+ Long Term Support - Residential","Contracted Services",16/04/2020 00:00:00,"30375595",3424.77,"BELAMIE GABLES"
"Bracknell Forest Council","http://opendatacommunities.org/id/unitary-authority/bracknell-forest","Bracknell Forest Council","00MA","Older People (65+)","Long term Support - Residential","MC Older People 65+ Long Term Support - Residential","Contracted Services",14/05/2020 00:00:00,"30377203",3457.8,"BELAMIE GABLES"
"Bracknell Forest Council","http://opendatacommunities.org/id/unitary-authority/bracknell-forest","Bracknell Forest Council","00MA","Older People (65+)","Long term Support - Residential","MC Older People 65+ Long Term Support - Residential","Contracted Services",11/06/2020 00:00:00,"30378358",3457.8,"BELAMIE GABLES"
"Bracknell Forest Council","http://opendatacommunities.org/id/unitary-authority/bracknell-forest","Bracknell Forest Council","00MA","Older People (65+)","Long term Support - Residential","PS Older People 65+ Long Term Support - Residential","Contracted Services",16/04/2020 00:00:00,"30375595",3626.23,"BELAMIE GABLES"
"Bracknell Forest Council","http://opendatacommunities.org/id/unitary-authority/bracknell-forest","Bracknell Forest Council","00MA","Older People (65+)","Long term Support - Residential","MC Older People 65+ Long Term Support - Residential","Contracted Services",16/04/2020 00:00:00,"30375595",3660.76,"BELAMIE GABLES"
"Bracknell Forest Council","http://opendatacommunities.org/id/unitary-authority/bracknell-forest","Bracknell Forest Council","00MA","Older People (65+)","Long term Support - Residential","PS Older People 65+ Long Term Support - Residential","Contracted Services",14/05/2020 00:00:00,"30377203",3661.2,"BELAMIE GABLES"
"Bracknell Forest Council","http://opendatacommunities.org/id/unitary-authority/bracknell-forest","Bracknell Forest Council","00MA","Older People (65+)","Long term Support - Residential","PS Older People 65+ Long Term Support - Residential","Contracted Services",11/06/2020 00:00:00,"30378358",3661.2,"BELAMIE GABLES"
"Bracknell Forest Council","http://opendatacommunities.org/id/unitary-authority/bracknell-forest","Bracknell Forest Council","00MA","Older People (65+)","Long term Support - Residential","MC Older People 65+ Long Term Support - Residential","Contracted Services",14/05/2020 00:00:00,"30377203",3696.08,"BELAMIE GABLES"
"Bracknell Forest Council","http://opendatacommunities.org/id/unitary-authority/bracknell-forest","Bracknell Forest Council","00MA","Older People (65+)","Long term Support - Residential","MC Older People 65+ Long Term Support - Residential","Contracted Services",11/06/2020 00:00:00,"30378358",3696.08,"BELAMIE GABLES"
"Bracknell Forest Council","http://opendatacommunities.org/id/unitary-authority/bracknell-forest","Bracknell Forest Council","00MA","Central Support Services - COF","Fleet","Green Travel Issues","Other Fees for Bought-in Services",19/06/2020 00:00:00,"6705411",1510,"BENVILLE AND MARSH LTD"
"Bracknell Forest Council","http://opendatacommunities.org/id/unitary-authority/bracknell-forest","Bracknell Forest Council","00MA","Central Support Services - COF","Construction and Property","Depot Facilities","Fire Precaution Appliances",09/06/2020 00:00:00,"6705321",1016.23,"BERKS EXTINGUISHER SERVICE"
"Bracknell Forest Council","http://opendatacommunities.org/id/unitary-authority/bracknell-forest","Bracknell Forest Council","00MA","Management and Support Services - CYPL","De-Delegated Expenditure","Home to School Transport","Taxi Fares - Home/School Transport",29/05/2020 00:00:00,"6704476",520,"BERKSHIRE EDUCATION TRAVEL"
"Bracknell Forest Council","http://opendatacommunities.org/id/unitary-authority/bracknell-forest","Bracknell Forest Council","00MA","Management and Support Services - CYPL","De-Delegated Expenditure","Home to School Transport","Taxi Fares - Home/School Transport",01/05/2020 00:00:00,"6703073",675,"BERKSHIRE EDUCATION TRAVEL"
"Bracknell Forest Council","http://opendatacommunities.org/id/unitary-authority/bracknell-forest","Bracknell Forest Council","00MA","Management and Support Services - CYPL","De-Delegated Expenditure","Home to School Transport","Taxi Fares - Home/School Transport",01/04/2020 00:00:00,"6701346",680,"BERKSHIRE EDUCATION TRAVEL"
"Bracknell Forest Council","http://opendatacommunities.org/id/unitary-authority/bracknell-forest","Bracknell Forest Council","00MA","Management and Support Services - CYPL","De-Delegated Expenditure","Home to School Transport","Taxi Fares - Home/School Transport",01/03/2020 00:00:00,"6703969",705,"BERKSHIRE EDUCATION TRAVEL"
"Bracknell Forest Council","http://opendatacommunities.org/id/unitary-authority/bracknell-forest","Bracknell Forest Council","00MA","Management and Support Services - CYPL","De-Delegated Expenditure","Home to School Transport","Taxi Fares - Home/School Transport",01/04/2020 00:00:00,"6701346",864,"BERKSHIRE EDUCATION TRAVEL"
"Bracknell Forest Council","http://opendatacommunities.org/id/unitary-authority/bracknell-forest","Bracknell Forest Council","00MA","Management and Support Services - CYPL","De-Delegated Expenditure","Home to School Transport","Taxi Fares - Home/School Transport",01/04/2020 00:00:00,"6701336",900,"BERKSHIRE EDUCATION TRAVEL"
"Bracknell Forest Council","http://opendatacommunities.org/id/unitary-authority/bracknell-forest","Bracknell Forest Council","00MA","Management and Support Services - CYPL","De-Delegated Expenditure","Home to School Transport","Taxi Fares - Home/School Transport",01/04/2020 00:00:00,"6701343",1440,"BERKSHIRE EDUCATION TRAVEL"
"Bracknell Forest Council","http://opendatacommunities.org/id/unitary-authority/bracknell-forest","Bracknell Forest Council","00MA","Management and Support Services - CYPL","De-Delegated Expenditure","Home to School Transport","Taxi Fares - Home/School Transport",01/04/2020 00:00:00,"6701336",1485,"BERKSHIRE EDUCATION TRAVEL"
"Bracknell Forest Council","http://opendatacommunities.org/id/unitary-authority/bracknell-forest","Bracknell Forest Council","00MA","Management and Support Services - CYPL","De-Delegated Expenditure","Home to School Transport","Taxi Fares - Home/School Transport",01/04/2020 00:00:00,"6701346",1690,"BERKSHIRE EDUCATION TRAVEL"
"Bracknell Forest Council","http://opendatacommunities.org/id/unitary-authority/bracknell-forest","Bracknell Forest Council","00MA","Management and Support Services - CYPL","De-Delegated Expenditure","Home to School Transport","Taxi Fares - Home/School Transport",29/05/2020 00:00:00,"6704474",1872.5,"BERKSHIRE EDUCATION TRAVEL"
"Bracknell Forest Council","http://opendatacommunities.org/id/unitary-authority/bracknell-forest","Bracknell Forest Council","00MA","Management and Support Services - CYPL","De-Delegated Expenditure","Home to School Transport","Taxi Fares - Home/School Transport",01/05/2020 00:00:00,"6703074",2175,"BERKSHIRE EDUCATION TRAVEL"
"Bracknell Forest Council","http://opendatacommunities.org/id/unitary-authority/bracknell-forest","Bracknell Forest Council","00MA","Management and Support Services - CYPL","De-Delegated Expenditure","Home to School Transport","Taxi Fares - Home/School Transport",01/04/2020 00:00:00,"6701343",2480,"BERKSHIRE EDUCATION TRAVEL"
"Bracknell Forest Council","http://opendatacommunities.org/id/unitary-authority/bracknell-forest","Bracknell Forest Council","00MA","Management and Support Services - CYPL","De-Delegated Expenditure","Home to School Transport","Taxi Fares - Home/School Transport",01/04/2020 00:00:00,"6701336",2540,"BERKSHIRE EDUCATION TRAVEL"
"Bracknell Forest Council","http://opendatacommunities.org/id/unitary-authority/bracknell-forest","Bracknell Forest Council","00MA","Management and Support Services - CYPL","De-Delegated Expenditure","Home to School Transport","Taxi Fares - Home/School Transport",29/05/2020 00:00:00,"6704475",3375,"BERKSHIRE EDUCATION TRAVEL"
"Bracknell Forest Council","http://opendatacommunities.org/id/unitary-authority/bracknell-forest","Bracknell Forest Council","00MA","Management and Support Services - CYPL","De-Delegated Expenditure","Home to School Transport","Taxi Fares - Home/School Transport",01/04/2020 00:00:00,"6701346",4583.5,"BERKSHIRE EDUCATION TRAVEL"
"Bracknell Forest Council","http://opendatacommunities.org/id/unitary-authority/bracknell-forest","Bracknell Forest Council","00MA","Management and Support Services - CYPL","De-Delegated Expenditure","Home to School Transport","Taxi Fares - Home/School Transport",01/05/2020 00:00:00,"6703072",5145,"BERKSHIRE EDUCATION TRAVEL"
"Bracknell Forest Council","http://opendatacommunities.org/id/unitary-authority/bracknell-forest","Bracknell Forest Council","00MA","Central Support Services - COF","Fleet","Transport Services","Taxi Charges",01/04/2020 00:00:00,"6704095",6505,"BERKSHIRE EDUCATION TRAVEL"
"Bracknell Forest Council","http://opendatacommunities.org/id/unitary-authority/bracknell-forest","Bracknell Forest Council","00MA","Management and Support Services - CYPL","De-Delegated Expenditure","Home to School Transport","Taxi Fares - Home/School Transport",01/05/2020 00:00:00,"6703070",7170,"BERKSHIRE EDUCATION TRAVEL"
"Bracknell Forest Council","http://opendatacommunities.org/id/unitary-authority/bracknell-forest","Bracknell Forest Council","00MA","Management and Support Services - CYPL","De-Delegated Expenditure","Home to School Transport","Taxi Fares - Home/School Transport",29/05/2020 00:00:00,"6704473",8665,"BERKSHIRE EDUCATION TRAVEL"
"Bracknell Forest Council","http://opendatacommunities.org/id/unitary-authority/bracknell-forest","Bracknell Forest Council","00MA","Management and Support Services - CYPL","De-Delegated Expenditure","Home to School Transport","Taxi Fares - Home/School Transport",29/05/2020 00:00:00,"6704471",10895,"BERKSHIRE EDUCATION TRAVEL"
"Bracknell Forest Council","http://opendatacommunities.org/id/unitary-authority/bracknell-forest","Bracknell Forest Council","00MA","Management and Support Services - CYPL","De-Delegated Expenditure","Home to School Transport","Taxi Fares - Home/School Transport",01/04/2020 00:00:00,"6701343",11855,"BERKSHIRE EDUCATION TRAVEL"
"Bracknell Forest Council","http://opendatacommunities.org/id/unitary-authority/bracknell-forest","Bracknell Forest Council","00MA","Miscellaneous Public Health Services","Public Health Teams","Public Health - Bracknell Team","Contracted Services",23/08/2019 00:00:00,"6703218",4666,"BERKSHIRE HEALTHCARE FOUNDATION TRUST"
"Bracknell Forest Council","http://opendatacommunities.org/id/unitary-authority/bracknell-forest","Bracknell Forest Council","00MA","Substance Misuse","Drug misuse in adults","SM Operational Costs","Contracted Services",27/02/2020 00:00:00,"6702664",777,"BERKSHIRE HEALTHCARE NHS FOUNDATION TRUST"
"Bracknell Forest Council","http://opendatacommunities.org/id/unitary-authority/bracknell-forest","Bracknell Forest Council","00MA","Substance Misuse","Drug misuse in adults","SM Operational Costs","Contracted Services",22/04/2020 00:00:00,"6702405",777,"BERKSHIRE HEALTHCARE NHS FOUNDATION TRUST"
"Bracknell Forest Council","http://opendatacommunities.org/id/unitary-authority/bracknell-forest","Bracknell Forest Council","00MA","Substance Misuse","Drug misuse in adults","SM Operational Costs","Contracted Services",19/05/2020 00:00:00,"6703977",777,"BERKSHIRE HEALTHCARE NHS FOUNDATION TRUST"
"Bracknell Forest Council","http://opendatacommunities.org/id/unitary-authority/bracknell-forest","Bracknell Forest Council","00MA","Substance Misuse","Drug misuse in adults","SM Operational Costs","Contracted Services",29/06/2020 00:00:00,"6705738",777,"BERKSHIRE HEALTHCARE NHS FOUNDATION TRUST"
"Bracknell Forest Council","http://opendatacommunities.org/id/unitary-authority/bracknell-forest","Bracknell Forest Council","00MA","Short Term Support Maximise Independence","Short Term Support to Maximise Independence","Intermediate Care Team Practitioners","Contracted Services",24/02/2020 00:00:00,"6702665",1761.51,"BERKSHIRE HEALTHCARE NHS FOUNDATION TRUST"
"Bracknell Forest Council","http://opendatacommunities.org/id/unitary-authority/bracknell-forest","Bracknell Forest Council","00MA","Sure Start Children's Centres","Centrally managed expenditure - children's centres","EH Children's Centres","Other Fees for Bought-in Services",26/05/2020 00:00:00,"6704361",2100,"BERKSHIRE HEALTHCARE NHS FOUNDATION TRUST"
"Bracknell Forest Council","http://opendatacommunities.org/id/unitary-authority/bracknell-forest","Bracknell Forest Council","00MA","Sure Start Children's Centres","Centrally managed expenditure - children's centres","EH Children's Centres","Other Fees for Bought-in Services",27/04/2020 00:00:00,"6703893",2100,"BERKSHIRE HEALTHCARE NHS FOUNDATION TRUST"
"Bracknell Forest Council","http://opendatacommunities.org/id/unitary-authority/bracknell-forest","Bracknell Forest Council","00MA","Sure Start Children's Centres","Centrally managed expenditure - children's centres","EH Children's Centres","Other Fees for Bought-in Services",22/06/2020 00:00:00,"6705491",2100,"BERKSHIRE HEALTHCARE NHS FOUNDATION TRUST"
"Bracknell Forest Council","http://opendatacommunities.org/id/unitary-authority/bracknell-forest","Bracknell Forest Council","00MA","Social Care Activities","Social Care Activities","MH Management & Administration","Contracted Services",26/05/2020 00:00:00,"6704090",2501.88,"BERKSHIRE HEALTHCARE NHS FOUNDATION TRUST"
"Bracknell Forest Council","http://opendatacommunities.org/id/unitary-authority/bracknell-forest","Bracknell Forest Council","00MA","Social Care Activities","Social Care Activities","MC Management & Administration","Contracted Services",26/05/2020 00:00:00,"6703964",2804.65,"BERKSHIRE HEALTHCARE NHS FOUNDATION TRUST"
"Bracknell Forest Council","http://opendatacommunities.org/id/unitary-authority/bracknell-forest","Bracknell Forest Council","00MA","Social Care Activities","Social Care Activities","MC Management & Administration","Contracted Services",29/06/2020 00:00:00,"6705574",2804.65,"BERKSHIRE HEALTHCARE NHS FOUNDATION TRUST"
"Bracknell Forest Council","http://opendatacommunities.org/id/unitary-authority/bracknell-forest","Bracknell Forest Council","00MA","Management and Support Services - CYPL","Unallocated High Needs Related Expenditure","Occupational Therapy","Voluntary Sector Service Providers",19/05/2020 00:00:00,"6703691",3083.33,"BERKSHIRE HEALTHCARE NHS FOUNDATION TRUST"
"Bracknell Forest Council","http://opendatacommunities.org/id/unitary-authority/bracknell-forest","Bracknell Forest Council","00MA","Management and Support Services - CYPL","Unallocated High Needs Related Expenditure","Occupational Therapy","Voluntary Sector Service Providers",17/04/2020 00:00:00,"6702263",3083.33,"BERKSHIRE HEALTHCARE NHS FOUNDATION TRUST"
"Bracknell Forest Council","http://opendatacommunities.org/id/unitary-authority/bracknell-forest","Bracknell Forest Council","00MA","Management and Support Services - CYPL","Unallocated High Needs Related Expenditure","Occupational Therapy","Voluntary Sector Service Providers",15/06/2020 00:00:00,"6704977",3083.33,"BERKSHIRE HEALTHCARE NHS FOUNDATION TRUST"
"Bracknell Forest Council","http://opendatacommunities.org/id/unitary-authority/bracknell-forest","Bracknell Forest Council","00MA","Social Care Activities","Social Care Activities","MC Management & Administration","Contracted Services",28/04/2020 00:00:00,"6702635",3365.58,"BERKSHIRE HEALTHCARE NHS FOUNDATION TRUST"
"Bracknell Forest Council","http://opendatacommunities.org/id/unitary-authority/bracknell-forest","Bracknell Forest Council","00MA","Management and Support Services - CYPL","CYPL Department Management Team","Management Team","Contracted Services",28/04/2020 00:00:00,"6702667",10458.43,"BERKSHIRE HEALTHCARE NHS FOUNDATION TRUST"
"Bracknell Forest Council","http://opendatacommunities.org/id/unitary-authority/bracknell-forest","Bracknell Forest Council","00MA","Management and Support Services - CYPL","CYPL Department Management Team","Management Team","Contracted Services",26/05/2020 00:00:00,"6703965",10458.43,"BERKSHIRE HEALTHCARE NHS FOUNDATION TRUST"
"Bracknell Forest Council","http://opendatacommunities.org/id/unitary-authority/bracknell-forest","Bracknell Forest Council","00MA","Management and Support Services - CYPL","CYPL Department Management Team","Management Team","Contracted Services",29/06/2020 00:00:00,"6705575",10458.43,"BERKSHIRE HEALTHCARE NHS FOUNDATION TRUST"
"Bracknell Forest Council","http://opendatacommunities.org/id/unitary-authority/bracknell-forest","Bracknell Forest Council","00MA","Management and Support Services - CYPL","Unallocated High Needs Related Expenditure","Speech and Language Services","Other Fees for Bought-in Services",26/05/2020 00:00:00,"6704361",17066.66,"BERKSHIRE HEALTHCARE NHS FOUNDATION TRUST"
"Bracknell Forest Council","http://opendatacommunities.org/id/unitary-authority/bracknell-forest","Bracknell Forest Council","00MA","Management and Support Services - CYPL","Unallocated High Needs Related Expenditure","Speech and Language Services","Other Fees for Bought-in Services",27/04/2020 00:00:00,"6703893",17066.66,"BERKSHIRE HEALTHCARE NHS FOUNDATION TRUST"
"Bracknell Forest Council","http://opendatacommunities.org/id/unitary-authority/bracknell-forest","Bracknell Forest Council","00MA","Management and Support Services - CYPL","Unallocated High Needs Related Expenditure","Speech and Language Services","Other Fees for Bought-in Services",22/06/2020 00:00:00,"6705491",17066.66,"BERKSHIRE HEALTHCARE NHS FOUNDATION TRUST"
"Bracknell Forest Council","http://opendatacommunities.org/id/unitary-authority/bracknell-forest","Bracknell Forest Council","00MA","Children 5-19 Public Health Programmes","Children 5-19 Public Health Programmes","Public Health Children's 5-19 Programmes (Bracknell)","Contracted Services",19/05/2020 00:00:00,"6703816",108326.55,"BERKSHIRE HEALTHCARE NHS FOUNDATION TRUST"
"Bracknell Forest Council","http://opendatacommunities.org/id/unitary-authority/bracknell-forest","Bracknell Forest Council","00MA","Children 5-19 Public Health Programmes","Children 5-19 Public Health Programmes","Public Health Children's 5-19 Programmes (Bracknell)","Contracted Services",16/04/2020 00:00:00,"6703645",108326.55,"BERKSHIRE HEALTHCARE NHS FOUNDATION TRUST"
"Bracknell Forest Council","http://opendatacommunities.org/id/unitary-authority/bracknell-forest","Bracknell Forest Council","00MA","Sexual Health Services","STI testing and treatment","Sexual Health - STI Testing & Treatment (Berks)","Contracted Services",19/05/2020 00:00:00,"6703801",168362.34,"BERKSHIRE HEALTHCARE NHS FOUNDATION TRUST"
"Bracknell Forest Council","http://opendatacommunities.org/id/unitary-authority/bracknell-forest","Bracknell Forest Council","00MA","Sexual Health Services","STI testing and treatment","Sexual Health - STI Testing & Treatment (Berks)","Contracted Services",15/06/2020 00:00:00,"6705129",168362.34,"BERKSHIRE HEALTHCARE NHS FOUNDATION TRUST"
"Bracknell Forest Council","http://opendatacommunities.org/id/unitary-authority/bracknell-forest","Bracknell Forest Council","00MA","Sexual Health Services","STI testing and treatment","Sexual Health - STI Testing & Treatment (Berks)","Contracted Services",17/04/2020 00:00:00,"6702477",168362.34,"BERKSHIRE HEALTHCARE NHS FOUNDATION TRUST"
"Bracknell Forest Council","http://opendatacommunities.org/id/unitary-authority/bracknell-forest","Bracknell Forest Council","00MA","Other Council Property","Non HRA Council Property","LD Supported Accommodation","R&M - Reactive",22/04/2020 00:00:00,"6702894",500,"BERKSHIRE MECHANICAL SERVICES"
"Bracknell Forest Council","http://opendatacommunities.org/id/unitary-authority/bracknell-forest","Bracknell Forest Council","00MA","Other Council Property","Non HRA Council Property","LD Supported Accommodation","R&M - Reactive",04/06/2020 00:00:00,"6704699",500,"BERKSHIRE MECHANICAL SERVICES"
"Bracknell Forest Council","http://opendatacommunities.org/id/unitary-authority/bracknell-forest","Bracknell Forest Council","00MA","Holding Accounts not in Budget Book - COF","General Holding Accounts","Repairs and Maintenance","R&M - Reactive",04/06/2020 00:00:00,"6704973",500,"BERKSHIRE MECHANICAL SERVICES"
"Bracknell Forest Council","http://opendatacommunities.org/id/unitary-authority/bracknell-forest","Bracknell Forest Council","00MA","Homelessness","Accommodation within own Stock","BFC Properties","R&M - Reactive",07/04/2020 00:00:00,"6705335",500,"BERKSHIRE MECHANICAL SERVICES"
"Bracknell Forest Council","http://opendatacommunities.org/id/unitary-authority/bracknell-forest","Bracknell Forest Council","00MA","Homelessness","Accommodation within own Stock","BFC Properties","R&M - Reactive",04/06/2020 00:00:00,"6704670",500,"BERKSHIRE MECHANICAL SERVICES"
"Bracknell Forest Council","http://opendatacommunities.org/id/unitary-authority/bracknell-forest","Bracknell Forest Council","00MA","Other Council Property","Non HRA Council Property","LD Supported Accommodation","R&M - Reactive",04/06/2020 00:00:00,"6704700",540,"BERKSHIRE MECHANICAL SERVICES"
"Bracknell Forest Council","http://opendatacommunities.org/id/unitary-authority/bracknell-forest","Bracknell Forest Council","00MA","Other Council Property","Non HRA Council Property","LD Supported Accommodation","R&M - Reactive",22/04/2020 00:00:00,"6702894",600,"BERKSHIRE MECHANICAL SERVICES"
"Bracknell Forest Council","http://opendatacommunities.org/id/unitary-authority/bracknell-forest","Bracknell Forest Council","00MA","Improvements & Capitalised Repairs (Council Wide)","","E&W CC replace hot water cylinders","Construction - Contract Payments",30/04/2020 00:00:00,"6702847",660,"BERKSHIRE MECHANICAL SERVICES"
"Bracknell Forest Council","http://opendatacommunities.org/id/unitary-authority/bracknell-forest","Bracknell Forest Council","00MA","Homelessness","Discretionary Housing Payments","Private Sector Leased Accommodation","R&M - Reactive",18/05/2020 00:00:00,"6703665",700,"BERKSHIRE MECHANICAL SERVICES"
"Bracknell Forest Council","http://opendatacommunities.org/id/unitary-authority/bracknell-forest","Bracknell Forest Council","00MA","Business Support","Premises Development","Wildridings Shops","R&M - Reactive",22/04/2020 00:00:00,"6702586",750,"BERKSHIRE MECHANICAL SERVICES"
"Bracknell Forest Council","http://opendatacommunities.org/id/unitary-authority/bracknell-forest","Bracknell Forest Council","00MA","Homelessness","Accommodation within own Stock","Banbury - Homeless Accommodation","R&M - Reactive",04/06/2020 00:00:00,"6704676",800,"BERKSHIRE MECHANICAL SERVICES"
"Bracknell Forest Council","http://opendatacommunities.org/id/unitary-authority/bracknell-forest","Bracknell Forest Council","00MA","Homelessness","Accommodation within own Stock","BFC Properties","R&M - Reactive",18/05/2020 00:00:00,"6703657",880,"BERKSHIRE MECHANICAL SERVICES"
"Bracknell Forest Council","http://opendatacommunities.org/id/unitary-authority/bracknell-forest","Bracknell Forest Council","00MA","Homelessness","Discretionary Housing Payments","Private Sector Leased Accommodation","R&M - Reactive",22/04/2020 00:00:00,"6702893",1000,"BERKSHIRE MECHANICAL SERVICES"
"Bracknell Forest Council","http://opendatacommunities.org/id/unitary-authority/bracknell-forest","Bracknell Forest Council","00MA","Business Support","Premises Development","Wildridings Shops","R&M - Reactive",22/04/2020 00:00:00,"6702586",1000,"BERKSHIRE MECHANICAL SERVICES"
"Bracknell Forest Council","http://opendatacommunities.org/id/unitary-authority/bracknell-forest","Bracknell Forest Council","00MA","Homelessness","Accommodation within own Stock","BFC Properties","R&M - Reactive",07/04/2020 00:00:00,"6705333",1200,"BERKSHIRE MECHANICAL SERVICES"
"Bracknell Forest Council","http://opendatacommunities.org/id/unitary-authority/bracknell-forest","Bracknell Forest Council","00MA","Blue Mountain Learning Village","","SUPPLY/INSTALL FD30 FIRE DUCT KINGS ACADEMY","Furniture & Fittings",30/04/2020 00:00:00,"6703290",1200,"BERKSHIRE MECHANICAL SERVICES"
"Bracknell Forest Council","http://opendatacommunities.org/id/unitary-authority/bracknell-forest","Bracknell Forest Council","00MA","Blue Mountain Learning Village","","KINGS ACADEMY INSTALL CANOPY ABOVE KILN","Furniture & Fittings",30/04/2020 00:00:00,"6703287",1250,"BERKSHIRE MECHANICAL SERVICES"
"Bracknell Forest Council","http://opendatacommunities.org/id/unitary-authority/bracknell-forest","Bracknell Forest Council","00MA","Homelessness","Discretionary Housing Payments","Private Sector Leased Accommodation","R&M - Reactive",22/04/2020 00:00:00,"6702893",1280,"BERKSHIRE MECHANICAL SERVICES"
"Bracknell Forest Council","http://opendatacommunities.org/id/unitary-authority/bracknell-forest","Bracknell Forest Council","00MA","Homelessness","Accommodation within own Stock","BFC Properties","R&M - Reactive",22/04/2020 00:00:00,"6702899",1396.28,"BERKSHIRE MECHANICAL SERVICES"
"Bracknell Forest Council","http://opendatacommunities.org/id/unitary-authority/bracknell-forest","Bracknell Forest Council","00MA","Homelessness","Accommodation within own Stock","BFC Properties","R&M - Reactive",22/04/2020 00:00:00,"6702890",1480,"BERKSHIRE MECHANICAL SERVICES"
"Bracknell Forest Council","http://opendatacommunities.org/id/unitary-authority/bracknell-forest","Bracknell Forest Council","00MA","Homelessness","Accommodation within own Stock","BFC Properties","R&M - Reactive",18/05/2020 00:00:00,"6703647",1500,"BERKSHIRE MECHANICAL SERVICES"
"Bracknell Forest Council","http://opendatacommunities.org/id/unitary-authority/bracknell-forest","Bracknell Forest Council","00MA","Homelessness","Accommodation within own Stock","BFC Properties","R&M - Planned",04/06/2020 00:00:00,"6704648",1500,"BERKSHIRE MECHANICAL SERVICES"
"Bracknell Forest Council","http://opendatacommunities.org/id/unitary-authority/bracknell-forest","Bracknell Forest Council","00MA","Improvements & Capitalised Repairs (Council Wide)","","E&W CC replace hot water cylinders","Construction - Contract Payments",30/04/2020 00:00:00,"6702847",1700,"BERKSHIRE MECHANICAL SERVICES"
"Bracknell Forest Council","http://opendatacommunities.org/id/unitary-authority/bracknell-forest","Bracknell Forest Council","00MA","Homelessness","Accommodation within own Stock","BFC Properties","R&M - Reactive",08/04/2020 00:00:00,"6701958",1918,"BERKSHIRE MECHANICAL SERVICES"
"Bracknell Forest Council","http://opendatacommunities.org/id/unitary-authority/bracknell-forest","Bracknell Forest Council","00MA","Homelessness","Accommodation within own Stock","BFC Properties","R&M - Reactive",08/04/2020 00:00:00,"6701958",2000,"BERKSHIRE MECHANICAL SERVICES"
"Bracknell Forest Council","http://opendatacommunities.org/id/unitary-authority/bracknell-forest","Bracknell Forest Council","00MA","Homelessness","Accommodation within own Stock","BFC Properties","R&M - Reactive",18/05/2020 00:00:00,"6703647",2307,"BERKSHIRE MECHANICAL SERVICES"
"Bracknell Forest Council","http://opendatacommunities.org/id/unitary-authority/bracknell-forest","Bracknell Forest Council","00MA","Holding Accounts not in Budget Book - COF","General Holding Accounts","Repairs and Maintenance","R&M - Reactive",04/06/2020 00:00:00,"6704973",2500,"BERKSHIRE MECHANICAL SERVICES"
"Bracknell Forest Council","http://opendatacommunities.org/id/unitary-authority/bracknell-forest","Bracknell Forest Council","00MA","Homelessness","Accommodation within own Stock","BFC Properties","R&M - Reactive",22/04/2020 00:00:00,"6702890",2500,"BERKSHIRE MECHANICAL SERVICES"
"Bracknell Forest Council","http://opendatacommunities.org/id/unitary-authority/bracknell-forest","Bracknell Forest Council","00MA","Blue Mountain Learning Village","","KINGS ACADEMY INSTALL CANOPY ABOVE KILN","Furniture & Fittings",30/04/2020 00:00:00,"6703287",3000,"BERKSHIRE MECHANICAL SERVICES"
"Bracknell Forest Council","http://opendatacommunities.org/id/unitary-authority/bracknell-forest","Bracknell Forest Council","00MA","Homelessness","Accommodation within own Stock","BFC Properties","R&M - Reactive",07/04/2020 00:00:00,"6705333",4500,"BERKSHIRE MECHANICAL SERVICES"
"Bracknell Forest Council","http://opendatacommunities.org/id/unitary-authority/bracknell-forest","Bracknell Forest Council","00MA","Homelessness","Accommodation within own Stock","BFC Properties","R&M - Planned",04/06/2020 00:00:00,"6704649",11985,"BERKSHIRE MECHANICAL SERVICES"
"Bracknell Forest Council","http://opendatacommunities.org/id/unitary-authority/bracknell-forest","Bracknell Forest Council","00MA","Homelessness","Prevention","Rough Sleeping Project","Other Support to Clients",04/06/2020 00:00:00,"6704321",-1560,"BERKSHIRE ROOMS LTD"
"Bracknell Forest Council","http://opendatacommunities.org/id/unitary-authority/bracknell-forest","Bracknell Forest Council","00MA","Homelessness","Prevention","Rough Sleeping Project","Other Support to Clients",13/05/2020 00:00:00,"6703426",1560,"BERKSHIRE ROOMS LTD"
"Bracknell Forest Council","http://opendatacommunities.org/id/unitary-authority/bracknell-forest","Bracknell Forest Council","00MA","Homelessness","Prevention","Rough Sleeping Project","Other Support to Clients",30/04/2020 00:00:00,"6703427",1612,"BERKSHIRE ROOMS LTD"
"Bracknell Forest Council","http://opendatacommunities.org/id/unitary-authority/bracknell-forest","Bracknell Forest Council","00MA","Homelessness","Prevention","Rough Sleeping Project","Other Support to Clients",27/03/2020 00:00:00,"60016263",1391,"BERKSHIRE ROOMS SERVICED APARTMENTS"
"Bracknell Forest Council","http://opendatacommunities.org/id/unitary-authority/bracknell-forest","Bracknell Forest Council","00MA","Open Spaces","Community Parks & Open Spaces","Tree Service","Contracted Services",05/06/2020 00:00:00,"6704723",700,"BERKSHIRE TREE CARE"
"Bracknell Forest Council","http://opendatacommunities.org/id/unitary-authority/bracknell-forest","Bracknell Forest Council","00MA","Open Spaces","Community Parks & Open Spaces","Tree Service","Contracted Services",24/06/2020 00:00:00,"6705465",1040,"BERKSHIRE TREE CARE"
"Bracknell Forest Council","http://opendatacommunities.org/id/unitary-authority/bracknell-forest","Bracknell Forest Council","00MA","Family Support Services","Targeted Family Support","Family Centre Running Costs","R&M - Reactive",27/02/2020 00:00:00,"6701659",1820,"BERKSHIRE TREE CARE"
"Bracknell Forest Council","http://opendatacommunities.org/id/unitary-authority/bracknell-forest","Bracknell Forest Council","00MA","Open Spaces","Community Parks & Open Spaces","Tree Service","Contracted Services",18/06/2020 00:00:00,"6705368",8615,"BERKSHIRE TREE CARE"
"Bracknell Forest Council","http://opendatacommunities.org/id/unitary-authority/bracknell-forest","Bracknell Forest Council","00MA","Social Care Activities","Social Care Activities","Sensory Support Operational Costs","Contracted Services",07/01/2020 00:00:00,"6702679",4434,"BERKSHIRE VISION"
"Bracknell Forest Council","http://opendatacommunities.org/id/unitary-authority/bracknell-forest","Bracknell Forest Council","00MA","Services for Young People","Universal services for young people","Great Hollands Youth Centre","Contracted Services",31/03/2020 00:00:00,"6702013",3625,"BERKSHIRE YOUTH - BERKSHIRE ASSOCIATION OF CLUBS FOR YOUNG PEOPLE"
"Bracknell Forest Council","http://opendatacommunities.org/id/unitary-authority/bracknell-forest","Bracknell Forest Council","00MA","Services for Young People","Universal services for young people","Great Hollands Youth Centre","Contracted Services",30/06/2020 00:00:00,"6705732",3625,"BERKSHIRE YOUTH - BERKSHIRE ASSOCIATION OF CLUBS FOR YOUNG PEOPLE"
"Bracknell Forest Council","http://opendatacommunities.org/id/unitary-authority/bracknell-forest","Bracknell Forest Council","00MA","Services for Young People","Targeted services for young people","The Wayz","Contracted Services",31/03/2020 00:00:00,"6702019",10135.47,"BERKSHIRE YOUTH - BERKSHIRE ASSOCIATION OF CLUBS FOR YOUNG PEOPLE"
"Bracknell Forest Council","http://opendatacommunities.org/id/unitary-authority/bracknell-forest","Bracknell Forest Council","00MA","Central Support Services - COF","Policy Unit","Transformation - Childrens Social Care Review","Consultants Fees",27/01/2020 00:00:00,"6701904",14500,"BETTERGOV (BETTER GROUP LIMITED)"
"Bracknell Forest Council","http://opendatacommunities.org/id/unitary-authority/bracknell-forest","Bracknell Forest Council","00MA","Environment, Safety & Routine Maintenance","Routine Repairs (Principal Roads)","Patching & Minor Repairs","Contracted Services",01/06/2020 00:00:00,"6704207",500,"BILLIAN UK LTD(T/A ROADMENDER ASPHALT)"
"Bracknell Forest Council","http://opendatacommunities.org/id/unitary-authority/bracknell-forest","Bracknell Forest Council","00MA","Family Support Services","Targeted Family Support","C&F Section 17 Under 11's Team","Contracted Services",01/06/2020 00:00:00,"6703292",525,"BIRCH HILL PRE-SCHOOL"
"Bracknell Forest Council","http://opendatacommunities.org/id/unitary-authority/bracknell-forest","Bracknell Forest Council","00MA","Primary Schools","Early Year's Free Entitlement","Free Entitlements for 3 Year Olds","Grants and Donations",01/06/2020 00:00:00,"6703995",605,"BIRCH HILL PRE-SCHOOL"
"Bracknell Forest Council","http://opendatacommunities.org/id/unitary-authority/bracknell-forest","Bracknell Forest Council","00MA","Information & Early Intervention","Information & Early Intervention","Emergency Duty Services","Contract Cleaning",26/05/2020 00:00:00,"6704482",535,"BIRKIN CLEANING SERVICES LIMITED"
"Bracknell Forest Council","http://opendatacommunities.org/id/unitary-authority/bracknell-forest","Bracknell Forest Council","00MA","Holding Accounts not in Budget Book - COF","General Holding Accounts","KGB Cleaning","Contract Cleaning",15/05/2020 00:00:00,"6703559",99401.09,"BIRKIN CLEANING SERVICES LIMITED"
"Bracknell Forest Council","http://opendatacommunities.org/id/unitary-authority/bracknell-forest","Bracknell Forest Council","00MA","Holding Accounts not in Budget Book - COF","General Holding Accounts","KGB Cleaning","Contract Cleaning",15/04/2020 00:00:00,"6702040",99401.09,"BIRKIN CLEANING SERVICES LIMITED"
"Bracknell Forest Council","http://opendatacommunities.org/id/unitary-authority/bracknell-forest","Bracknell Forest Council","00MA","Holding Accounts not in Budget Book - COF","General Holding Accounts","KGB Cleaning","Contract Cleaning",15/06/2020 00:00:00,"6704999",99401.09,"BIRKIN CLEANING SERVICES LIMITED"
"Bracknell Forest Council","http://opendatacommunities.org/id/unitary-authority/bracknell-forest","Bracknell Forest Council","00MA","ICT Digital Strategy","","GLPS BPC SERVICES","Other Direct Expenses",23/04/2020 00:00:00,"6702409",5000,"BLUE PRISM CLOUD LIMITED"
"Bracknell Forest Council","http://opendatacommunities.org/id/unitary-authority/bracknell-forest","Bracknell Forest Council","00MA","Children Looked After","Fostering services","Independent Fostering (Non BFBC)","Contracted Services",01/04/2020 00:00:00,"6701770",8250,"BLUE SKY FOSTERING"
"Bracknell Forest Council","http://opendatacommunities.org/id/unitary-authority/bracknell-forest","Bracknell Forest Council","00MA","Children Looked After","Fostering services","Independent Fostering (Non BFBC)","Contracted Services",01/06/2020 00:00:00,"6704823",8250,"BLUE SKY FOSTERING"
"Bracknell Forest Council","http://opendatacommunities.org/id/unitary-authority/bracknell-forest","Bracknell Forest Council","00MA","Children Looked After","Fostering services","Independent Fostering (Non BFBC)","Contracted Services",01/05/2020 00:00:00,"6703220",8525,"BLUE SKY FOSTERING"
"Bracknell Forest Council","http://opendatacommunities.org/id/unitary-authority/bracknell-forest","Bracknell Forest Council","00MA","Children Looked After","Other services for LAC","LAC - Under 11s Expenditure","Other Support to Clients",04/05/2020 00:00:00,"6703149",750,"BMACTIVE"
"Bracknell Forest Council","http://opendatacommunities.org/id/unitary-authority/bracknell-forest","Bracknell Forest Council","00MA","Special Schools & Alternative Provision","Youth Services","Alternative Provision for the Primary Aged pupils without a statement","Voluntary Sector Service Providers",07/04/2020 00:00:00,"6703090",3275,"BMACTIVE"
"Bracknell Forest Council","http://opendatacommunities.org/id/unitary-authority/bracknell-forest","Bracknell Forest Council","00MA","Special Schools & Alternative Provision","Youth Services","Alternative Provision for the Primary Aged pupils without a statement","Voluntary Sector Service Providers",04/05/2020 00:00:00,"6704383",4750,"BMACTIVE"
"Bracknell Forest Council","http://opendatacommunities.org/id/unitary-authority/bracknell-forest","Bracknell Forest Council","00MA","Special Schools & Alternative Provision","Youth Services","Alternative Provision for Secondary Aged pupils without a statement","Voluntary Sector Service Providers",07/04/2020 00:00:00,"6703089",5000,"BMACTIVE"
"Bracknell Forest Council","http://opendatacommunities.org/id/unitary-authority/bracknell-forest","Bracknell Forest Council","00MA","Special Schools & Alternative Provision","Youth Services","Alternative Provision for Secondary Aged pupils without a statement","Voluntary Sector Service Providers",04/05/2020 00:00:00,"6704387",5187.5,"BMACTIVE"
"Bracknell Forest Council","http://opendatacommunities.org/id/unitary-authority/bracknell-forest","Bracknell Forest Council","00MA","Special Schools & Alternative Provision","Youth Services","Alternative Provision for Secondary Aged pupils without a statement","Voluntary Sector Service Providers",01/06/2020 00:00:00,"6705043",5500,"BMACTIVE"
"Bracknell Forest Council","http://opendatacommunities.org/id/unitary-authority/bracknell-forest","Bracknell Forest Council","00MA","Special Schools & Alternative Provision","Youth Services","Alternative Provision for Secondary Aged pupils without a statement","Voluntary Sector Service Providers",01/06/2020 00:00:00,"6705045",5500,"BMACTIVE"
"Bracknell Forest Council","http://opendatacommunities.org/id/unitary-authority/bracknell-forest","Bracknell Forest Council","00MA","Special Schools & Alternative Provision","Youth Services","Alternative Provision for Secondary Aged pupils without a statement","Voluntary Sector Service Providers",04/05/2020 00:00:00,"6704379",7108.75,"BMACTIVE"
"Bracknell Forest Council","http://opendatacommunities.org/id/unitary-authority/bracknell-forest","Bracknell Forest Council","00MA","Special Schools & Alternative Provision","Youth Services","Alternative Provision for Secondary Aged pupils without a statement","Voluntary Sector Service Providers",31/05/2020 00:00:00,"6705042",7221.25,"BMACTIVE"
"Bracknell Forest Council","http://opendatacommunities.org/id/unitary-authority/bracknell-forest","Bracknell Forest Council","00MA","Special Schools & Alternative Provision","Youth Services","Alternative Provision for Secondary Aged pupils without a statement","Voluntary Sector Service Providers",03/04/2020 00:00:00,"6703087",7638.75,"BMACTIVE"
"Bracknell Forest Council","http://opendatacommunities.org/id/unitary-authority/bracknell-forest","Bracknell Forest Council","00MA","South Hill Park Ceremony Suite","","INSTALL PRINTED PRO LAM","Construction - Contract Payments",23/03/2020 00:00:00,"6704092",625,"BONWYKE LIMITED"
"Bracknell Forest Council","http://opendatacommunities.org/id/unitary-authority/bracknell-forest","Bracknell Forest Council","00MA","Substance Misuse","Drug misuse in adults","DAAT Public Health (Berkshire)","Contracted Services",31/03/2020 00:00:00,"6701828",922.61,"BOOTS (WINDSOR)"
"Bracknell Forest Council","http://opendatacommunities.org/id/unitary-authority/bracknell-forest","Bracknell Forest Council","00MA","Substance Misuse","Drug misuse in adults","SM Residential Placements","Contracted Services",21/04/2020 00:00:00,"6702499",4950,"BOSENCE FARM COMMUNITY LTD"
"Bracknell Forest Council","http://opendatacommunities.org/id/unitary-authority/bracknell-forest","Bracknell Forest Council","00MA","Children Looked After","Fostering services","Independent Fostering (Non BFBC)","Other Local Authorities",27/05/2020 00:00:00,"6704120",560.63,"BOURNEMOUTH CHRISTCHURCH AND POOLE COUNCIL"
"Bracknell Forest Council","http://opendatacommunities.org/id/unitary-authority/bracknell-forest","Bracknell Forest Council","00MA","Children Looked After","Residential care","Children's Home Placements","Other Local Authorities",02/03/2020 00:00:00,"6701870",635.77,"BOURNEMOUTH CHRISTCHURCH AND POOLE COUNCIL"
"Bracknell Forest Council","http://opendatacommunities.org/id/unitary-authority/bracknell-forest","Bracknell Forest Council","00MA","Children Looked After","Residential care","Children's Home Placements","Contracted Services",28/05/2020 00:00:00,"6704938",2508.79,"BOURNEMOUTH CHRISTCHURCH AND POOLE COUNCIL"
"Bracknell Forest Council","http://opendatacommunities.org/id/unitary-authority/bracknell-forest","Bracknell Forest Council","00MA","Management and Support Services - CYPL","Unallocated High Needs Related Expenditure","Mainstream - Element 3 top up non BFC pre 16","Other Local Authorities",04/04/2020 00:00:00,"6704727",30700,"BOWDEN HOUSE SCHOOL"
"Bracknell Forest Council","http://opendatacommunities.org/id/unitary-authority/bracknell-forest","Bracknell Forest Council","00MA","Older People (65+)","Long Term Support - Community:Supported Living","LD Older People 65+ Long Term Support - Community:Supported Living","Contracted Services",23/04/2020 00:00:00,"30376288",1938.3,"BOYN GROVE COMMUNITY RESOURCE CENTRE"
"Bracknell Forest Council","http://opendatacommunities.org/id/unitary-authority/bracknell-forest","Bracknell Forest Council","00MA","Miscellaneous Public Health Services","Public Health Teams","Public Health - Bracknell Team","Contracted Services",11/09/2019 00:00:00,"6702544",871.2,"BPC - BERKSHIRE PRIMARY CARE LTD"
"Bracknell Forest Council","http://opendatacommunities.org/id/unitary-authority/bracknell-forest","Bracknell Forest Council","00MA","Substance Misuse","Drug misuse in adults","SM Operational Costs","Other Fees for Bought-in Services",11/05/2020 00:00:00,"6703336",2500,"BPC - BERKSHIRE PRIMARY CARE LTD"
"Bracknell Forest Council","http://opendatacommunities.org/id/unitary-authority/bracknell-forest","Bracknell Forest Council","00MA","Substance Misuse","Drug misuse in adults","SM Operational Costs","Other Fees for Bought-in Services",11/05/2020 00:00:00,"6703333",2500,"BPC - BERKSHIRE PRIMARY CARE LTD"
"Bracknell Forest Council","http://opendatacommunities.org/id/unitary-authority/bracknell-forest","Bracknell Forest Council","00MA","Management and Support Services - CYPL","Holding Codes - net nil","The Brakenhale Academy","Government Grants",05/05/2020 00:00:00,"6702935",1434,"BRACKENHALE ACADEMY"
"Bracknell Forest Council","http://opendatacommunities.org/id/unitary-authority/bracknell-forest","Bracknell Forest Council","00MA","Management and Support Services - CYPL","Schools Block Centrally Managed","LMS Contingency - centrally managed","Contracted Services",05/05/2020 00:00:00,"6702935",4157.14,"BRACKENHALE ACADEMY"
"Bracknell Forest Council","http://opendatacommunities.org/id/unitary-authority/bracknell-forest","Bracknell Forest Council","00MA","Management and Support Services - CYPL","Unallocated High Needs Related Expenditure","Mainstream - Element 3 top up BFC Academy pre 16","Contracted Services",05/05/2020 00:00:00,"6702935",8135.66,"BRACKENHALE ACADEMY"
"Bracknell Forest Council","http://opendatacommunities.org/id/unitary-authority/bracknell-forest","Bracknell Forest Council","00MA","Business Support","Premises Development","Tennis Centre","Land-Rents Payable",01/06/2020 00:00:00,"6704454",36562.5,"BRACKNELL ONE LTD & BRACKNELL TWO LTD"
"Bracknell Forest Council","http://opendatacommunities.org/id/unitary-authority/bracknell-forest","Bracknell Forest Council","00MA","General Grants, Bequests & Donations","General Grants, Bequests & Donations","Performance & Partnerships","Grants and Donations",01/04/2020 00:00:00,"6701501",2450,"BRACKNELL SHOPMOBILITY"
"Bracknell Forest Council","http://opendatacommunities.org/id/unitary-authority/bracknell-forest","Bracknell Forest Council","00MA","Substance Misuse","Drug misuse in adults","SM User & Carer Support","Other Support to Clients",21/04/2020 00:00:00,"6702334",10000,"BREAKING FREE"
"Bracknell Forest Council","http://opendatacommunities.org/id/unitary-authority/bracknell-forest","Bracknell Forest Council","00MA","Older People (65+)","Long term Support - Community:Homecare","PS Older People 65+ Long Term Support - Community:Homecare","Contracted Services",09/04/2020 00:00:00,"30375025",529.98,"BRIGHT SPARK CARE LIMITED"
"Bracknell Forest Council","http://opendatacommunities.org/id/unitary-authority/bracknell-forest","Bracknell Forest Council","00MA","Older People (65+)","Long term Support - Community:Homecare","PS Older People 65+ Long Term Support - Community:Homecare","Contracted Services",02/04/2020 00:00:00,"30374449",547.5,"BRIGHT SPARK CARE LIMITED"
"Bracknell Forest Council","http://opendatacommunities.org/id/unitary-authority/bracknell-forest","Bracknell Forest Council","00MA","Older People (65+)","Long term Support - Community:Homecare","MC Older People 65+ Long Term Support - Community:Homecare","Contracted Services",18/06/2020 00:00:00,"30378678",550.31,"BRIGHT SPARK CARE LIMITED"
"Bracknell Forest Council","http://opendatacommunities.org/id/unitary-authority/bracknell-forest","Bracknell Forest Council","00MA","Older People (65+)","Long term Support - Community:Homecare","MC Older People 65+ Long Term Support - Community:Homecare","Contracted Services",02/04/2020 00:00:00,"30374449",583.68,"BRIGHT SPARK CARE LIMITED"
"Bracknell Forest Council","http://opendatacommunities.org/id/unitary-authority/bracknell-forest","Bracknell Forest Council","00MA","Older People (65+)","Long term Support - Community:Homecare","PS Older People 65+ Long Term Support - Community:Homecare","Contracted Services",23/04/2020 00:00:00,"30376288",613.2,"BRIGHT SPARK CARE LIMITED"
"Bracknell Forest Council","http://opendatacommunities.org/id/unitary-authority/bracknell-forest","Bracknell Forest Council","00MA","Adults (18-64)","Long term Support - Community:Homecare","MH Adults 18-64 Long Term Support - Community:Homecare","Contracted Services",18/06/2020 00:00:00,"30378678",623.71,"BRIGHT SPARK CARE LIMITED"
"Bracknell Forest Council","http://opendatacommunities.org/id/unitary-authority/bracknell-forest","Bracknell Forest Council","00MA","Older People (65+)","Long term Support - Community:Homecare","PS Older People 65+ Long Term Support - Community:Homecare","Contracted Services",21/05/2020 00:00:00,"30377460",634.7,"BRIGHT SPARK CARE LIMITED"
"Bracknell Forest Council","http://opendatacommunities.org/id/unitary-authority/bracknell-forest","Bracknell Forest Council","00MA","Older People (65+)","Long term Support - Community:Homecare","PS Older People 65+ Long Term Support - Community:Homecare","Contracted Services",18/06/2020 00:00:00,"30378678",634.7,"BRIGHT SPARK CARE LIMITED"
"Bracknell Forest Council","http://opendatacommunities.org/id/unitary-authority/bracknell-forest","Bracknell Forest Council","00MA","Older People (65+)","Long term Support - Community:Homecare","PS Older People 65+ Long Term Support - Community:Homecare","Contracted Services",23/04/2020 00:00:00,"30376288",683.28,"BRIGHT SPARK CARE LIMITED"
"Bracknell Forest Council","http://opendatacommunities.org/id/unitary-authority/bracknell-forest","Bracknell Forest Council","00MA","Older People (65+)","Long term Support - Community:Homecare","PS Older People 65+ Long Term Support - Community:Homecare","Contracted Services",02/04/2020 00:00:00,"30374449",700.8,"BRIGHT SPARK CARE LIMITED"
"Bracknell Forest Council","http://opendatacommunities.org/id/unitary-authority/bracknell-forest","Bracknell Forest Council","00MA","Older People (65+)","Long term Support - Community:Homecare","MC Older People 65+ Long Term Support - Community:Homecare","Contracted Services",23/04/2020 00:00:00,"30376288",707.37,"BRIGHT SPARK CARE LIMITED"
"Bracknell Forest Council","http://opendatacommunities.org/id/unitary-authority/bracknell-forest","Bracknell Forest Council","00MA","Older People (65+)","Long term Support - Community:Homecare","PS Older People 65+ Long Term Support - Community:Homecare","Contracted Services",18/06/2020 00:00:00,"30378678",730.64,"BRIGHT SPARK CARE LIMITED"
"Bracknell Forest Council","http://opendatacommunities.org/id/unitary-authority/bracknell-forest","Bracknell Forest Council","00MA","Older People (65+)","Long term Support - Community:Homecare","PS Older People 65+ Long Term Support - Community:Homecare","Contracted Services",21/05/2020 00:00:00,"30377460",735.1,"BRIGHT SPARK CARE LIMITED"
"Bracknell Forest Council","http://opendatacommunities.org/id/unitary-authority/bracknell-forest","Bracknell Forest Council","00MA","Older People (65+)","Long term Support - Community:Homecare","PS Older People 65+ Long Term Support - Community:Homecare","Contracted Services",02/04/2020 00:00:00,"30374449",735.84,"BRIGHT SPARK CARE LIMITED"
"Bracknell Forest Council","http://opendatacommunities.org/id/unitary-authority/bracknell-forest","Bracknell Forest Council","00MA","Older People (65+)","Long term Support - Community:Homecare","MC Older People 65+ Long Term Support - Community:Homecare","Contracted Services",21/05/2020 00:00:00,"30377460",741.91,"BRIGHT SPARK CARE LIMITED"
"Bracknell Forest Council","http://opendatacommunities.org/id/unitary-authority/bracknell-forest","Bracknell Forest Council","00MA","Older People (65+)","Long term Support - Community:Homecare","PS Older People 65+ Long Term Support - Community:Homecare","Contracted Services",21/05/2020 00:00:00,"30377460",761.82,"BRIGHT SPARK CARE LIMITED"
"Bracknell Forest Council","http://opendatacommunities.org/id/unitary-authority/bracknell-forest","Bracknell Forest Council","00MA","Older People (65+)","Long term Support - Community:Homecare","PS Older People 65+ Long Term Support - Community:Homecare","Contracted Services",18/06/2020 00:00:00,"30378678",761.82,"BRIGHT SPARK CARE LIMITED"
"Bracknell Forest Council","http://opendatacommunities.org/id/unitary-authority/bracknell-forest","Bracknell Forest Council","00MA","Older People (65+)","Long term Support - Community:Homecare","MC Older People 65+ Long Term Support - Community:Homecare","Contracted Services",18/06/2020 00:00:00,"30378678",824,"BRIGHT SPARK CARE LIMITED"
"Bracknell Forest Council","http://opendatacommunities.org/id/unitary-authority/bracknell-forest","Bracknell Forest Council","00MA","Older People (65+)","Long term Support - Community:Homecare","PS Older People 65+ Long Term Support - Community:Homecare","Contracted Services",23/04/2020 00:00:00,"30376288",858.48,"BRIGHT SPARK CARE LIMITED"
"Bracknell Forest Council","http://opendatacommunities.org/id/unitary-authority/bracknell-forest","Bracknell Forest Council","00MA","Older People (65+)","Long term Support - Community:Homecare","PS Older People 65+ Long Term Support - Community:Homecare","Contracted Services",21/05/2020 00:00:00,"30377460",888.64,"BRIGHT SPARK CARE LIMITED"
"Bracknell Forest Council","http://opendatacommunities.org/id/unitary-authority/bracknell-forest","Bracknell Forest Council","00MA","Older People (65+)","Long term Support - Community:Homecare","MC Older People 65+ Long Term Support - Community:Homecare","Contracted Services",09/04/2020 00:00:00,"30375025",893.52,"BRIGHT SPARK CARE LIMITED"
"Bracknell Forest Council","http://opendatacommunities.org/id/unitary-authority/bracknell-forest","Bracknell Forest Council","00MA","Older People (65+)","Long term Support - Community:Homecare","MC Older People 65+ Long Term Support - Community:Homecare","Contracted Services",21/05/2020 00:00:00,"30377460",897.56,"BRIGHT SPARK CARE LIMITED"
"Bracknell Forest Council","http://opendatacommunities.org/id/unitary-authority/bracknell-forest","Bracknell Forest Council","00MA","Older People (65+)","Long term Support - Community:Homecare","MC Older People 65+ Long Term Support - Community:Homecare","Contracted Services",23/04/2020 00:00:00,"30376288",913.29,"BRIGHT SPARK CARE LIMITED"
"Bracknell Forest Council","http://opendatacommunities.org/id/unitary-authority/bracknell-forest","Bracknell Forest Council","00MA","Older People (65+)","Long term Support - Community:Homecare","MC Older People 65+ Long Term Support - Community:Homecare","Contracted Services",18/06/2020 00:00:00,"30378678",915.37,"BRIGHT SPARK CARE LIMITED"
"Bracknell Forest Council","http://opendatacommunities.org/id/unitary-authority/bracknell-forest","Bracknell Forest Council","00MA","Older People (65+)","Long term Support - Community:Homecare","MC Older People 65+ Long Term Support - Community:Homecare","Contracted Services",02/04/2020 00:00:00,"30374449",1077.72,"BRIGHT SPARK CARE LIMITED"
"Bracknell Forest Council","http://opendatacommunities.org/id/unitary-authority/bracknell-forest","Bracknell Forest Council","00MA","Adults (18-64)","Long term Support - Community:Homecare","MH Adults 18-64 Long Term Support - Community:Homecare","Contracted Services",02/04/2020 00:00:00,"30374449",1103.76,"BRIGHT SPARK CARE LIMITED"
"Bracknell Forest Council","http://opendatacommunities.org/id/unitary-authority/bracknell-forest","Bracknell Forest Council","00MA","Adults (18-64)","Long term Support - Community:Homecare","MH Adults 18-64 Long Term Support - Community:Homecare","Contracted Services",23/04/2020 00:00:00,"30376288",1121.28,"BRIGHT SPARK CARE LIMITED"
"Bracknell Forest Council","http://opendatacommunities.org/id/unitary-authority/bracknell-forest","Bracknell Forest Council","00MA","Adults (18-64)","Long term Support - Community:Homecare","MH Adults 18-64 Long Term Support - Community:Homecare","Contracted Services",21/05/2020 00:00:00,"30377460",1153.85,"BRIGHT SPARK CARE LIMITED"
"Bracknell Forest Council","http://opendatacommunities.org/id/unitary-authority/bracknell-forest","Bracknell Forest Council","00MA","Older People (65+)","Long term Support - Community:Homecare","MC Older People 65+ Long Term Support - Community:Homecare","Contracted Services",02/04/2020 00:00:00,"30374449",1217.64,"BRIGHT SPARK CARE LIMITED"
"Bracknell Forest Council","http://opendatacommunities.org/id/unitary-authority/bracknell-forest","Bracknell Forest Council","00MA","Older People (65+)","Long term Support - Community:Homecare","MC Older People 65+ Long Term Support - Community:Homecare","Contracted Services",23/04/2020 00:00:00,"30376288",1226.4,"BRIGHT SPARK CARE LIMITED"
"Bracknell Forest Council","http://opendatacommunities.org/id/unitary-authority/bracknell-forest","Bracknell Forest Council","00MA","Older People (65+)","Long term Support - Community:Homecare","MC Older People 65+ Long Term Support - Community:Homecare","Contracted Services",21/05/2020 00:00:00,"30377460",1258.27,"BRIGHT SPARK CARE LIMITED"
"Bracknell Forest Council","http://opendatacommunities.org/id/unitary-authority/bracknell-forest","Bracknell Forest Council","00MA","Older People (65+)","Long term Support - Community:Homecare","MC Older People 65+ Long Term Support - Community:Homecare","Contracted Services",02/04/2020 00:00:00,"30374449",1296.48,"BRIGHT SPARK CARE LIMITED"
"Bracknell Forest Council","http://opendatacommunities.org/id/unitary-authority/bracknell-forest","Bracknell Forest Council","00MA","Older People (65+)","Long term Support - Community:Homecare","PS Older People 65+ Long Term Support - Community:Homecare","Contracted Services",02/04/2020 00:00:00,"30374449",1471.68,"BRIGHT SPARK CARE LIMITED"
"Bracknell Forest Council","http://opendatacommunities.org/id/unitary-authority/bracknell-forest","Bracknell Forest Council","00MA","Older People (65+)","Long term Support - Community:Homecare","PS Older People 65+ Long Term Support - Community:Homecare","Contracted Services",09/04/2020 00:00:00,"30375025",1471.68,"BRIGHT SPARK CARE LIMITED"
"Bracknell Forest Council","http://opendatacommunities.org/id/unitary-authority/bracknell-forest","Bracknell Forest Council","00MA","Older People (65+)","Long term Support - Community:Homecare","PS Older People 65+ Long Term Support - Community:Homecare","Contracted Services",23/04/2020 00:00:00,"30376288",1471.68,"BRIGHT SPARK CARE LIMITED"
"Bracknell Forest Council","http://opendatacommunities.org/id/unitary-authority/bracknell-forest","Bracknell Forest Council","00MA","Older People (65+)","Long term Support - Community:Homecare","MC Older People 65+ Long Term Support - Community:Homecare","Contracted Services",18/06/2020 00:00:00,"30378678",1483.36,"BRIGHT SPARK CARE LIMITED"
"Bracknell Forest Council","http://opendatacommunities.org/id/unitary-authority/bracknell-forest","Bracknell Forest Council","00MA","Older People (65+)","Long term Support - Community:Homecare","PS Older People 65+ Long Term Support - Community:Homecare","Contracted Services",18/06/2020 00:00:00,"30378678",1523.64,"BRIGHT SPARK CARE LIMITED"
"Bracknell Forest Council","http://opendatacommunities.org/id/unitary-authority/bracknell-forest","Bracknell Forest Council","00MA","Older People (65+)","Long term Support - Community:Homecare","PS Older People 65+ Long Term Support - Community:Homecare","Contracted Services",21/05/2020 00:00:00,"30377460",1528.1,"BRIGHT SPARK CARE LIMITED"
"Bracknell Forest Council","http://opendatacommunities.org/id/unitary-authority/bracknell-forest","Bracknell Forest Council","00MA","Adults (18-64)","Long term Support - Community:Homecare","PS Adults 18-64 Long Term Support - Community:Homecare","Contracted Services",02/04/2020 00:00:00,"30374449",1935.96,"BRIGHT SPARK CARE LIMITED"
"Bracknell Forest Council","http://opendatacommunities.org/id/unitary-authority/bracknell-forest","Bracknell Forest Council","00MA","Adults (18-64)","Long term Support - Community:Homecare","PS Adults 18-64 Long Term Support - Community:Homecare","Contracted Services",14/05/2020 00:00:00,"30377194",1988.52,"BRIGHT SPARK CARE LIMITED"
"Bracknell Forest Council","http://opendatacommunities.org/id/unitary-authority/bracknell-forest","Bracknell Forest Council","00MA","Adults (18-64)","Long term Support - Community:Homecare","PS Adults 18-64 Long Term Support - Community:Homecare","Contracted Services",21/05/2020 00:00:00,"30377460",2018.14,"BRIGHT SPARK CARE LIMITED"
"Bracknell Forest Council","http://opendatacommunities.org/id/unitary-authority/bracknell-forest","Bracknell Forest Council","00MA","Adults (18-64)","Long term Support - Community:Homecare","PS Adults 18-64 Long Term Support - Community:Homecare","Contracted Services",18/06/2020 00:00:00,"30378678",2031.5,"BRIGHT SPARK CARE LIMITED"
"Bracknell Forest Council","http://opendatacommunities.org/id/unitary-authority/bracknell-forest","Bracknell Forest Council","00MA","Older People (65+)","Long term Support - Community:Homecare","PS Older People 65+ Long Term Support - Community:Homecare","Contracted Services",02/04/2020 00:00:00,"30374449",2207.52,"BRIGHT SPARK CARE LIMITED"
"Bracknell Forest Council","http://opendatacommunities.org/id/unitary-authority/bracknell-forest","Bracknell Forest Council","00MA","Adults (18-64)","Long term Support - Community:Homecare","PS Adults 18-64 Long Term Support - Community:Homecare","Contracted Services",02/04/2020 00:00:00,"30374449",2207.52,"BRIGHT SPARK CARE LIMITED"
"Bracknell Forest Council","http://opendatacommunities.org/id/unitary-authority/bracknell-forest","Bracknell Forest Council","00MA","Older People (65+)","Long term Support - Community:Homecare","PS Older People 65+ Long Term Support - Community:Homecare","Contracted Services",23/04/2020 00:00:00,"30376288",2207.52,"BRIGHT SPARK CARE LIMITED"
"Bracknell Forest Council","http://opendatacommunities.org/id/unitary-authority/bracknell-forest","Bracknell Forest Council","00MA","Adults (18-64)","Long term Support - Community:Homecare","PS Adults 18-64 Long Term Support - Community:Homecare","Contracted Services",23/04/2020 00:00:00,"30376288",2207.52,"BRIGHT SPARK CARE LIMITED"
"Bracknell Forest Council","http://opendatacommunities.org/id/unitary-authority/bracknell-forest","Bracknell Forest Council","00MA","Older People (65+)","Long term Support - Community:Homecare","MC Older People 65+ Long Term Support - Community:Homecare","Contracted Services",23/04/2020 00:00:00,"30376288",2207.52,"BRIGHT SPARK CARE LIMITED"
"Bracknell Forest Council","http://opendatacommunities.org/id/unitary-authority/bracknell-forest","Bracknell Forest Council","00MA","Adults (18-64)","Long Term Support - Community:Supported Living","LD Adults 18-64 Long Term Support - Community:Supported Living","Contracted Services",14/05/2020 00:00:00,"30377194",4539.7,"CHOICE SUPPORTED LIVING- BRACKNELL"
"Bracknell Forest Council","http://opendatacommunities.org/id/unitary-authority/bracknell-forest","Bracknell Forest Council","00MA","Adults (18-64)","Long Term Support - Community:Supported Living","LD Adults 18-64 Long Term Support - Community:Supported Living","Contracted Services",04/06/2020 00:00:00,"30378064",4564,"CHOICE SUPPORTED LIVING- BRACKNELL"
"Bracknell Forest Council","http://opendatacommunities.org/id/unitary-authority/bracknell-forest","Bracknell Forest Council","00MA","Adults (18-64)","Long Term Support - Community:Supported Living","LD Adults 18-64 Long Term Support - Community:Supported Living","Contracted Services",04/06/2020 00:00:00,"30378064",4564,"CHOICE SUPPORTED LIVING- BRACKNELL"
"Bracknell Forest Council","http://opendatacommunities.org/id/unitary-authority/bracknell-forest","Bracknell Forest Council","00MA","Adults (18-64)","Long term Support - Community:Homecare","LD Adults 18-64 Long Term Support - Community:Homecare","Contracted Services",04/06/2020 00:00:00,"30378064",4598.22,"CHOICE SUPPORTED LIVING- BRACKNELL"
"Bracknell Forest Council","http://opendatacommunities.org/id/unitary-authority/bracknell-forest","Bracknell Forest Council","00MA","Adults (18-64)","Long Term Support - Community:Supported Living","LD Adults 18-64 Long Term Support - Community:Supported Living","Contracted Services",23/04/2020 00:00:00,"30376288",4798.24,"CHOICE SUPPORTED LIVING- BRACKNELL"
"Bracknell Forest Council","http://opendatacommunities.org/id/unitary-authority/bracknell-forest","Bracknell Forest Council","00MA","Adults (18-64)","Long Term Support - Community:Supported Living","LD Adults 18-64 Long Term Support - Community:Supported Living","Contracted Services",23/04/2020 00:00:00,"30376288",4798.24,"CHOICE SUPPORTED LIVING- BRACKNELL"
"Bracknell Forest Council","http://opendatacommunities.org/id/unitary-authority/bracknell-forest","Bracknell Forest Council","00MA","Adults (18-64)","Long Term Support - Community:Supported Living","LD Adults 18-64 Long Term Support - Community:Supported Living","Contracted Services",23/04/2020 00:00:00,"30376288",4798.24,"CHOICE SUPPORTED LIVING- BRACKNELL"
"Bracknell Forest Council","http://opendatacommunities.org/id/unitary-authority/bracknell-forest","Bracknell Forest Council","00MA","Adults (18-64)","Long Term Support - Community:Supported Living","LD Adults 18-64 Long Term Support - Community:Supported Living","Contracted Services",04/06/2020 00:00:00,"30378064",4823.93,"CHOICE SUPPORTED LIVING- BRACKNELL"
"Bracknell Forest Council","http://opendatacommunities.org/id/unitary-authority/bracknell-forest","Bracknell Forest Council","00MA","Adults (18-64)","Long Term Support - Community:Supported Living","LD Adults 18-64 Long Term Support - Community:Supported Living","Contracted Services",04/06/2020 00:00:00,"30378064",4823.93,"CHOICE SUPPORTED LIVING- BRACKNELL"
"Bracknell Forest Council","http://opendatacommunities.org/id/unitary-authority/bracknell-forest","Bracknell Forest Council","00MA","Adults (18-64)","Long Term Support - Community:Supported Living","LD Adults 18-64 Long Term Support - Community:Supported Living","Contracted Services",04/06/2020 00:00:00,"30378064",4823.93,"CHOICE SUPPORTED LIVING- BRACKNELL"
"Bracknell Forest Council","http://opendatacommunities.org/id/unitary-authority/bracknell-forest","Bracknell Forest Council","00MA","Adults (18-64)","Long Term Support - Community:Supported Living","LD Adults 18-64 Long Term Support - Community:Supported Living","Contracted Services",23/04/2020 00:00:00,"30376288",5877.34,"CHOICE SUPPORTED LIVING- BRACKNELL"
"Bracknell Forest Council","http://opendatacommunities.org/id/unitary-authority/bracknell-forest","Bracknell Forest Council","00MA","Older People (65+)","Long term Support - Community:Homecare","MC Older People 65+ Long Term Support - Community:Homecare","Contracted Services",21/05/2020 00:00:00,"30377460",2267.34,"BRIGHT SPARK CARE LIMITED"
"Bracknell Forest Council","http://opendatacommunities.org/id/unitary-authority/bracknell-forest","Bracknell Forest Council","00MA","Adults (18-64)","Long term Support - Community:Homecare","PS Adults 18-64 Long Term Support - Community:Homecare","Contracted Services",21/05/2020 00:00:00,"30377460",2285.16,"BRIGHT SPARK CARE LIMITED"
"Bracknell Forest Council","http://opendatacommunities.org/id/unitary-authority/bracknell-forest","Bracknell Forest Council","00MA","Older People (65+)","Long term Support - Community:Homecare","PS Older People 65+ Long Term Support - Community:Homecare","Contracted Services",21/05/2020 00:00:00,"30377460",2285.16,"BRIGHT SPARK CARE LIMITED"
"Bracknell Forest Council","http://opendatacommunities.org/id/unitary-authority/bracknell-forest","Bracknell Forest Council","00MA","Adults (18-64)","Long term Support - Community:Homecare","PS Adults 18-64 Long Term Support - Community:Homecare","Contracted Services",18/06/2020 00:00:00,"30378678",2285.16,"BRIGHT SPARK CARE LIMITED"
"Bracknell Forest Council","http://opendatacommunities.org/id/unitary-authority/bracknell-forest","Bracknell Forest Council","00MA","Older People (65+)","Long term Support - Community:Homecare","PS Older People 65+ Long Term Support - Community:Homecare","Contracted Services",18/06/2020 00:00:00,"30378678",2285.16,"BRIGHT SPARK CARE LIMITED"
"Bracknell Forest Council","http://opendatacommunities.org/id/unitary-authority/bracknell-forest","Bracknell Forest Council","00MA","Children Looked After","Fostering services","Independent Fostering (Non BFBC)","Contracted Services",19/06/2020 00:00:00,"6705257",3257.1,"BRIGHTER FUTURES FOSTER CARE LTD"
"Bracknell Forest Council","http://opendatacommunities.org/id/unitary-authority/bracknell-forest","Bracknell Forest Council","00MA","Children Looked After","Fostering services","Independent Fostering (Non BFBC)","Contracted Services",01/05/2020 00:00:00,"6703383",3365.67,"BRIGHTER FUTURES FOSTER CARE LTD"
"Bracknell Forest Council","http://opendatacommunities.org/id/unitary-authority/bracknell-forest","Bracknell Forest Council","00MA","Children Looked After","Fostering services","Independent Fostering (Non BFBC)","Contracted Services",01/05/2020 00:00:00,"6702458",5265.97,"BRIGHTER FUTURES FOSTER CARE LTD"
"Bracknell Forest Council","http://opendatacommunities.org/id/unitary-authority/bracknell-forest","Bracknell Forest Council","00MA","Older People (65+)","Long Term Support - Nursing","PS Older People 65+ Long Term Support - Nursing","Contracted Services",11/06/2020 00:00:00,"30378358",-1061.62,"BRIGHTERKIND/THE BERKSHIRE CARE HOME"
"Bracknell Forest Council","http://opendatacommunities.org/id/unitary-authority/bracknell-forest","Bracknell Forest Council","00MA","Older People (65+)","Long Term Support - Nursing","PS Older People 65+ Long Term Support - Nursing","Contracted Services",14/05/2020 00:00:00,"30377203",1358.42,"BRIGHTERKIND/THE BERKSHIRE CARE HOME"
"Bracknell Forest Council","http://opendatacommunities.org/id/unitary-authority/bracknell-forest","Bracknell Forest Council","00MA","Older People (65+)","Long Term Support - Nursing","PS Older People 65+ Long Term Support - Nursing","Contracted Services",16/04/2020 00:00:00,"30375595",2453.46,"BRIGHTERKIND/THE BERKSHIRE CARE HOME"
"Bracknell Forest Council","http://opendatacommunities.org/id/unitary-authority/bracknell-forest","Bracknell Forest Council","00MA","Older People (65+)","Long Term Support - Nursing","PS Older People 65+ Long Term Support - Nursing","Contracted Services",14/05/2020 00:00:00,"30377203",2477.12,"BRIGHTERKIND/THE BERKSHIRE CARE HOME"
"Bracknell Forest Council","http://opendatacommunities.org/id/unitary-authority/bracknell-forest","Bracknell Forest Council","00MA","Adults (18-64)","Long Term Support - Community:Supported Living","LD Adults 18-64 Long Term Support - Community:Supported Living","Contracted Services",04/06/2020 00:00:00,"30378064",5908.84,"CHOICE SUPPORTED LIVING- BRACKNELL"
"Bracknell Forest Council","http://opendatacommunities.org/id/unitary-authority/bracknell-forest","Bracknell Forest Council","00MA","Adults (18-64)","Long Term Support - Community:Supported Living","LD Adults 18-64 Long Term Support - Community:Supported Living","Contracted Services",02/04/2020 00:00:00,"30374449",6178.11,"CHOICE SUPPORTED LIVING- BRACKNELL"
"Bracknell Forest Council","http://opendatacommunities.org/id/unitary-authority/bracknell-forest","Bracknell Forest Council","00MA","Adults (18-64)","Long Term Support - Community:Supported Living","LD Adults 18-64 Long Term Support - Community:Supported Living","Contracted Services",23/04/2020 00:00:00,"30376288",8147.19,"CHOICE SUPPORTED LIVING- BRACKNELL"
"Bracknell Forest Council","http://opendatacommunities.org/id/unitary-authority/bracknell-forest","Bracknell Forest Council","00MA","Adults (18-64)","Long Term Support - Community:Supported Living","LD Adults 18-64 Long Term Support - Community:Supported Living","Contracted Services",04/06/2020 00:00:00,"30378064",8190.84,"CHOICE SUPPORTED LIVING- BRACKNELL"
"Bracknell Forest Council","http://opendatacommunities.org/id/unitary-authority/bracknell-forest","Bracknell Forest Council","00MA","Adults (18-64)","Long Term Support - Community:Supported Living","Autism Adults 18-64 Long Term Support - Community : Supported Living","Contracted Services",23/04/2020 00:00:00,"30376288",641.2,"CHOICE SUPPORTED LIVING- POOLE"
"Bracknell Forest Council","http://opendatacommunities.org/id/unitary-authority/bracknell-forest","Bracknell Forest Council","00MA","Adults (18-64)","Long Term Support - Community:Supported Living","Autism Adults 18-64 Long Term Support - Community : Supported Living","Contracted Services",30/04/2020 00:00:00,"30376578",648.53,"CHOICE SUPPORTED LIVING- POOLE"
"Bracknell Forest Council","http://opendatacommunities.org/id/unitary-authority/bracknell-forest","Bracknell Forest Council","00MA","Adults (18-64)","Long Term Support - Community:Supported Living","Autism Adults 18-64 Long Term Support - Community : Supported Living","Contracted Services",04/06/2020 00:00:00,"30378064",652,"CHOICE SUPPORTED LIVING- POOLE"
"Bracknell Forest Council","http://opendatacommunities.org/id/unitary-authority/bracknell-forest","Bracknell Forest Council","00MA","Special Schools & Alternative Provision","Delegated Special and Alternative Provision Budgets","Kennel Lane","R&M - Service Contracts",27/05/2020 00:00:00,"6704024",662.76,"CHURCHES FIRE SECURITY LTD"
"Bracknell Forest Council","http://opendatacommunities.org/id/unitary-authority/bracknell-forest","Bracknell Forest Council","00MA","NHS Health Check Programme","NHS Health Check Programme","GP Health Checks","Contracted Services",03/04/2020 00:00:00,"6701704",1340,"CIPPENHAM SURGERY- DR A M NABI PRACTICE"
"Bracknell Forest Council","http://opendatacommunities.org/id/unitary-authority/bracknell-forest","Bracknell Forest Council","00MA","Sure Start Children's Centres","Centrally managed expenditure - children's centres","EH Children's Centres","Other Fees for Bought-in Services",16/03/2020 00:00:00,"6701657",4575,"CITIZENS ADVICE BUREAU"
"Bracknell Forest Council","http://opendatacommunities.org/id/unitary-authority/bracknell-forest","Bracknell Forest Council","00MA","General Grants, Bequests & Donations","General Grants, Bequests & Donations","Performance & Partnerships","Grants and Donations",01/04/2020 00:00:00,"6701498",41813,"CITIZENS ADVICE BUREAU"
"Bracknell Forest Council","http://opendatacommunities.org/id/unitary-authority/bracknell-forest","Bracknell Forest Council","00MA","Older People (65+)","Long Term Support - Nursing","PS Older People 65+ Long Term Support - Nursing","Contracted Services",16/04/2020 00:00:00,"30375595",3424.77,"BRIGHTERKIND/THE BERKSHIRE CARE HOME"
"Bracknell Forest Council","http://opendatacommunities.org/id/unitary-authority/bracknell-forest","Bracknell Forest Council","00MA","Older People (65+)","Long Term Support - Nursing","PS Older People 65+ Long Term Support - Nursing","Contracted Services",16/04/2020 00:00:00,"30375595",3447.38,"BRIGHTERKIND/THE BERKSHIRE CARE HOME"
"Bracknell Forest Council","http://opendatacommunities.org/id/unitary-authority/bracknell-forest","Bracknell Forest Council","00MA","Older People (65+)","Long Term Support - Nursing","PS Older People 65+ Long Term Support - Nursing","Contracted Services",14/05/2020 00:00:00,"30377203",3480.64,"BRIGHTERKIND/THE BERKSHIRE CARE HOME"
"Bracknell Forest Council","http://opendatacommunities.org/id/unitary-authority/bracknell-forest","Bracknell Forest Council","00MA","Older People (65+)","Long Term Support - Nursing","PS Older People 65+ Long Term Support - Nursing","Contracted Services",11/06/2020 00:00:00,"30378358",3480.64,"BRIGHTERKIND/THE BERKSHIRE CARE HOME"
"Bracknell Forest Council","http://opendatacommunities.org/id/unitary-authority/bracknell-forest","Bracknell Forest Council","00MA","Older People (65+)","Long Term Support - Nursing","PS Older People 65+ Long Term Support - Nursing","Contracted Services",16/04/2020 00:00:00,"30375595",3556.15,"BRIGHTERKIND/THE BERKSHIRE CARE HOME"
"Bracknell Forest Council","http://opendatacommunities.org/id/unitary-authority/bracknell-forest","Bracknell Forest Council","00MA","Older People (65+)","Long Term Support - Nursing","PS Older People 65+ Long Term Support - Nursing","Contracted Services",16/04/2020 00:00:00,"30375595",3556.15,"BRIGHTERKIND/THE BERKSHIRE CARE HOME"
"Bracknell Forest Council","http://opendatacommunities.org/id/unitary-authority/bracknell-forest","Bracknell Forest Council","00MA","Older People (65+)","Long Term Support - Nursing","MC Older People 65+ Long Term Support - Nursing","Contracted Services",16/04/2020 00:00:00,"30375595",3556.15,"BRIGHTERKIND/THE BERKSHIRE CARE HOME"
"Bracknell Forest Council","http://opendatacommunities.org/id/unitary-authority/bracknell-forest","Bracknell Forest Council","00MA","Older People (65+)","Long Term Support - Nursing","MC Older People 65+ Long Term Support - Nursing","Contracted Services",14/05/2020 00:00:00,"30377203",3590.44,"BRIGHTERKIND/THE BERKSHIRE CARE HOME"
"Bracknell Forest Council","http://opendatacommunities.org/id/unitary-authority/bracknell-forest","Bracknell Forest Council","00MA","Older People (65+)","Long Term Support - Nursing","PS Older People 65+ Long Term Support - Nursing","Contracted Services",14/05/2020 00:00:00,"30377203",3590.44,"BRIGHTERKIND/THE BERKSHIRE CARE HOME"
"Bracknell Forest Council","http://opendatacommunities.org/id/unitary-authority/bracknell-forest","Bracknell Forest Council","00MA","Older People (65+)","Long Term Support - Nursing","PS Older People 65+ Long Term Support - Nursing","Contracted Services",14/05/2020 00:00:00,"30377203",3590.44,"BRIGHTERKIND/THE BERKSHIRE CARE HOME"
"Bracknell Forest Council","http://opendatacommunities.org/id/unitary-authority/bracknell-forest","Bracknell Forest Council","00MA","Older People (65+)","Long Term Support - Nursing","MC Older People 65+ Long Term Support - Nursing","Contracted Services",11/06/2020 00:00:00,"30378358",3590.44,"BRIGHTERKIND/THE BERKSHIRE CARE HOME"
"Bracknell Forest Council","http://opendatacommunities.org/id/unitary-authority/bracknell-forest","Bracknell Forest Council","00MA","Older People (65+)","Long Term Support - Nursing","PS Older People 65+ Long Term Support - Nursing","Contracted Services",11/06/2020 00:00:00,"30378358",3590.44,"BRIGHTERKIND/THE BERKSHIRE CARE HOME"
"Bracknell Forest Council","http://opendatacommunities.org/id/unitary-authority/bracknell-forest","Bracknell Forest Council","00MA","Older People (65+)","Long Term Support - Nursing","PS Older People 65+ Long Term Support - Nursing","Contracted Services",11/06/2020 00:00:00,"30378358",3590.44,"BRIGHTERKIND/THE BERKSHIRE CARE HOME"
"Bracknell Forest Council","http://opendatacommunities.org/id/unitary-authority/bracknell-forest","Bracknell Forest Council","00MA","Sexual Health Services","STI testing and treatment","Sexual Health - STI Testing & Treatment (Berks)","Contracted Services",31/03/2020 00:00:00,"6701934",533.93,"BRIGHTON AND SUSSEX UNIVERSITY HOSPITALS NHS TRUST"
"Bracknell Forest Council","http://opendatacommunities.org/id/unitary-authority/bracknell-forest","Bracknell Forest Council","00MA","Culture and Heritage","Heritage Museums & Galleries","The Look Out","Cost of Goods Sold",27/03/2020 00:00:00,"6705642",824.3,"BRITISH FOSSILS"
"Bracknell Forest Council","http://opendatacommunities.org/id/unitary-authority/bracknell-forest","Bracknell Forest Council","00MA","Special Schools","Delegated Secondary Schools Budgets","Sandhurst - Secondary","Electricity",10/06/2020 00:00:00,"30379141",-586.68,"BRITISH GAS BUSINESS"
"Bracknell Forest Council","http://opendatacommunities.org/id/unitary-authority/bracknell-forest","Bracknell Forest Council","00MA","Secondary Schools","Delegated Primary School Budgets","St Michael's (Sandhurst) - Primary","Electricity",11/05/2020 00:00:00,"30377792",-503.59,"BRITISH GAS BUSINESS"
"Bracknell Forest Council","http://opendatacommunities.org/id/unitary-authority/bracknell-forest","Bracknell Forest Council","00MA","Secondary Schools","Delegated Primary School Budgets","St Michael's (Sandhurst) - Primary","Electricity",11/05/2020 00:00:00,"30377792",503.59,"BRITISH GAS BUSINESS"
"Bracknell Forest Council","http://opendatacommunities.org/id/unitary-authority/bracknell-forest","Bracknell Forest Council","00MA","Secondary Schools","Delegated Primary School Budgets","Wooden Hill - Primary","Electricity",10/06/2020 00:00:00,"30379141",514.66,"BRITISH GAS BUSINESS"
"Bracknell Forest Council","http://opendatacommunities.org/id/unitary-authority/bracknell-forest","Bracknell Forest Council","00MA","Special Schools","Delegated Secondary Schools Budgets","Garth Hill ASD Unit","Electricity",11/05/2020 00:00:00,"30377792",530.86,"BRITISH GAS BUSINESS"
"Bracknell Forest Council","http://opendatacommunities.org/id/unitary-authority/bracknell-forest","Bracknell Forest Council","00MA","Sure Start Children's Centres","Children's centres - direct","The Rowans Family Hub","Electricity",11/05/2020 00:00:00,"30377792",537.77,"BRITISH GAS BUSINESS"
"Bracknell Forest Council","http://opendatacommunities.org/id/unitary-authority/bracknell-forest","Bracknell Forest Council","00MA","Internal Services","Internal Services","Waymead - Short Stay","Electricity",11/05/2020 00:00:00,"30377792",539.31,"BRITISH GAS BUSINESS"
"Bracknell Forest Council","http://opendatacommunities.org/id/unitary-authority/bracknell-forest","Bracknell Forest Council","00MA","Special Schools & Alternative Provision","Pre-School Education","College Hall PRU","Electricity",11/05/2020 00:00:00,"30377792",542.46,"BRITISH GAS BUSINESS"
"Bracknell Forest Council","http://opendatacommunities.org/id/unitary-authority/bracknell-forest","Bracknell Forest Council","00MA","Secondary Schools","Delegated Primary School Budgets","St Michael's (Easthampstead) - Primary","Electricity",11/05/2020 00:00:00,"30377792",558.49,"BRITISH GAS BUSINESS"
"Bracknell Forest Council","http://opendatacommunities.org/id/unitary-authority/bracknell-forest","Bracknell Forest Council","00MA","Management and Support Services - CYPL","Holding Codes - net nil","Edgbarrow Academy","Electricity",14/04/2020 00:00:00,"30376312",558.98,"BRITISH GAS BUSINESS"
"Bracknell Forest Council","http://opendatacommunities.org/id/unitary-authority/bracknell-forest","Bracknell Forest Council","00MA","Secondary Schools","Delegated Primary School Budgets","Owlsmoor - Primary","Electricity",10/06/2020 00:00:00,"30379141",561.89,"BRITISH GAS BUSINESS"
"Bracknell Forest Council","http://opendatacommunities.org/id/unitary-authority/bracknell-forest","Bracknell Forest Council","00MA","Management and Support Services - CYPL","Holding Codes - net nil","Great Hollands Academy","Electricity",11/05/2020 00:00:00,"30377792",575.23,"BRITISH GAS BUSINESS"
"Bracknell Forest Council","http://opendatacommunities.org/id/unitary-authority/bracknell-forest","Bracknell Forest Council","00MA","Secondary Schools","Delegated Primary School Budgets","The Pines School","Electricity",10/06/2020 00:00:00,"30379141",577.73,"BRITISH GAS BUSINESS"
"Bracknell Forest Council","http://opendatacommunities.org/id/unitary-authority/bracknell-forest","Bracknell Forest Council","00MA","Secondary Schools","Delegated Primary School Budgets","College Town Primary School","Electricity",10/06/2020 00:00:00,"30379141",584.31,"BRITISH GAS BUSINESS"
"Bracknell Forest Council","http://opendatacommunities.org/id/unitary-authority/bracknell-forest","Bracknell Forest Council","00MA","Libraries","Branch Libraries","Harmans Water Library","Gas",06/03/2020 00:00:00,"6701778",586.11,"BRITISH GAS BUSINESS"
"Bracknell Forest Council","http://opendatacommunities.org/id/unitary-authority/bracknell-forest","Bracknell Forest Council","00MA","Special Schools","Delegated Secondary Schools Budgets","Sandhurst - Secondary","Electricity",11/05/2020 00:00:00,"30377792",586.68,"BRITISH GAS BUSINESS"
"Bracknell Forest Council","http://opendatacommunities.org/id/unitary-authority/bracknell-forest","Bracknell Forest Council","00MA","Secondary Schools","Delegated Primary School Budgets","The Pines School","Electricity",11/05/2020 00:00:00,"30377792",586.99,"BRITISH GAS BUSINESS"
"Bracknell Forest Council","http://opendatacommunities.org/id/unitary-authority/bracknell-forest","Bracknell Forest Council","00MA","Management and Support Services - CYPL","Holding Codes - net nil","Jennetts Park Academy","Electricity",11/05/2020 00:00:00,"30377792",588.21,"BRITISH GAS BUSINESS"
"Bracknell Forest Council","http://opendatacommunities.org/id/unitary-authority/bracknell-forest","Bracknell Forest Council","00MA","Secondary Schools","Delegated Primary School Budgets","Sandy Lane Primary School","Electricity",11/05/2020 00:00:00,"30377792",589.38,"BRITISH GAS BUSINESS"
"Bracknell Forest Council","http://opendatacommunities.org/id/unitary-authority/bracknell-forest","Bracknell Forest Council","00MA","Business Support","Premises Development","Liscombe - Service Charges","Electricity",14/04/2020 00:00:00,"30376312",592.98,"BRITISH GAS BUSINESS"
"Bracknell Forest Council","http://opendatacommunities.org/id/unitary-authority/bracknell-forest","Bracknell Forest Council","00MA","Secondary Schools","Delegated Primary School Budgets","Crowthorne - Primary","Electricity",11/05/2020 00:00:00,"30377792",595.41,"BRITISH GAS BUSINESS"
"Bracknell Forest Council","http://opendatacommunities.org/id/unitary-authority/bracknell-forest","Bracknell Forest Council","00MA","Secondary Schools","Delegated Primary School Budgets","Sandy Lane Primary School","Electricity",10/06/2020 00:00:00,"30379141",597.3,"BRITISH GAS BUSINESS"
"Bracknell Forest Council","http://opendatacommunities.org/id/unitary-authority/bracknell-forest","Bracknell Forest Council","00MA","Management and Support Services - CYPL","Holding Codes - net nil","Jennetts Park Academy","Electricity",10/06/2020 00:00:00,"30379141",597.5,"BRITISH GAS BUSINESS"
"Bracknell Forest Council","http://opendatacommunities.org/id/unitary-authority/bracknell-forest","Bracknell Forest Council","00MA","Special Schools & Alternative Provision","Delegated Special and Alternative Provision Budgets","Kennel Lane","Electricity",10/06/2020 00:00:00,"30379141",611.5,"BRITISH GAS BUSINESS"
"Bracknell Forest Council","http://opendatacommunities.org/id/unitary-authority/bracknell-forest","Bracknell Forest Council","00MA","Secondary Schools","Delegated Primary School Budgets","St Michael's (Sandhurst) - Primary","Electricity",11/05/2020 00:00:00,"30377792",626.35,"BRITISH GAS BUSINESS"
"Bracknell Forest Council","http://opendatacommunities.org/id/unitary-authority/bracknell-forest","Bracknell Forest Council","00MA","Secondary Schools","Delegated Primary School Budgets","Meadow Vale - Primary","Electricity",10/06/2020 00:00:00,"30379141",634.81,"BRITISH GAS BUSINESS"
"Bracknell Forest Council","http://opendatacommunities.org/id/unitary-authority/bracknell-forest","Bracknell Forest Council","00MA","Management and Support Services - CYPL","Holding Codes - net nil","Ranelagh Academy","Electricity",11/05/2020 00:00:00,"30377792",638.51,"BRITISH GAS BUSINESS"
"Bracknell Forest Council","http://opendatacommunities.org/id/unitary-authority/bracknell-forest","Bracknell Forest Council","00MA","Secondary Schools","Delegated Primary School Budgets","Meadow Vale - Primary","Electricity",11/05/2020 00:00:00,"30377792",647.51,"BRITISH GAS BUSINESS"
"Bracknell Forest Council","http://opendatacommunities.org/id/unitary-authority/bracknell-forest","Bracknell Forest Council","00MA","Homelessness","Directly with a Private Sector Landlord","Yorktown Road","Gas",11/06/2020 00:00:00,"6704981",648.7,"BRITISH GAS BUSINESS"
"Bracknell Forest Council","http://opendatacommunities.org/id/unitary-authority/bracknell-forest","Bracknell Forest Council","00MA","Special Schools & Alternative Provision","Delegated Special and Alternative Provision Budgets","Kennel Lane","Electricity",11/05/2020 00:00:00,"30377792",656.32,"BRITISH GAS BUSINESS"
"Bracknell Forest Council","http://opendatacommunities.org/id/unitary-authority/bracknell-forest","Bracknell Forest Council","00MA","Management and Support Services - CYPL","Holding Codes - net nil","Edgbarrow Academy","Electricity",11/05/2020 00:00:00,"30377792",664.95,"BRITISH GAS BUSINESS"
"Bracknell Forest Council","http://opendatacommunities.org/id/unitary-authority/bracknell-forest","Bracknell Forest Council","00MA","Management and Support Services - CYPL","Holding Codes - net nil","Edgbarrow Academy","Electricity",11/05/2020 00:00:00,"30377792",693.85,"BRITISH GAS BUSINESS"
"Bracknell Forest Council","http://opendatacommunities.org/id/unitary-authority/bracknell-forest","Bracknell Forest Council","00MA","Secondary Schools","Delegated Primary School Budgets","Wildridings - Primary","Electricity",11/05/2020 00:00:00,"30377792",715.17,"BRITISH GAS BUSINESS"
"Bracknell Forest Council","http://opendatacommunities.org/id/unitary-authority/bracknell-forest","Bracknell Forest Council","00MA","Special Schools","Delegated Secondary Schools Budgets","Garth Hill ASD Unit","Electricity",14/04/2020 00:00:00,"30376312",745.21,"BRITISH GAS BUSINESS"
"Bracknell Forest Council","http://opendatacommunities.org/id/unitary-authority/bracknell-forest","Bracknell Forest Council","00MA","Business Support","Premises Development","Bus/Rail Interchange","Electricity",14/04/2020 00:00:00,"30376312",748.64,"BRITISH GAS BUSINESS"
"Bracknell Forest Council","http://opendatacommunities.org/id/unitary-authority/bracknell-forest","Bracknell Forest Council","00MA","Secondary Schools","Delegated Primary School Budgets","Wildridings - Primary","Electricity",11/05/2020 00:00:00,"30377792",750.08,"BRITISH GAS BUSINESS"
"Bracknell Forest Council","http://opendatacommunities.org/id/unitary-authority/bracknell-forest","Bracknell Forest Council","00MA","Special Schools","Delegated Secondary Schools Budgets","Sandhurst - Secondary","Electricity",11/05/2020 00:00:00,"30377792",760.05,"BRITISH GAS BUSINESS"
"Bracknell Forest Council","http://opendatacommunities.org/id/unitary-authority/bracknell-forest","Bracknell Forest Council","00MA","Secondary Schools","Delegated Primary School Budgets","College Town Primary School","Electricity",11/05/2020 00:00:00,"30377792",770.06,"BRITISH GAS BUSINESS"
"Bracknell Forest Council","http://opendatacommunities.org/id/unitary-authority/bracknell-forest","Bracknell Forest Council","00MA","Secondary Schools","Delegated Primary School Budgets","St Joseph's - Catholic Primary","Electricity",11/05/2020 00:00:00,"30377792",775.84,"BRITISH GAS BUSINESS"
"Bracknell Forest Council","http://opendatacommunities.org/id/unitary-authority/bracknell-forest","Bracknell Forest Council","00MA","Secondary Schools","Delegated Primary School Budgets","Fox Hill - Primary","Electricity",11/05/2020 00:00:00,"30377792",776.89,"BRITISH GAS BUSINESS"
"Bracknell Forest Council","http://opendatacommunities.org/id/unitary-authority/bracknell-forest","Bracknell Forest Council","00MA","Secondary Schools","Delegated Primary School Budgets","Cranbourne - Primary","Electricity",11/05/2020 00:00:00,"30377792",778.21,"BRITISH GAS BUSINESS"
"Bracknell Forest Council","http://opendatacommunities.org/id/unitary-authority/bracknell-forest","Bracknell Forest Council","00MA","Secondary Schools","Delegated Primary School Budgets","Uplands - Primary School and Nursery","Electricity",11/05/2020 00:00:00,"30377792",779.97,"BRITISH GAS BUSINESS"
"Bracknell Forest Council","http://opendatacommunities.org/id/unitary-authority/bracknell-forest","Bracknell Forest Council","00MA","Management and Support Services - CYPL","Strategy, Resources and Early Interventions","EY Provision - Priestwood (Guide Centre)","Gas",07/04/2020 00:00:00,"6702531",817.26,"BRITISH GAS BUSINESS"
"Bracknell Forest Council","http://opendatacommunities.org/id/unitary-authority/bracknell-forest","Bracknell Forest Council","00MA","Secondary Schools","Delegated Primary School Budgets","New Scotland Hill - Primary","Electricity",10/06/2020 00:00:00,"30379141",821.91,"BRITISH GAS BUSINESS"
"Bracknell Forest Council","http://opendatacommunities.org/id/unitary-authority/bracknell-forest","Bracknell Forest Council","00MA","Secondary Schools","Delegated Primary School Budgets","Harmans Water - Primary","Electricity",10/06/2020 00:00:00,"30379141",828.94,"BRITISH GAS BUSINESS"
"Bracknell Forest Council","http://opendatacommunities.org/id/unitary-authority/bracknell-forest","Bracknell Forest Council","00MA","Management and Support Services - CYPL","Holding Codes - net nil","Great Hollands Academy","Electricity",11/05/2020 00:00:00,"30377792",829.85,"BRITISH GAS BUSINESS"
"Bracknell Forest Council","http://opendatacommunities.org/id/unitary-authority/bracknell-forest","Bracknell Forest Council","00MA","Secondary Schools","Delegated Primary School Budgets","New Scotland Hill - Primary","Electricity",11/05/2020 00:00:00,"30377792",838.2,"BRITISH GAS BUSINESS"
"Bracknell Forest Council","http://opendatacommunities.org/id/unitary-authority/bracknell-forest","Bracknell Forest Council","00MA","Services for Young People","Universal services for young people","Portman Close Running Costs","Electricity",10/06/2020 00:00:00,"30379141",859.32,"BRITISH GAS BUSINESS"
"Bracknell Forest Council","http://opendatacommunities.org/id/unitary-authority/bracknell-forest","Bracknell Forest Council","00MA","Management and Support Services - CYPL","Holding Codes - net nil","St Margaret Clitherow Academy","Electricity",11/05/2020 00:00:00,"30377792",863.7,"BRITISH GAS BUSINESS"
"Bracknell Forest Council","http://opendatacommunities.org/id/unitary-authority/bracknell-forest","Bracknell Forest Council","00MA","Services for Young People","Universal services for young people","Portman Close Running Costs","Electricity",11/05/2020 00:00:00,"30377792",889.57,"BRITISH GAS BUSINESS"
"Bracknell Forest Council","http://opendatacommunities.org/id/unitary-authority/bracknell-forest","Bracknell Forest Council","00MA","Services for Young People","Universal services for young people","Portman Close Running Costs","Electricity",14/04/2020 00:00:00,"30376312",961.39,"BRITISH GAS BUSINESS"
"Bracknell Forest Council","http://opendatacommunities.org/id/unitary-authority/bracknell-forest","Bracknell Forest Council","00MA","Secondary Schools","Delegated Primary School Budgets","The Pines School","Electricity",11/05/2020 00:00:00,"30377792",961.78,"BRITISH GAS BUSINESS"
"Bracknell Forest Council","http://opendatacommunities.org/id/unitary-authority/bracknell-forest","Bracknell Forest Council","00MA","Secondary Schools","Delegated Primary School Budgets","College Town Primary School","Electricity",11/05/2020 00:00:00,"30377792",998.44,"BRITISH GAS BUSINESS"
"Bracknell Forest Council","http://opendatacommunities.org/id/unitary-authority/bracknell-forest","Bracknell Forest Council","00MA","Management and Support Services - CYPL","Holding Codes - net nil","Edgbarrow Academy","Electricity",14/04/2020 00:00:00,"30376312",1011.02,"BRITISH GAS BUSINESS"
"Bracknell Forest Council","http://opendatacommunities.org/id/unitary-authority/bracknell-forest","Bracknell Forest Council","00MA","Secondary Schools","Delegated Primary School Budgets","New Scotland Hill - Primary","Electricity",14/04/2020 00:00:00,"30376312",1033.69,"BRITISH GAS BUSINESS"
"Bracknell Forest Council","http://opendatacommunities.org/id/unitary-authority/bracknell-forest","Bracknell Forest Council","00MA","Secondary Schools","Delegated Primary School Budgets","Wooden Hill - Primary","Electricity",11/05/2020 00:00:00,"30377792",1054.28,"BRITISH GAS BUSINESS"
"Bracknell Forest Council","http://opendatacommunities.org/id/unitary-authority/bracknell-forest","Bracknell Forest Council","00MA","Management and Support Services - CYPL","Holding Codes - net nil","Jennetts Park Academy","Electricity",14/04/2020 00:00:00,"30376312",1059.7,"BRITISH GAS BUSINESS"
"Bracknell Forest Council","http://opendatacommunities.org/id/unitary-authority/bracknell-forest","Bracknell Forest Council","00MA","Secondary Schools","Delegated Primary School Budgets","Owlsmoor - Primary","Electricity",11/05/2020 00:00:00,"30377792",1090.16,"BRITISH GAS BUSINESS"
"Bracknell Forest Council","http://opendatacommunities.org/id/unitary-authority/bracknell-forest","Bracknell Forest Council","00MA","Secondary Schools","Delegated Primary School Budgets","Sandy Lane Primary School","Electricity",11/05/2020 00:00:00,"30377792",1133.88,"BRITISH GAS BUSINESS"
"Bracknell Forest Council","http://opendatacommunities.org/id/unitary-authority/bracknell-forest","Bracknell Forest Council","00MA","Secondary Schools","Delegated Primary School Budgets","Harmans Water - Primary","Electricity",11/05/2020 00:00:00,"30377792",1140.81,"BRITISH GAS BUSINESS"
"Bracknell Forest Council","http://opendatacommunities.org/id/unitary-authority/bracknell-forest","Bracknell Forest Council","00MA","Secondary Schools","Delegated Primary School Budgets","Meadow Vale - Primary","Electricity",11/05/2020 00:00:00,"30377792",1307.93,"BRITISH GAS BUSINESS"
"Bracknell Forest Council","http://opendatacommunities.org/id/unitary-authority/bracknell-forest","Bracknell Forest Council","00MA","Secondary Schools","Delegated Primary School Budgets","Owlsmoor - Primary","Electricity",11/05/2020 00:00:00,"30377792",1414.38,"BRITISH GAS BUSINESS"
"Bracknell Forest Council","http://opendatacommunities.org/id/unitary-authority/bracknell-forest","Bracknell Forest Council","00MA","Secondary Schools","Delegated Primary School Budgets","Harmans Water - Primary","Electricity",11/05/2020 00:00:00,"30377792",1481.53,"BRITISH GAS BUSINESS"
"Bracknell Forest Council","http://opendatacommunities.org/id/unitary-authority/bracknell-forest","Bracknell Forest Council","00MA","Management and Support Services - CYPL","Holding Codes - net nil","Edgbarrow Academy","Electricity",11/05/2020 00:00:00,"30377792",1520.48,"BRITISH GAS BUSINESS"
"Bracknell Forest Council","http://opendatacommunities.org/id/unitary-authority/bracknell-forest","Bracknell Forest Council","00MA","Special Schools & Alternative Provision","Delegated Special and Alternative Provision Budgets","Kennel Lane","Electricity",11/05/2020 00:00:00,"30377792",1640.01,"BRITISH GAS BUSINESS"
"Bracknell Forest Council","http://opendatacommunities.org/id/unitary-authority/bracknell-forest","Bracknell Forest Council","00MA","Homelessness","Directly with a Private Sector Landlord","Yorktown Road","Electricity",04/05/2020 00:00:00,"6703277",1765.72,"BRITISH GAS BUSINESS"
"Bracknell Forest Council","http://opendatacommunities.org/id/unitary-authority/bracknell-forest","Bracknell Forest Council","00MA","Libraries","Branch Libraries","Harmans Water Library","Gas",27/01/2020 00:00:00,"6701777",2130.5,"BRITISH GAS BUSINESS"
"Bracknell Forest Council","http://opendatacommunities.org/id/unitary-authority/bracknell-forest","Bracknell Forest Council","00MA","Central Support Services - COF","Information Technology","Communications","Equipment - Rental",09/04/2020 00:00:00,"6703230",7325.92,"BRITISH TELECOM"
"Bracknell Forest Council","http://opendatacommunities.org/id/unitary-authority/bracknell-forest","Bracknell Forest Council","00MA","Central Support Services - COF","Information Technology","Communications","Equipment - Rental",09/03/2020 00:00:00,"6701903",7849.35,"BRITISH TELECOM"
"Bracknell Forest Council","http://opendatacommunities.org/id/unitary-authority/bracknell-forest","Bracknell Forest Council","00MA","A3095 Improvement Scheme","","OPENREACH DIVERSIONARY WORKS  HANWORTH R/ABOUT","Construction - Other Direct Expenses",28/04/2020 00:00:00,"6702636",50542.41,"BRITISH TELECOM"
"Bracknell Forest Council","http://opendatacommunities.org/id/unitary-authority/bracknell-forest","Bracknell Forest Council","00MA","Older People (65+)","Long Term Support - Nursing","MC Older People 65+ Long Term Support - Nursing","Contracted Services",16/04/2020 00:00:00,"30375595",2417.49,"BROOME PARK NURSING HOME"
"Bracknell Forest Council","http://opendatacommunities.org/id/unitary-authority/bracknell-forest","Bracknell Forest Council","00MA","Older People (65+)","Long Term Support - Nursing","MC Older People 65+ Long Term Support - Nursing","Contracted Services",14/05/2020 00:00:00,"30377203",2440.8,"BROOME PARK NURSING HOME"
"Bracknell Forest Council","http://opendatacommunities.org/id/unitary-authority/bracknell-forest","Bracknell Forest Council","00MA","Older People (65+)","Long Term Support - Nursing","MC Older People 65+ Long Term Support - Nursing","Contracted Services",11/06/2020 00:00:00,"30378358",2440.8,"BROOME PARK NURSING HOME"
"Bracknell Forest Council","http://opendatacommunities.org/id/unitary-authority/bracknell-forest","Bracknell Forest Council","00MA","Economic Development","Economic Development","Town Centre Redevelopment Legal Costs","Legal Fees",30/03/2020 00:00:00,"6701545",3915.4,"BRYAN CAVE LEIGHTON PAISNER LLP"
"Bracknell Forest Council","http://opendatacommunities.org/id/unitary-authority/bracknell-forest","Bracknell Forest Council","00MA","Economic Development","Economic Development","Town Centre Redevelopment Legal Costs","Legal Fees",29/05/2020 00:00:00,"6704894",11034,"BRYAN CAVE LEIGHTON PAISNER LLP"
"Bracknell Forest Council","http://opendatacommunities.org/id/unitary-authority/bracknell-forest","Bracknell Forest Council","00MA","Economic Development","Economic Development","Town Centre Redevelopment Legal Costs","Legal Fees",30/04/2020 00:00:00,"6703270",13850.8,"BRYAN CAVE LEIGHTON PAISNER LLP"
"Bracknell Forest Council","http://opendatacommunities.org/id/unitary-authority/bracknell-forest","Bracknell Forest Council","00MA","Economic Development","Economic Development","Town Centre Redevelopment Legal Costs","Legal Fees",13/03/2020 00:00:00,"6703542",15711.2,"BRYAN CAVE LEIGHTON PAISNER LLP"
"Bracknell Forest Council","http://opendatacommunities.org/id/unitary-authority/bracknell-forest","Bracknell Forest Council","00MA","Central Support Services - COF","Information Technology","ICT Telephony","Telephones - Rental & Call Charges",31/03/2020 00:00:00,"6701506",8752.47,"BT CONFERENCING"
"Bracknell Forest Council","http://opendatacommunities.org/id/unitary-authority/bracknell-forest","Bracknell Forest Council","00MA","Central Support Services - COF","Information Technology","ICT Telephony","Telephones - Rental & Call Charges",31/05/2020 00:00:00,"6704436",12112.27,"BT CONFERENCING"
"Bracknell Forest Council","http://opendatacommunities.org/id/unitary-authority/bracknell-forest","Bracknell Forest Council","00MA","Central Support Services - COF","Information Technology","ICT Telephony","Telephones - Rental & Call Charges",30/04/2020 00:00:00,"6703185",14273.14,"BT CONFERENCING"
"Bracknell Forest Council","http://opendatacommunities.org/id/unitary-authority/bracknell-forest","Bracknell Forest Council","00MA","Central Support Services - COF","Information Technology","Communications","Equipment - Rental",27/05/2020 00:00:00,"6704011",3112.2,"BT GLOBAL SERVICES"
"Bracknell Forest Council","http://opendatacommunities.org/id/unitary-authority/bracknell-forest","Bracknell Forest Council","00MA","Central Support Services - COF","Information Technology","Communications","Equipment - Rental",28/05/2020 00:00:00,"6703992",3774.27,"BT GLOBAL SERVICES"
"Bracknell Forest Council","http://opendatacommunities.org/id/unitary-authority/bracknell-forest","Bracknell Forest Council","00MA","Central Support Services - COF","Information Technology","Communications","Equipment - Rental",24/04/2020 00:00:00,"6703186",3900.07,"BT GLOBAL SERVICES"
"Bracknell Forest Council","http://opendatacommunities.org/id/unitary-authority/bracknell-forest","Bracknell Forest Council","00MA","Central Support Services - COF","Information Technology","Communications","Equipment - Rental",25/06/2020 00:00:00,"6705456",3900.07,"BT GLOBAL SERVICES"
"Bracknell Forest Council","http://opendatacommunities.org/id/unitary-authority/bracknell-forest","Bracknell Forest Council","00MA","Central Support Services - COF","Information Technology","ICT Telephony","Telephones - Rental & Call Charges",27/04/2020 00:00:00,"6703206",7735.12,"BT GLOBAL SERVICES"
"Bracknell Forest Council","http://opendatacommunities.org/id/unitary-authority/bracknell-forest","Bracknell Forest Council","00MA","Central Support Services - COF","Information Technology","ICT Telephony","Telephones - Rental & Call Charges",25/06/2020 00:00:00,"6705473",7750.25,"BT GLOBAL SERVICES"
"Bracknell Forest Council","http://opendatacommunities.org/id/unitary-authority/bracknell-forest","Bracknell Forest Council","00MA","Central Support Services - COF","Information Technology","ICT Telephony","Telephones - Rental & Call Charges",28/05/2020 00:00:00,"6704007",8110.17,"BT GLOBAL SERVICES"
"Bracknell Forest Council","http://opendatacommunities.org/id/unitary-authority/bracknell-forest","Bracknell Forest Council","00MA","Central Support Services - COF","Personnel","Personnel Services","Equipment - Purchase",25/10/2019 00:00:00,"6704975",605.71,"BTME GROUP LTD"
"Bracknell Forest Council","http://opendatacommunities.org/id/unitary-authority/bracknell-forest","Bracknell Forest Council","00MA","Improvements & Capitalised Repairs (Council Wide)","","UPGRADE HEATING SYSTEM YOT 76 BINFIELD RD  VAL 4 FINAL INVS OP/I271210 & OP/I272121 & C001423","Construction - Contract Payments",30/06/2020 00:00:00,"6705718",5878.11,"BTU (MAINTENANCE) LTD"
"Bracknell Forest Council","http://opendatacommunities.org/id/unitary-authority/bracknell-forest","Bracknell Forest Council","00MA","Post 16 Provision","High needs budget fpr post-16 provision","Mainstream - Element 3 top up non BFC post 16","Other Local Authorities",16/04/2020 00:00:00,"6702009",12081,"BUCKINGHAMSHIRE  COUNCIL"
